DIRECTORATE,SECTION,DIVISON,VENDOR_NAME,VENDOR_SITE_ID,PAYMENT_DATE,VOUCHER_NO,AMOUNT,IRRECOVERABLE VATE,PURPOSE_OF_SPEND,PROCUREMENT_CLASSIFICATION
Learning Disability Support,Transitions and Ordinary Lives - Learning Disability Support,Transitions and Ordinary Lives,1 BROADSTONE CLOSE,10470,02/06/2020,3475731,"3,464.00",0.00,N/A,N/A
Learning Disability Support,Transitions and Ordinary Lives - Learning Disability Support,Transitions and Ordinary Lives,1 BROADSTONE CLOSE,10470,02/06/2020,3475730,"3,464.00",0.00,N/A,N/A
Learning Disability Support,Transitions and Ordinary Lives - Learning Disability Support,Transitions and Ordinary Lives,1 BROADSTONE CLOSE,10470,02/06/2020,3475830,"3,577.60",0.00,N/A,N/A
Learning Disability Support,Transitions and Ordinary Lives - Learning Disability Support,Transitions and Ordinary Lives,1 BROADSTONE CLOSE,10470,02/06/2020,3475732,"3,464.00",0.00,N/A,N/A
Learning Disability Support,Transitions and Ordinary Lives - Learning Disability Support,Transitions and Ordinary Lives,1 BROADSTONE CLOSE,10470,02/06/2020,3475689,"3,464.00",0.00,N/A,N/A
Learning Disability Support,Transitions and Ordinary Lives - Learning Disability Support,Transitions and Ordinary Lives,1 BROADSTONE CLOSE,10470,02/06/2020,3475707,"3,464.00",0.00,N/A,N/A
Learning Disability Support,Transitions and Ordinary Lives - Learning Disability Support,Transitions and Ordinary Lives,1 BROADSTONE CLOSE,10470,02/06/2020,3475808,"3,464.00",0.00,N/A,N/A
Learning Disability Support,Transitions and Ordinary Lives - Learning Disability Support,Transitions and Ordinary Lives,14 LINBY DRIVE,19274,02/06/2020,3475037,"4,430.64",0.00,N/A,N/A
"Environmental Protection, Licensing, Housing",Environmental Protection,"Communities, Environment & Regulatory Services",A M PROPERTY SERVICES LTD,121,02/06/2020,3477503,"2,815.00",0.00,Communities & Place,Building and Construction and Maintenanc
Physical Support,Community Support - Physical Support,Community Support,ABBEY COURT RESIDENTIAL AND NURSING HOME,10483,02/06/2020,3475963,"2,175.44",0.00,N/A,N/A
Physical Support,Community Support - Physical Support,Community Support,ABBEY COURT RESIDENTIAL AND NURSING HOME,10483,02/06/2020,3475964,"2,175.44",0.00,N/A,N/A
Physical Support,Community Support - Physical Support,Community Support,ABBEY COURT RESIDENTIAL AND NURSING HOME,10483,02/06/2020,3476093,"2,175.44",0.00,N/A,N/A
Physical Support,Community Support - Physical Support,Community Support,ABBEY COURT RESIDENTIAL AND NURSING HOME,10483,02/06/2020,3475997,"2,175.44",0.00,N/A,N/A
Physical Support,Community Support - Physical Support,Community Support,ABBEY COURT RESIDENTIAL AND NURSING HOME,10483,02/06/2020,3475894,"2,175.44",0.00,N/A,N/A
Physical Support,Community Support - Physical Support,Community Support,ABBEY COURT RESIDENTIAL AND NURSING HOME,10483,02/06/2020,3475893,"2,175.44",0.00,N/A,N/A
Physical Support,Community Support - Physical Support,Community Support,ABBEY COURT RESIDENTIAL AND NURSING HOME,10483,02/06/2020,3476029,"2,118.48",0.00,N/A,N/A
Physical Support,Community Support - Physical Support,Community Support,ABBEY COURT RESIDENTIAL AND NURSING HOME,10483,02/06/2020,3475858,"2,118.48",0.00,N/A,N/A
Physical Support,Community Support - Physical Support,Community Support,ABBEY COURT RESIDENTIAL AND NURSING HOME,10483,02/06/2020,3475857,"2,118.48",0.00,N/A,N/A
Physical Support,Community Support - Physical Support,Community Support,ABBEY COURT RESIDENTIAL AND NURSING HOME,10483,02/06/2020,3475920,"2,118.48",0.00,N/A,N/A
Physical Support,Community Support - Physical Support,Community Support,ABBEY COURT RESIDENTIAL AND NURSING HOME,10483,02/06/2020,3475933,"2,175.44",0.00,N/A,N/A
Physical Support,Community Support - Physical Support,Community Support,ABBEY COURT RESIDENTIAL AND NURSING HOME,10483,02/06/2020,3476021,"2,400.64",0.00,N/A,N/A
Mental Health Support,Community Support - Mental Health Support,Community Support,ABBEYDALE,10487,02/06/2020,3476054,"2,175.44",0.00,N/A,N/A
Mental Health Support,Community Support - Mental Health Support,Community Support,ABBEYDALE,10487,02/06/2020,3475956,"1,169.52",0.00,N/A,N/A
Mental Health Support,Mental Health - Mental Health Support,Mental Health,ACACIA CARE CENTRE,1265486,02/06/2020,3475118,"2,266.48",0.00,N/A,N/A
Mental Health Support,Mental Health - Mental Health Support,Mental Health,ACACIA LODGE,471191,02/06/2020,3475552,"2,376.00",0.00,N/A,N/A
Mental Health Support,Mental Health - Mental Health Support,Mental Health,ACACIA LODGE,471191,02/06/2020,3475214,"1,425.60",0.00,N/A,N/A
Learning Disability Support,Transitions and Ordinary Lives - Learning Disability Support,Transitions and Ordinary Lives,ACACIA LODGE,471191,02/06/2020,3475559,"1,478.40",0.00,N/A,N/A
Learning Disability Support,Transitions and Ordinary Lives - Learning Disability Support,Transitions and Ordinary Lives,ACACIA LODGE,471191,02/06/2020,3475397,739.20,0.00,N/A,N/A
Integrated Services,Agency Placements,Non-Schools,ACORN FOSTERING SERVICES LTD,1113490,02/06/2020,3474856,"4,260.00",0.00,N/A,N/A
Learning Disability Support,Transitions and Ordinary Lives - Learning Disability Support,Transitions and Ordinary Lives,ACTION ON HEARING LOSS,896480,02/06/2020,3475794,"4,425.56",0.00,N/A,N/A
Learning Disability Support,Transitions and Ordinary Lives - Learning Disability Support,Transitions and Ordinary Lives,ACTION ON HEARING LOSS,896480,02/06/2020,3475770,"2,950.40",0.00,N/A,N/A
Early Help & Children�s Safeguarding,Integrated and Safeguarding Services Locality 3/4,Non-Schools,ADFAN,470777,02/06/2020,3477464,700.00,0.00,N/A,N/A
Early Help & Children�s Safeguarding,Integrated and Safeguarding Services Locality 3/4,Non-Schools,ADFAN,470777,02/06/2020,3477171,840.00,0.00,N/A,N/A
Early Help & Children�s Safeguarding,Integrated and Safeguarding Services Locality 3/4,Non-Schools,ADFAN,470777,02/06/2020,3477462,700.00,0.00,N/A,N/A
Early Help & Children�s Safeguarding,Integrated and Safeguarding Services Locality 3/4,Non-Schools,ADFAN,470777,02/06/2020,3477465,700.00,0.00,N/A,N/A
Early Help & Children�s Safeguarding,Integrated and Safeguarding Services Locality 3/4,Non-Schools,ADFAN,470777,02/06/2020,3477466,600.00,0.00,N/A,N/A
Early Help & Children�s Safeguarding,Integrated and Safeguarding Services Locality 3/4,Non-Schools,ADFAN,470777,02/06/2020,3477461,800.00,0.00,N/A,N/A
Highways & Engineering,Highways Maintenance & Street Lighting,"Strategic Partnerships, Planning & Streetpride",AGGREGATE INDUSTRIES UK LTD,117850,02/06/2020,3477191,"1,037.18",0.00,Communities & Place,Building and Construction Machinery and
Highways & Engineering,Highways Maintenance & Street Lighting,"Strategic Partnerships, Planning & Streetpride",AGGREGATE INDUSTRIES UK LTD,117850,02/06/2020,3477193,824.31,0.00,Communities & Place,Building and Construction Machinery and
Mental Health Support,Community Support - Mental Health Support,Community Support,AGINCARE DERBY LIMITED,1224470,02/06/2020,3476810,"2,118.48",0.00,N/A,N/A
Mental Health Support,Community Support - Mental Health Support,Community Support,AGINCARE DERBY LIMITED,1224470,02/06/2020,3476849,"2,118.48",0.00,N/A,N/A
Mental Health Support,Community Support - Mental Health Support,Community Support,AGINCARE DERBY LIMITED,1224470,02/06/2020,3476892,"2,118.48",0.00,N/A,N/A
Physical Support,Community Support - Physical Support,Community Support,AGINCARE DERBY LIMITED,1224470,02/06/2020,3476738,"2,118.48",0.00,N/A,N/A
Physical Support,Community Support - Physical Support,Community Support,AGINCARE DERBY LIMITED,1224470,02/06/2020,3476808,"2,118.48",0.00,N/A,N/A
Physical Support,Community Support - Physical Support,Community Support,AGINCARE DERBY LIMITED,1224470,02/06/2020,3476809,"2,118.48",0.00,N/A,N/A
Physical Support,Community Support - Physical Support,Community Support,AGINCARE DERBY LIMITED,1224470,02/06/2020,3476890,"2,118.48",0.00,N/A,N/A
Physical Support,Community Support - Physical Support,Community Support,AGINCARE DERBY LIMITED,1224470,02/06/2020,3476968,"2,118.48",0.00,N/A,N/A
Physical Support,Community Support - Physical Support,Community Support,AGINCARE DERBY LIMITED,1224470,02/06/2020,3476969,"2,118.48",0.00,N/A,N/A
Physical Support,Community Support - Physical Support,Community Support,AGINCARE DERBY LIMITED,1224470,02/06/2020,3476970,"2,118.48",0.00,N/A,N/A
Physical Support,Community Support - Physical Support,Community Support,AGINCARE DERBY LIMITED,1224470,02/06/2020,3476846,"2,118.48",0.00,N/A,N/A
Physical Support,Community Support - Physical Support,Community Support,AGINCARE DERBY LIMITED,1224470,02/06/2020,3476847,"2,118.48",0.00,N/A,N/A
Physical Support,Community Support - Physical Support,Community Support,AGINCARE DERBY LIMITED,1224470,02/06/2020,3476891,"2,118.48",0.00,N/A,N/A
Physical Support,Community Support - Physical Support,Community Support,AGINCARE DERBY LIMITED,1224470,02/06/2020,3476971,"2,118.48",0.00,N/A,N/A
Physical Support,Community Support - Physical Support,Community Support,AGINCARE DERBY LIMITED,1224470,02/06/2020,3476972,"2,118.48",0.00,N/A,N/A
Support with Memory and Cognition,Community Support - Support with Memory and Cognition,Community Support,AGINCARE DERBY LIMITED,1224470,02/06/2020,3476845,"2,118.48",0.00,N/A,N/A
Support with Memory and Cognition,Community Support - Support with Memory and Cognition,Community Support,AGINCARE DERBY LIMITED,1224470,02/06/2020,3476932,"2,118.48",0.00,N/A,N/A
Mental Health Support,Mental Health - Mental Health Support,Mental Health,AGINCARE DERBY LIMITED,1224470,02/06/2020,3476848,"2,118.48",0.00,N/A,N/A
Integrated Services,Agency Placements,Non-Schools,ALL4U FOSTERING LTD.,1238475,02/06/2020,3474850,"2,795.71",0.00,N/A,N/A
Integrated Services,Agency Placements,Non-Schools,ALL4U FOSTERING LTD.,1238475,02/06/2020,3474850,"1,324.29",0.00,N/A,N/A
Non Delegated Schools Budget,Non Delegated School Expenditure,Schools Block,ALLESTREE WOODLANDS SCHOOL,125376,02/06/2020,3477510,"15,850.21",0.00,N/A,N/A
Integrated Services,Agency Placements,Non-Schools,ALLIANCE FOSTER CARE,1108472,02/06/2020,3474624,"3,844.00",0.00,N/A,N/A
Integrated Services,Agency Placements,Non-Schools,ALLIANCE FOSTER CARE,1108472,02/06/2020,3474624,"3,156.00",0.00,N/A,N/A
Highways & Engineering,Highways Maintenance & Street Lighting,"Strategic Partnerships, Planning & Streetpride",AMA SUPPLIES LTD,285,02/06/2020,3474913,633.08,0.00,Communities & Place,Apparel and Luggage and Personal Care Pr
Learning Disability Support,Community Support - Learning Disability Support,Community Support,AMBER LODGE NURSING HOME,10490,02/06/2020,3475899,"2,118.48",0.00,N/A,N/A
Learning Disability Support,Community Support - Learning Disability Support,Community Support,AMBER LODGE NURSING HOME,10490,02/06/2020,3476100,"2,175.44",0.00,N/A,N/A
Mental Health Support,Community Support - Mental Health Support,Community Support,AMBER LODGE NURSING HOME,10490,02/06/2020,3475967,"2,175.44",0.00,N/A,N/A
Physical Support,Community Support - Physical Support,Community Support,AMBER LODGE NURSING HOME,10490,02/06/2020,3476001,"2,118.48",0.00,N/A,N/A
Physical Support,Community Support - Physical Support,Community Support,AMBER LODGE NURSING HOME,10490,02/06/2020,3475941,"2,175.44",0.00,N/A,N/A
Physical Support,Community Support - Physical Support,Community Support,AMBER LODGE NURSING HOME,10490,02/06/2020,3476065,"2,175.44",0.00,N/A,N/A
Physical Support,Community Support - Physical Support,Community Support,AMBER LODGE NURSING HOME,10490,02/06/2020,3476003,"2,175.44",0.00,N/A,N/A
Physical Support,Community Support - Physical Support,Community Support,AMBER LODGE NURSING HOME,10490,02/06/2020,3475860,"2,175.44",0.00,N/A,N/A
Physical Support,Community Support - Physical Support,Community Support,AMBER LODGE NURSING HOME,10490,02/06/2020,3476099,"2,175.44",0.00,N/A,N/A
Physical Support,Community Support - Physical Support,Community Support,AMBER LODGE NURSING HOME,10490,02/06/2020,3475898,"2,175.44",0.00,N/A,N/A
Support with Memory and Cognition,Community Support - Support with Memory and Cognition,Community Support,AMBER LODGE NURSING HOME,10490,02/06/2020,3475965,"2,118.48",0.00,N/A,N/A
Mental Health Support,Mental Health - Mental Health Support,Mental Health,AMBER LODGE NURSING HOME,10490,02/06/2020,3475966,"2,175.44",0.00,N/A,N/A
Mental Health Support,Mental Health - Mental Health Support,Mental Health,AMBER LODGE NURSING HOME,10490,02/06/2020,3476101,"2,259.60",0.00,N/A,N/A
Mental Health Support,Mental Health - Mental Health Support,Mental Health,AMBER LODGE NURSING HOME,10490,02/06/2020,3476004,600.00,0.00,N/A,N/A
Learning Disability Support,Transitions and Ordinary Lives - Learning Disability Support,Transitions and Ordinary Lives,AMBER LODGE NURSING HOME,10490,02/06/2020,3475942,"2,400.64",0.00,N/A,N/A
Learning Disability Support,Transitions and Ordinary Lives - Learning Disability Support,Transitions and Ordinary Lives,AMBER LODGE NURSING HOME,10490,02/06/2020,3476103,"2,640.00",0.00,N/A,N/A
Learning Disability Support,Transitions and Ordinary Lives - Learning Disability Support,Transitions and Ordinary Lives,AMBER LODGE NURSING HOME,10490,02/06/2020,3476102,"2,400.64",0.00,N/A,N/A
Learning Disability Support,Transitions and Ordinary Lives - Learning Disability Support,Transitions and Ordinary Lives,AMBER LODGE NURSING HOME,10490,02/06/2020,3475861,"2,204.00",0.00,N/A,N/A
Learning Disability Support,Transitions and Ordinary Lives - Learning Disability Support,Transitions and Ordinary Lives,AMBER LODGE NURSING HOME,10490,02/06/2020,3475943,"2,640.00",0.00,N/A,N/A
Mental Health Support,Mental Health - Mental Health Support,Mental Health,AMBER LODGE NURSING HOME,10490,02/06/2020,3476066,"1,653.52",0.00,N/A,N/A
Neighbourhoods,Capital,Capital,AMEY OW LTD,1264485,02/06/2020,3472811,"4,408.59",0.00,N/A,N/A
Integrated Services,Agency Placements,Non-Schools,ANCHOR FOSTER CARE,1108474,02/06/2020,3477162,"5,699.00",0.00,N/A,N/A
Integrated Services,Agency Placements,Non-Schools,ANCHOR FOSTER CARE,1108474,02/06/2020,3477162,"3,055.52",0.00,N/A,N/A
Integrated Services,Agency Placements,Non-Schools,ANCHOR FOSTER CARE,1108474,02/06/2020,3477162,"3,055.52",0.00,N/A,N/A
Integrated Services,Agency Placements,Non-Schools,ANCHOR FOSTER CARE,1108474,02/06/2020,3477162,"2,759.96",0.00,N/A,N/A
Integrated Services,Agency Placements,Non-Schools,ANCHOR FOSTER CARE,1108474,02/06/2020,3477162,"2,759.96",0.00,N/A,N/A
Integrated Services,Agency Placements,Non-Schools,ANCHOR FOSTER CARE,1108474,02/06/2020,3474556,"1,831.82",0.00,N/A,N/A
Integrated Services,Agency Placements,Non-Schools,ANCHOR FOSTER CARE,1108474,02/06/2020,3474556,982.13,0.00,N/A,N/A
Integrated Services,Agency Placements,Non-Schools,ANCHOR FOSTER CARE,1108474,02/06/2020,3474556,982.13,0.00,N/A,N/A
Integrated Services,Agency Placements,Non-Schools,ANCHOR FOSTER CARE,1108474,02/06/2020,3474556,"3,867.18",0.00,N/A,N/A
Integrated Services,Agency Placements,Non-Schools,ANCHOR FOSTER CARE,1108474,02/06/2020,3474556,"2,073.39",0.00,N/A,N/A
Integrated Services,Agency Placements,Non-Schools,ANCHOR FOSTER CARE,1108474,02/06/2020,3474556,"2,073.39",0.00,N/A,N/A
Physical Support,Community Support - Physical Support,Community Support,ANCHOR TRUST,10629,02/06/2020,3475944,761.24,0.00,N/A,N/A
Physical Support,Community Support - Physical Support,Community Support,ANCHOR TRUST,10629,02/06/2020,3476107,"2,118.48",0.00,N/A,N/A
Physical Support,Community Support - Physical Support,Community Support,ANCHOR TRUST,10629,02/06/2020,3476068,"2,118.48",0.00,N/A,N/A
Physical Support,Community Support - Physical Support,Community Support,ANCHOR TRUST,10629,02/06/2020,3475863,"2,118.48",0.00,N/A,N/A
Physical Support,Community Support - Physical Support,Community Support,ANCHOR TRUST,10629,02/06/2020,3475902,"2,118.48",0.00,N/A,N/A
Physical Support,Community Support - Physical Support,Community Support,ANCHOR TRUST,10629,02/06/2020,3475901,"2,118.48",0.00,N/A,N/A
Physical Support,Community Support - Physical Support,Community Support,ANCHOR TRUST,10629,02/06/2020,3476038,"2,118.48",0.00,N/A,N/A
Support with Memory and Cognition,Community Support - Support with Memory and Cognition,Community Support,ANCHOR TRUST,10629,02/06/2020,3476106,"2,118.48",0.00,N/A,N/A
Support with Memory and Cognition,Community Support - Support with Memory and Cognition,Community Support,ANCHOR TRUST,10629,02/06/2020,3476105,"2,118.48",0.00,N/A,N/A
Support with Memory and Cognition,Community Support - Support with Memory and Cognition,Community Support,ANCHOR TRUST,10629,02/06/2020,3476104,"2,118.48",0.00,N/A,N/A
Mental Health Support,Mental Health - Mental Health Support,Mental Health,ANCHOR TRUST,10629,02/06/2020,3475904,"2,118.48",0.00,N/A,N/A
Learning Disability Support,Transitions and Ordinary Lives - Learning Disability Support,Transitions and Ordinary Lives,ANCHOR TRUST,10629,02/06/2020,3476108,"2,480.00",0.00,N/A,N/A
Integrated Services,Agency Placements,Non-Schools,ANGLIA FOSTERING AGENCY LTD,1108475,02/06/2020,3474600,"3,141.60",0.00,N/A,N/A
Integrated Services,Agency Placements,Non-Schools,ANGLIA FOSTERING AGENCY LTD,1108475,02/06/2020,3474600,"3,074.12",0.00,N/A,N/A
Physical Support,Community Support - Physical Support,Community Support,ANNEFIELD HOUSE LTD,153553,02/06/2020,3475796,"2,080.00",0.00,N/A,N/A
Physical Support,Community Support - Physical Support,Community Support,ANNEFIELD HOUSE LTD,153553,02/06/2020,3475691,"2,240.00",0.00,N/A,N/A
Physical Support,Community Support - Physical Support,Community Support,ANNEFIELD HOUSE LTD,153553,02/06/2020,3475814,"2,240.00",0.00,N/A,N/A
Physical Support,Community Support - Physical Support,Community Support,ANNEFIELD HOUSE LTD,153553,02/06/2020,3475813,"2,240.00",0.00,N/A,N/A
Mental Health Support,Mental Health - Mental Health Support,Mental Health,ANNEFIELD HOUSE LTD,153553,02/06/2020,3475773,"1,160.00",0.00,N/A,N/A
Mental Health Support,Mental Health - Mental Health Support,Mental Health,ANNEFIELD HOUSE LTD,153553,02/06/2020,3475833,538.57,0.00,N/A,N/A
Mental Health Support,Mental Health - Mental Health Support,Mental Health,ANNEFIELD HOUSE LTD,153553,02/06/2020,3475834,960.00,0.00,N/A,N/A
Mental Health Support,Mental Health - Mental Health Support,Mental Health,ANNEFIELD HOUSE LTD,153553,02/06/2020,3475756,"1,160.00",0.00,N/A,N/A
Mental Health Support,Mental Health - Mental Health Support,Mental Health,ANNEFIELD HOUSE LTD,153553,02/06/2020,3475757,880.00,0.00,N/A,N/A
Learning Disability Support,Transitions and Ordinary Lives - Learning Disability Support,Transitions and Ordinary Lives,ANNEFIELD HOUSE LTD,153553,02/06/2020,3475737,"1,550.96",0.00,N/A,N/A
Learning Disability Support,Transitions and Ordinary Lives - Learning Disability Support,Transitions and Ordinary Lives,ANNEFIELD HOUSE LTD,153553,02/06/2020,3475797,"1,920.00",0.00,N/A,N/A
Learning Disability Support,Transitions and Ordinary Lives - Learning Disability Support,Transitions and Ordinary Lives,ANNEFIELD HOUSE LTD,153553,02/06/2020,3475774,"1,844.00",0.00,N/A,N/A
Learning Disability Support,Transitions and Ordinary Lives - Learning Disability Support,Transitions and Ordinary Lives,ANNEFIELD HOUSE LTD,153553,02/06/2020,3475710,"2,121.00",0.00,N/A,N/A
Learning Disability Support,Transitions and Ordinary Lives - Learning Disability Support,Transitions and Ordinary Lives,ANNEFIELD HOUSE LTD,153553,02/06/2020,3475711,"2,121.00",0.00,N/A,N/A
Learning Disability Support,Transitions and Ordinary Lives - Learning Disability Support,Transitions and Ordinary Lives,ANNEFIELD HOUSE LTD,153553,02/06/2020,3475835,"1,060.48",0.00,N/A,N/A
Learning Disability Support,Transitions and Ordinary Lives - Learning Disability Support,Transitions and Ordinary Lives,ANNEFIELD HOUSE LTD,153553,02/06/2020,3475738,"2,078.08",0.00,N/A,N/A
Learning Disability Support,Transitions and Ordinary Lives - Learning Disability Support,Transitions and Ordinary Lives,ANNEFIELD HOUSE LTD,153553,02/06/2020,3475692,"1,920.00",0.00,N/A,N/A
Highways & Engineering,Highways Maintenance & Street Lighting,"Strategic Partnerships, Planning & Streetpride",ANTHONY COLLINS SOLICITORS,65,02/06/2020,3477481,"1,435.50",0.00,N/A,N/A
Support with Memory and Cognition,Community Support - Support with Memory and Cognition,Community Support,ARBOUR COURT,471376,02/06/2020,3475398,779.64,0.00,N/A,N/A
Support with Memory and Cognition,Community Support - Support with Memory and Cognition,Community Support,ARBOUR COURT,471376,02/06/2020,3475399,780.36,0.00,N/A,N/A
Libraries,Libraries,"Leisure, Culture and Tourism",ARROW SPECIALISED TRANSPORT LIMITED,1141493,02/06/2020,3474995,"2,834.80",0.00,N/A,N/A
Learning Disability Support,Transitions and Ordinary Lives - Learning Disability Support,Transitions and Ordinary Lives,ASH VILLA CARE HOME,15780,02/06/2020,3475450,"5,566.16",0.00,N/A,N/A
Learning Disability Support,Transitions and Ordinary Lives - Learning Disability Support,Transitions and Ordinary Lives,ASH VILLA CARE HOME,15780,02/06/2020,3475103,"5,320.00",0.00,N/A,N/A
Learning Disability Support,Transitions and Ordinary Lives - Learning Disability Support,Transitions and Ordinary Lives,ASH VILLA CARE HOME,15780,02/06/2020,3475036,"1,221.84",0.00,N/A,N/A
Physical Support,Community Support - Physical Support,Community Support,ASHA HEALTHCARE LTD,920470,02/06/2020,3475149,"2,030.48",0.00,N/A,N/A
Mental Health Support,Mental Health - Mental Health Support,Mental Health,ASHE FIELDS,51494,02/06/2020,3475597,"2,152.36",0.00,N/A,N/A
Learning Disability Support,Transitions and Ordinary Lives - Learning Disability Support,Transitions and Ordinary Lives,ASHFIELD COURT,10494,02/06/2020,3475647,"7,072.48",0.00,N/A,N/A
Learning Disability Support,Transitions and Ordinary Lives - Learning Disability Support,Transitions and Ordinary Lives,ASHFIELD COURT,10494,02/06/2020,3475225,"6,910.12",0.00,N/A,N/A
Learning Disability Support,Transitions and Ordinary Lives - Learning Disability Support,Transitions and Ordinary Lives,ASHFIELD COURT,10494,02/06/2020,3475138,"8,047.24",0.00,N/A,N/A
Learning Disability Support,Transitions and Ordinary Lives - Learning Disability Support,Transitions and Ordinary Lives,ASHFIELD COURT,10494,02/06/2020,3475556,"6,398.24",0.00,N/A,N/A
Sensory Support,Community Support - Sensory Support,Community Support,ASHFIELD SPECIALIST CARE LIMITED,1110470,02/06/2020,3475083,"4,800.00",0.00,N/A,N/A
Mental Health Support,Mental Health - Mental Health Support,Mental Health,ASHFIELDS,1171468,02/06/2020,3475599,"1,626.36",0.00,N/A,N/A
Highways & Engineering,Highways Maintenance & Street Lighting,"Strategic Partnerships, Planning & Streetpride",ASHTEAD PLANT HIRE CO LTD,596,02/06/2020,3474961,537.68,0.00,N/A,N/A
Learning Disability Support,Community Support - Learning Disability Support,Community Support,ASPEN HOUSE LTD,10497,02/06/2020,3475886,"3,801.20",0.00,N/A,N/A
Physical Support,Community Support - Physical Support,Community Support,ASPEN HOUSE LTD,10497,02/06/2020,3475991,"2,184.72",0.00,N/A,N/A
Mental Health Support,Mental Health - Mental Health Support,Mental Health,ASPEN HOUSE LTD,10497,02/06/2020,3476087,"1,050.00",0.00,N/A,N/A
Mental Health Support,Mental Health - Mental Health Support,Mental Health,ASPEN HOUSE LTD,10497,02/06/2020,3475887,"2,800.00",0.00,N/A,N/A
Mental Health Support,Mental Health - Mental Health Support,Mental Health,ASPEN HOUSE LTD,10497,02/06/2020,3475985,"1,100.00",0.00,N/A,N/A
Mental Health Support,Mental Health - Mental Health Support,Mental Health,ASPEN HOUSE LTD,10497,02/06/2020,3475850,"2,800.00",0.00,N/A,N/A
Mental Health Support,Mental Health - Mental Health Support,Mental Health,ASPEN HOUSE LTD,10497,02/06/2020,3475988,"2,800.00",0.00,N/A,N/A
Mental Health Support,Mental Health - Mental Health Support,Mental Health,ASPEN HOUSE LTD,10497,02/06/2020,3476086,"2,600.00",0.00,N/A,N/A
Learning Disability Support,Transitions and Ordinary Lives - Learning Disability Support,Transitions and Ordinary Lives,ASPEN HOUSE LTD,10497,02/06/2020,3476056,"1,893.13",0.00,N/A,N/A
Learning Disability Support,Transitions and Ordinary Lives - Learning Disability Support,Transitions and Ordinary Lives,ASPEN HOUSE LTD,10497,02/06/2020,3476020,"2,038.76",0.00,N/A,N/A
Learning Disability Support,Transitions and Ordinary Lives - Learning Disability Support,Transitions and Ordinary Lives,ASPEN HOUSE LTD,10497,02/06/2020,3475982,"2,038.76",0.00,N/A,N/A
Learning Disability Support,Transitions and Ordinary Lives - Learning Disability Support,Transitions and Ordinary Lives,ASPEN HOUSE LTD,10497,02/06/2020,3476049,"2,038.76",0.00,N/A,N/A
Learning Disability Support,Transitions and Ordinary Lives - Learning Disability Support,Transitions and Ordinary Lives,ASPEN HOUSE LTD,10497,02/06/2020,3475847,"2,038.76",0.00,N/A,N/A
Learning Disability Support,Transitions and Ordinary Lives - Learning Disability Support,Transitions and Ordinary Lives,ASPEN HOUSE LTD,10497,02/06/2020,3476118,"2,038.76",0.00,N/A,N/A
Learning Disability Support,Transitions and Ordinary Lives - Learning Disability Support,Transitions and Ordinary Lives,ASPEN HOUSE LTD,10497,02/06/2020,3475955,"2,038.76",0.00,N/A,N/A
Learning Disability Support,Transitions and Ordinary Lives - Learning Disability Support,Transitions and Ordinary Lives,ASPEN HOUSE LTD,10497,02/06/2020,3476081,"2,038.76",0.00,N/A,N/A
Learning Disability Support,Transitions and Ordinary Lives - Learning Disability Support,Transitions and Ordinary Lives,ASPEN HOUSE LTD,10497,02/06/2020,3476083,"2,038.76",0.00,N/A,N/A
Learning Disability Support,Transitions and Ordinary Lives - Learning Disability Support,Transitions and Ordinary Lives,ASPEN HOUSE LTD,10497,02/06/2020,3475913,"2,038.76",0.00,N/A,N/A
Learning Disability Support,Transitions and Ordinary Lives - Learning Disability Support,Transitions and Ordinary Lives,ASPEN HOUSE LTD,10497,02/06/2020,3475990,"2,038.76",0.00,N/A,N/A
Learning Disability Support,Transitions and Ordinary Lives - Learning Disability Support,Transitions and Ordinary Lives,ASPEN HOUSE LTD,10497,02/06/2020,3476089,"2,038.76",0.00,N/A,N/A
Learning Disability Support,Transitions and Ordinary Lives - Learning Disability Support,Transitions and Ordinary Lives,ASPEN HOUSE LTD,10497,02/06/2020,3475921,"2,038.76",0.00,N/A,N/A
Learning Disability Support,Transitions and Ordinary Lives - Learning Disability Support,Transitions and Ordinary Lives,ASPEN HOUSE LTD,10497,02/06/2020,3476079,"2,038.76",0.00,N/A,N/A
Learning Disability Support,Transitions and Ordinary Lives - Learning Disability Support,Transitions and Ordinary Lives,ASPEN HOUSE LTD,10497,02/06/2020,3476077,"2,038.76",0.00,N/A,N/A
Learning Disability Support,Transitions and Ordinary Lives - Learning Disability Support,Transitions and Ordinary Lives,ASPEN HOUSE LTD,10497,02/06/2020,3476076,"1,529.07",0.00,N/A,N/A
Learning Disability Support,Transitions and Ordinary Lives - Learning Disability Support,Transitions and Ordinary Lives,ASPEN HOUSE LTD,10497,02/06/2020,3476025,"2,118.48",0.00,N/A,N/A
Learning Disability Support,Transitions and Ordinary Lives - Learning Disability Support,Transitions and Ordinary Lives,ASPEN HOUSE LTD,10497,02/06/2020,3476121,"1,082.64",0.00,N/A,N/A
Learning Disability Support,Transitions and Ordinary Lives - Learning Disability Support,Transitions and Ordinary Lives,ASPEN HOUSE LTD,10497,02/06/2020,3476120,"1,082.64",0.00,N/A,N/A
Learning Disability Support,Transitions and Ordinary Lives - Learning Disability Support,Transitions and Ordinary Lives,ASPEN HOUSE LTD,10497,02/06/2020,3475981,"1,082.64",0.00,N/A,N/A
Learning Disability Support,Transitions and Ordinary Lives - Learning Disability Support,Transitions and Ordinary Lives,ASPEN HOUSE LTD,10497,02/06/2020,3476050,"1,082.64",0.00,N/A,N/A
Learning Disability Support,Transitions and Ordinary Lives - Learning Disability Support,Transitions and Ordinary Lives,ASPEN HOUSE LTD,10497,02/06/2020,3475851,"1,082.64",0.00,N/A,N/A
Learning Disability Support,Transitions and Ordinary Lives - Learning Disability Support,Transitions and Ordinary Lives,ASPEN HOUSE LTD,10497,02/06/2020,3475846,"1,082.64",0.00,N/A,N/A
Learning Disability Support,Transitions and Ordinary Lives - Learning Disability Support,Transitions and Ordinary Lives,ASPEN HOUSE LTD,10497,02/06/2020,3476116,"1,082.64",0.00,N/A,N/A
Learning Disability Support,Transitions and Ordinary Lives - Learning Disability Support,Transitions and Ordinary Lives,ASPEN HOUSE LTD,10497,02/06/2020,3475979,"1,082.64",0.00,N/A,N/A
Learning Disability Support,Transitions and Ordinary Lives - Learning Disability Support,Transitions and Ordinary Lives,ASPEN HOUSE LTD,10497,02/06/2020,3475978,"1,082.64",0.00,N/A,N/A
Learning Disability Support,Transitions and Ordinary Lives - Learning Disability Support,Transitions and Ordinary Lives,ASPEN HOUSE LTD,10497,02/06/2020,3475977,"1,082.64",0.00,N/A,N/A
Learning Disability Support,Transitions and Ordinary Lives - Learning Disability Support,Transitions and Ordinary Lives,ASPEN HOUSE LTD,10497,02/06/2020,3475954,"1,082.64",0.00,N/A,N/A
Learning Disability Support,Transitions and Ordinary Lives - Learning Disability Support,Transitions and Ordinary Lives,ASPEN HOUSE LTD,10497,02/06/2020,3475915,"1,082.64",0.00,N/A,N/A
Learning Disability Support,Transitions and Ordinary Lives - Learning Disability Support,Transitions and Ordinary Lives,ASPEN HOUSE LTD,10497,02/06/2020,3475926,"1,082.64",0.00,N/A,N/A
Learning Disability Support,Transitions and Ordinary Lives - Learning Disability Support,Transitions and Ordinary Lives,ASPEN HOUSE LTD,10497,02/06/2020,3475924,"1,005.31",0.00,N/A,N/A
Learning Disability Support,Transitions and Ordinary Lives - Learning Disability Support,Transitions and Ordinary Lives,ASPEN HOUSE LTD,10497,02/06/2020,3475874,811.98,0.00,N/A,N/A
Learning Disability Support,Transitions and Ordinary Lives - Learning Disability Support,Transitions and Ordinary Lives,ASPEN HOUSE LTD,10497,02/06/2020,3476018,"1,082.64",0.00,N/A,N/A
Learning Disability Support,Transitions and Ordinary Lives - Learning Disability Support,Transitions and Ordinary Lives,ASPEN HOUSE LTD,10497,02/06/2020,3476058,"3,813.33",0.00,N/A,N/A
Learning Disability Support,Transitions and Ordinary Lives - Learning Disability Support,Transitions and Ordinary Lives,ASPEN HOUSE LTD,10497,02/06/2020,3475928,"27,328.83",0.00,N/A,N/A
Learning Disability Support,Transitions and Ordinary Lives - Learning Disability Support,Transitions and Ordinary Lives,ASPEN HOUSE LTD,10497,02/06/2020,3475927,"2,118.48",0.00,N/A,N/A
Learning Disability Support,Transitions and Ordinary Lives - Learning Disability Support,Transitions and Ordinary Lives,ASPEN HOUSE LTD,10497,02/06/2020,3476088,"2,118.48",0.00,N/A,N/A
Mental Health Support,Mental Health - Mental Health Support,Mental Health,ASPEN HOUSE LTD,10497,02/06/2020,3475888,"2,096.52",0.00,N/A,N/A
Mental Health Support,Mental Health - Mental Health Support,Mental Health,ASPIRE HEALTH AND CARE,1124474,02/06/2020,3467297,"20,342.86",0.00,N/A,N/A
Mental Health Support,Mental Health - Mental Health Support,Mental Health,ASPIRE HEALTH AND CARE,1132468,02/06/2020,3475725,"12,875.00",0.00,N/A,N/A
Mental Health Support,Mental Health - Mental Health Support,Mental Health,ASPIRE HEALTH AND CARE,1132468,02/06/2020,3475765,"14,171.43",0.00,N/A,N/A
Mental Health Support,Mental Health - Mental Health Support,Mental Health,ASPIRE HEALTH AND CARE,1132468,02/06/2020,3475705,"9,371.43",0.00,N/A,N/A
Mental Health Support,Mental Health - Mental Health Support,Mental Health,ASPIRE HEALTH AND CARE,1132468,02/06/2020,3475804,"1,050.00",0.00,N/A,N/A
Mental Health Support,Mental Health - Mental Health Support,Mental Health,ASPIRE HEALTH AND CARE,1132468,02/06/2020,3475766,"2,160.00",0.00,N/A,N/A
Learning Disability Support,Transitions and Ordinary Lives - Learning Disability Support,Transitions and Ordinary Lives,AUTONOMY HEALTHCARE LTD,469426,02/06/2020,3475803,"8,679.64",0.00,N/A,N/A
Mental Health Support,Mental Health - Mental Health Support,Mental Health,AUTONOMY HEALTHCARE LTD,469426,02/06/2020,3475784,"2,720.00",0.00,N/A,N/A
Physical Support,Community Support - Physical Support,Community Support,AVERY HOMES DERBY LTD,474000,02/06/2020,3476921,"2,101.24",0.00,N/A,N/A
Physical Support,Community Support - Physical Support,Community Support,AVERY HOMES DERBY LTD,474000,02/06/2020,3476800,"2,118.48",0.00,N/A,N/A
Learning Disability Support,Transitions and Ordinary Lives - Learning Disability Support,Transitions and Ordinary Lives,BANK HOUSE CARE HOMES LTD,417411,02/06/2020,3475304,"1,900.00",0.00,N/A,N/A
Mental Health Support,Community Support - Mental Health Support,Community Support,BANKWOOD NURSING HOME,10499,02/06/2020,3475028,"2,804.16",0.00,N/A,N/A
Mental Health Support,Community Support - Mental Health Support,Community Support,BANKWOOD NURSING HOME,10499,02/06/2020,3475185,"2,804.16",0.00,N/A,N/A
Mental Health Support,Community Support - Mental Health Support,Community Support,BANKWOOD NURSING HOME,10499,02/06/2020,3475186,"2,804.16",0.00,N/A,N/A
Mental Health Support,Community Support - Mental Health Support,Community Support,BANKWOOD NURSING HOME,10499,02/06/2020,3475098,"2,804.16",0.00,N/A,N/A
Mental Health Support,Community Support - Mental Health Support,Community Support,BANKWOOD NURSING HOME,10499,02/06/2020,3475191,"2,617.27",0.00,N/A,N/A
Mental Health Support,Community Support - Mental Health Support,Community Support,BANKWOOD NURSING HOME,10499,02/06/2020,3475284,"2,818.60",0.00,N/A,N/A
Mental Health Support,Community Support - Mental Health Support,Community Support,BANKWOOD NURSING HOME,10499,02/06/2020,3475526,"2,804.16",0.00,N/A,N/A
Mental Health Support,Community Support - Mental Health Support,Community Support,BANKWOOD NURSING HOME,10499,02/06/2020,3475271,"2,804.16",0.00,N/A,N/A
Mental Health Support,Community Support - Mental Health Support,Community Support,BANKWOOD NURSING HOME,10499,02/06/2020,3475274,"2,804.16",0.00,N/A,N/A
Mental Health Support,Community Support - Mental Health Support,Community Support,BANKWOOD NURSING HOME,10499,02/06/2020,3475529,"2,818.60",0.00,N/A,N/A
Mental Health Support,Community Support - Mental Health Support,Community Support,BANKWOOD NURSING HOME,10499,02/06/2020,3475600,"2,804.16",0.00,N/A,N/A
Mental Health Support,Community Support - Mental Health Support,Community Support,BANKWOOD NURSING HOME,10499,02/06/2020,3475283,"2,818.60",0.00,N/A,N/A
Mental Health Support,Community Support - Mental Health Support,Community Support,BANKWOOD NURSING HOME,10499,02/06/2020,3475276,"2,804.16",0.00,N/A,N/A
Mental Health Support,Community Support - Mental Health Support,Community Support,BANKWOOD NURSING HOME,10499,02/06/2020,3475603,"2,804.16",0.00,N/A,N/A
Mental Health Support,Community Support - Mental Health Support,Community Support,BANKWOOD NURSING HOME,10499,02/06/2020,3475604,"2,804.16",0.00,N/A,N/A
Mental Health Support,Community Support - Mental Health Support,Community Support,BANKWOOD NURSING HOME,10499,02/06/2020,3475609,"2,804.16",0.00,N/A,N/A
Mental Health Support,Community Support - Mental Health Support,Community Support,BANKWOOD NURSING HOME,10499,02/06/2020,3475356,"2,804.16",0.00,N/A,N/A
Integrated Services,Agency Placements,Non-Schools,BANYA FAMILY PLACEMENT AGENCY LTD,1109488,02/06/2020,3474564,"3,920.00",0.00,N/A,N/A
Integrated Services,Agency Placements,Non-Schools,BANYA FAMILY PLACEMENT AGENCY LTD,1109488,02/06/2020,3474564,"3,258.36",0.00,N/A,N/A
Integrated Services,Agency Placements,Non-Schools,BANYA FAMILY PLACEMENT AGENCY LTD,1109488,02/06/2020,3474564,"2,800.00",0.00,N/A,N/A
Integrated Services,Agency Placements,Non-Schools,BANYA FAMILY PLACEMENT AGENCY LTD,1109488,02/06/2020,3474564,"2,800.00",0.00,N/A,N/A
Integrated Services,Agency Placements,Non-Schools,BANYA FAMILY PLACEMENT AGENCY LTD,1109488,02/06/2020,3474564,"2,720.00",0.00,N/A,N/A
Integrated Services,Agency Placements,Non-Schools,BANYA FAMILY PLACEMENT AGENCY LTD,1109488,02/06/2020,3474564,"2,720.00",0.00,N/A,N/A
Integrated Services,Agency Placements,Non-Schools,BANYA FAMILY PLACEMENT AGENCY LTD,1109488,02/06/2020,3474564,"2,720.00",0.00,N/A,N/A
Integrated Services,Agency Placements,Non-Schools,BARNARDOS,1122469,02/06/2020,3474547,"2,912.00",0.00,N/A,N/A
Integrated Services,Agency Placements,Non-Schools,BARNARDOS,1122469,02/06/2020,3474547,"2,912.00",0.00,N/A,N/A
Integrated Services,Agency Placements,Non-Schools,BARNARDOS,1122469,02/06/2020,3474547,"4,476.00",0.00,N/A,N/A
Integrated Services,Agency Placements,Non-Schools,BARNARDOS,1122469,02/06/2020,3474547,"3,300.00",0.00,N/A,N/A
Integrated Services,Agency Placements,Non-Schools,BARNARDOS,1122469,02/06/2020,3474547,"3,300.00",0.00,N/A,N/A
Integrated Services,Agency Placements,Non-Schools,BARNARDOS,1122469,02/06/2020,3474547,"3,300.00",0.00,N/A,N/A
Integrated Services,Agency Placements,Non-Schools,BARNARDOS,1122469,02/06/2020,3474547,"3,300.00",0.00,N/A,N/A
Integrated Services,Agency Placements,Non-Schools,BARNARDOS,1122469,02/06/2020,3474547,"3,300.00",0.00,N/A,N/A
Mental Health Support,Community Support - Mental Health Support,Community Support,BEARWARDCOTE HALL,10500,02/06/2020,3475270,"1,983.60",0.00,N/A,N/A
Mental Health Support,Community Support - Mental Health Support,Community Support,BEARWARDCOTE HALL,10500,02/06/2020,3475032,631.48,0.00,N/A,N/A
Physical Support,Community Support - Physical Support,Community Support,BEARWARDCOTE HALL,10500,02/06/2020,3475099,"1,872.36",0.00,N/A,N/A
Support with Memory and Cognition,Community Support - Support with Memory and Cognition,Community Support,BELPER VIEWS RESIDENTIAL HOME,10531,02/06/2020,3475446,"2,144.80",0.00,N/A,N/A
Refuse & Waste Management,Waste Disposal,"Strategic Partnerships, Planning & Streetpride",BIFFA WASTE SERVICES LTD,485,02/06/2020,3474908,"80,125.94",0.00,Communities & Place,Environmental Services
Integrated Services,Agency Placements,Non-Schools,BLUE MOUNTAIN HOMES LTD,8344,02/06/2020,3472575,"16,637.14",0.00,People Services - Children & Young People,Politics and Civic Affairs Services
Integrated Services,Agency Placements,Non-Schools,BLUE MOUNTAIN HOMES LTD,8344,02/06/2020,3472576,"38,982.86",0.00,People Services - Children & Young People,Politics and Civic Affairs Services
Mental Health Support,Community Support - Mental Health Support,Community Support,BLUEBELL PARK CARE HOME,105060,02/06/2020,3476275,"2,118.48",0.00,N/A,N/A
Physical Support,Community Support - Physical Support,Community Support,BLUEBELL PARK CARE HOME,105060,02/06/2020,3476513,"2,175.44",0.00,N/A,N/A
Physical Support,Community Support - Physical Support,Community Support,BLUEBELL PARK CARE HOME,105060,02/06/2020,3476449,"2,389.92",0.00,N/A,N/A
Mental Health Support,Mental Health - Mental Health Support,Mental Health,BLUEBELL PARK CARE HOME,105060,02/06/2020,3476510,"2,093.60",0.00,N/A,N/A
Mental Health Support,Mental Health - Mental Health Support,Mental Health,BLUEBELL PARK CARE HOME,105060,02/06/2020,3476614,"2,284.16",0.00,N/A,N/A
Mental Health Support,Mental Health - Mental Health Support,Mental Health,BLUEBELL PARK CARE HOME,105060,02/06/2020,3476671,"2,175.44",0.00,N/A,N/A
Mental Health Support,Mental Health - Mental Health Support,Mental Health,BLUEBELL PARK CARE HOME,105060,02/06/2020,3476337,973.48,0.00,N/A,N/A
Mental Health Support,Mental Health - Mental Health Support,Mental Health,BLUEBELL PARK CARE HOME,105060,02/06/2020,3476338,"2,030.48",0.00,N/A,N/A
Mental Health Support,Mental Health - Mental Health Support,Mental Health,BLUEBELL PARK CARE HOME,105060,02/06/2020,3476339,"2,284.16",0.00,N/A,N/A
Mental Health Support,Mental Health - Mental Health Support,Mental Health,BRAMBLE LODGE,107083,02/06/2020,3475121,"2,144.80",0.00,N/A,N/A
Physical Support,Community Support - Physical Support,Community Support,BROOKFIELDS PNH LTD,10536,02/06/2020,3475889,"2,175.44",0.00,N/A,N/A
Physical Support,Community Support - Physical Support,Community Support,BROOKFIELDS PNH LTD,10536,02/06/2020,3475852,552.16,0.00,N/A,N/A
Learning Disability Support,Transitions and Ordinary Lives - Learning Disability Support,Transitions and Ordinary Lives,BROOMHOUSE,10538,02/06/2020,3475092,"2,756.76",0.00,N/A,N/A
Learning Disability Support,Transitions and Ordinary Lives - Learning Disability Support,Transitions and Ordinary Lives,BROOMHOUSE,10538,02/06/2020,3475093,"2,756.76",0.00,N/A,N/A
Learning Disability Support,Transitions and Ordinary Lives - Learning Disability Support,Transitions and Ordinary Lives,BROOMHOUSE,10538,02/06/2020,3475448,"2,756.76",0.00,N/A,N/A
Learning Disability Support,Transitions and Ordinary Lives - Learning Disability Support,Transitions and Ordinary Lives,BROOMHOUSE,10538,02/06/2020,3475031,"2,756.76",0.00,N/A,N/A
Learning Disability Support,Transitions and Ordinary Lives - Learning Disability Support,Transitions and Ordinary Lives,BROOMHOUSE,10538,02/06/2020,3475527,"2,756.76",0.00,N/A,N/A
Learning Disability Support,Transitions and Ordinary Lives - Learning Disability Support,Transitions and Ordinary Lives,BROOMHOUSE,10538,02/06/2020,3475189,"2,771.16",0.00,N/A,N/A
Learning Disability Support,Transitions and Ordinary Lives - Learning Disability Support,Transitions and Ordinary Lives,BROOMHOUSE,10538,02/06/2020,3475523,"2,756.76",0.00,N/A,N/A
Learning Disability Support,Transitions and Ordinary Lives - Learning Disability Support,Transitions and Ordinary Lives,BROOMHOUSE,10538,02/06/2020,3475278,"2,756.76",0.00,N/A,N/A
Learning Disability Support,Transitions and Ordinary Lives - Learning Disability Support,Transitions and Ordinary Lives,BROOMHOUSE,10538,02/06/2020,3475605,"2,756.76",0.00,N/A,N/A
Learning Disability Support,Transitions and Ordinary Lives - Learning Disability Support,Transitions and Ordinary Lives,BROOMHOUSE,10538,02/06/2020,3475607,662.24,0.00,N/A,N/A
Learning Disability Support,Transitions and Ordinary Lives - Learning Disability Support,Transitions and Ordinary Lives,BROOMHOUSE,10538,02/06/2020,3475442,"2,756.76",0.00,N/A,N/A
Learning Disability Support,Transitions and Ordinary Lives - Learning Disability Support,Transitions and Ordinary Lives,BROOMHOUSE,10538,02/06/2020,3475592,"2,756.76",0.00,N/A,N/A
Learning Disability Support,Transitions and Ordinary Lives - Learning Disability Support,Transitions and Ordinary Lives,BROOMHOUSE,10538,02/06/2020,3475594,"2,756.76",0.00,N/A,N/A
Learning Disability Support,Transitions and Ordinary Lives - Learning Disability Support,Transitions and Ordinary Lives,BROOMHOUSE,10538,02/06/2020,3475595,"2,756.76",0.00,N/A,N/A
Learning Disability Support,Transitions and Ordinary Lives - Learning Disability Support,Transitions and Ordinary Lives,BROOMHOUSE,10538,02/06/2020,3475362,"2,771.16",0.00,N/A,N/A
Learning Disability Support,Transitions and Ordinary Lives - Learning Disability Support,Transitions and Ordinary Lives,BROOMHOUSE,10538,02/06/2020,3475359,"2,756.76",0.00,N/A,N/A
Learning Disability Support,Transitions and Ordinary Lives - Learning Disability Support,Transitions and Ordinary Lives,BROOMHOUSE,10538,02/06/2020,3475361,"2,573.22",0.00,N/A,N/A
Learning Disability Support,Transitions and Ordinary Lives - Learning Disability Support,Transitions and Ordinary Lives,BROOMHOUSE,10538,02/06/2020,3475190,"3,548.00",0.00,N/A,N/A
Learning Disability Support,Transitions and Ordinary Lives - Learning Disability Support,Transitions and Ordinary Lives,BROOMHOUSE,10538,02/06/2020,3475281,"2,400.00",0.00,N/A,N/A
Children and Young People,Capital,Capital,BROWNE JACOBSON LLP,143376,02/06/2020,3477190,"2,100.00",0.00,N/A,N/A
Integrated Services,Agency Placements,Non-Schools,BRYN MELYN CARE LTD,1327469,02/06/2020,3472579,618.00,0.00,N/A,N/A
Integrated Services,Agency Placements,Non-Schools,BRYN MELYN CARE LTD,1327469,02/06/2020,3472578,"1,765.71",0.00,N/A,N/A
Grounds Maintenance & Cleansing,Cleansing (inc public conveniences & gullies),"Strategic Partnerships, Planning & Streetpride",BUNZL CLEANING AND HYGIENE SUPPLIES,961498,02/06/2020,3474965,523.41,0.00,N/A,N/A
Support with Memory and Cognition,Community Support - Support with Memory and Cognition,Community Support,BWA HEALTH AND CARE SERVICE LTD,1089474,02/06/2020,3474156,517.90,0.00,N/A,N/A
Support with Memory and Cognition,Community Support - Support with Memory and Cognition,Community Support,BWA HEALTH AND CARE SERVICE LTD,1089474,02/06/2020,3474412,517.90,0.00,N/A,N/A
Integrated Services,Agency Placements,Non-Schools,BY THE BRIDGE LTD,1109490,02/06/2020,3474562,"5,580.00",0.00,N/A,N/A
Integrated Services,Agency Placements,Non-Schools,BY THE BRIDGE LTD,1109490,02/06/2020,3474562,"3,687.40",0.00,N/A,N/A
Integrated Services,Agency Placements,Non-Schools,BY THE BRIDGE LTD,1109490,02/06/2020,3474562,"3,432.00",0.00,N/A,N/A
Integrated Services,Agency Placements,Non-Schools,BY THE BRIDGE LTD,1109490,02/06/2020,3474562,"3,252.34",0.00,N/A,N/A
Integrated Services,Agency Placements,Non-Schools,BY THE BRIDGE LTD,1109490,02/06/2020,3474562,"5,529.00",0.00,N/A,N/A
Integrated Services,Agency Placements,Non-Schools,BY THE BRIDGE LTD,1109490,02/06/2020,3474562,"3,996.40",0.00,N/A,N/A
Integrated Services,Agency Placements,Non-Schools,BY THE BRIDGE LTD,1109490,02/06/2020,3474562,"3,996.40",0.00,N/A,N/A
Integrated Services,Agency Placements,Non-Schools,BY THE BRIDGE LTD,1109490,02/06/2020,3474562,"3,996.40",0.00,N/A,N/A
Integrated Services,Agency Placements,Non-Schools,BY THE BRIDGE LTD,1109490,02/06/2020,3474562,"3,996.40",0.00,N/A,N/A
Integrated Services,Agency Placements,Non-Schools,BY THE BRIDGE LTD,1109490,02/06/2020,3474562,"3,996.40",0.00,N/A,N/A
Integrated Services,Agency Placements,Non-Schools,BY THE BRIDGE LTD,1109490,02/06/2020,3474562,"3,996.40",0.00,N/A,N/A
Integrated Services,Agency Placements,Non-Schools,BY THE BRIDGE LTD,1109490,02/06/2020,3474562,"3,996.40",0.00,N/A,N/A
Integrated Services,Agency Placements,Non-Schools,BY THE BRIDGE LTD,1109490,02/06/2020,3474562,"3,794.40",0.00,N/A,N/A
Integrated Services,Agency Placements,Non-Schools,BY THE BRIDGE LTD,1109490,02/06/2020,3474562,"3,794.40",0.00,N/A,N/A
Integrated Services,Agency Placements,Non-Schools,BY THE BRIDGE LTD,1109490,02/06/2020,3474562,"3,794.40",0.00,N/A,N/A
Integrated Services,Agency Placements,Non-Schools,BY THE BRIDGE LTD,1109490,02/06/2020,3474562,"3,794.40",0.00,N/A,N/A
Integrated Services,Agency Placements,Non-Schools,BY THE BRIDGE LTD,1109490,02/06/2020,3474562,"3,794.40",0.00,N/A,N/A
Integrated Services,Agency Placements,Non-Schools,BY THE BRIDGE LTD,1109490,02/06/2020,3474562,"3,794.40",0.00,N/A,N/A
Integrated Services,Agency Placements,Non-Schools,BY THE BRIDGE LTD,1109490,02/06/2020,3474562,"3,794.40",0.00,N/A,N/A
Integrated Services,Agency Placements,Non-Schools,BY THE BRIDGE LTD,1109490,02/06/2020,3474562,"3,760.00",0.00,N/A,N/A
Integrated Services,Agency Placements,Non-Schools,BY THE BRIDGE LTD,1109490,02/06/2020,3474562,"3,687.40",0.00,N/A,N/A
Integrated Services,Agency Placements,Non-Schools,BY THE BRIDGE LTD,1109490,02/06/2020,3474562,"2,574.77",0.00,N/A,N/A
Integrated Services,Agency Placements,Non-Schools,BY THE BRIDGE LTD,1109490,02/06/2020,3474562,"1,219.63",0.00,N/A,N/A
Integrated Services,Agency Placements,Non-Schools,BY THE BRIDGE LTD,1109490,02/06/2020,3474562,"3,252.34",0.00,N/A,N/A
Integrated Services,Agency Placements,Non-Schools,BY THE BRIDGE NORTH WEST LTD,1109493,02/06/2020,3474868,"3,996.40",0.00,N/A,N/A
Mental Health Support,Mental Health - Mental Health Support,Mental Health,CADOGAN CARE LTD,946475,02/06/2020,3475150,"3,400.00",0.00,N/A,N/A
Integrated Services,Agency Placements,Non-Schools,CALDECOTT FOSTERING LTD,1109497,02/06/2020,3474724,"4,800.00",0.00,N/A,N/A
Integrated Services,Agency Placements,Non-Schools,CALDECOTT FOSTERING LTD,1109497,02/06/2020,3474724,"4,400.00",0.00,N/A,N/A
Integrated Services,Agency Placements,Non-Schools,CAMBIAN CHILDCARE LTD,1328468,02/06/2020,3472616,664.35,0.00,N/A,N/A
Integrated Services,Agency Placements,Non-Schools,CAMBIAN CHILDCARE LTD,1328468,02/06/2020,3472616,"9,300.00",0.00,N/A,N/A
Benefits and Exchequer Services,Housing and Council Tax Benefit,Finance,CAPITA BUSINESS SERVICES LTD,7754,02/06/2020,3474915,"2,334.53",0.00,Organisation & Governance,Information Technology Broadcasting and
Integrated Services,Agency Placements,Non-Schools,CAPSTONE FOSTER CARE,1109499,02/06/2020,3474560,"3,325.28",0.00,N/A,N/A
Integrated Services,Agency Placements,Non-Schools,CAPSTONE FOSTER CARE,1109499,02/06/2020,3474560,"3,202.64",0.00,N/A,N/A
Integrated Services,Agency Placements,Non-Schools,CAPSTONE FOSTER CARE,1109499,02/06/2020,3474560,"3,096.72",0.00,N/A,N/A
Integrated Services,Agency Placements,Non-Schools,CAPSTONE FOSTER CARE,1109499,02/06/2020,3474560,"3,096.72",0.00,N/A,N/A
Integrated Services,Agency Placements,Non-Schools,CAPSTONE FOSTER CARE,1109499,02/06/2020,3474560,"2,974.32",0.00,N/A,N/A
Integrated Services,Agency Placements,Non-Schools,CAPSTONE FOSTER CARE,1109499,02/06/2020,3474560,"2,974.32",0.00,N/A,N/A
Integrated Services,Agency Placements,Non-Schools,CAPSTONE FOSTER CARE,1109499,02/06/2020,3474560,"2,974.32",0.00,N/A,N/A
Mental Health Support,Mental Health - Mental Health Support,Mental Health,CASTLE DONINGTON NH,10468,02/06/2020,3475624,"1,500.00",0.00,N/A,N/A
Mental Health Support,Mental Health - Mental Health Support,Mental Health,CASTLE DONINGTON NH,10468,02/06/2020,3475464,"1,973.76",0.00,N/A,N/A
Physical Support,Community Support - Physical Support,Community Support,CASTLE PARK NURSING HOME,10542,02/06/2020,3475853,"1,383.44",0.00,N/A,N/A
Physical Support,Community Support - Physical Support,Community Support,CASTLE PARK NURSING HOME,10542,02/06/2020,3475961,"2,175.44",0.00,N/A,N/A
Physical Support,Community Support - Physical Support,Community Support,CASTLE PARK NURSING HOME,10542,02/06/2020,3475856,"2,175.44",0.00,N/A,N/A
Physical Support,Community Support - Physical Support,Community Support,CASTLE PARK NURSING HOME,10542,02/06/2020,3475855,"2,175.44",0.00,N/A,N/A
Physical Support,Community Support - Physical Support,Community Support,CASTLE PARK NURSING HOME,10542,02/06/2020,3476091,"2,175.44",0.00,N/A,N/A
Physical Support,Community Support - Physical Support,Community Support,CASTLE PARK NURSING HOME,10542,02/06/2020,3476092,"2,175.44",0.00,N/A,N/A
Physical Support,Community Support - Physical Support,Community Support,CASTLE PARK NURSING HOME,10542,02/06/2020,3476090,"2,175.44",0.00,N/A,N/A
Physical Support,Community Support - Physical Support,Community Support,CASTLE PARK NURSING HOME,10542,02/06/2020,3475930,"2,175.44",0.00,N/A,N/A
Physical Support,Community Support - Physical Support,Community Support,CASTLE PARK NURSING HOME,10542,02/06/2020,3475996,"2,118.48",0.00,N/A,N/A
Support with Memory and Cognition,Community Support - Support with Memory and Cognition,Community Support,CASTLE PARK NURSING HOME,10542,02/06/2020,3476027,"2,175.44",0.00,N/A,N/A
Support with Memory and Cognition,Community Support - Support with Memory and Cognition,Community Support,CASTLE PARK NURSING HOME,10542,02/06/2020,3476026,"2,175.44",0.00,N/A,N/A
Support with Memory and Cognition,Community Support - Support with Memory and Cognition,Community Support,CASTLE PARK NURSING HOME,10542,02/06/2020,3475994,"1,631.58",0.00,N/A,N/A
Support with Memory and Cognition,Community Support - Support with Memory and Cognition,Community Support,CASTLE PARK NURSING HOME,10542,02/06/2020,3475892,"2,175.44",0.00,N/A,N/A
Support with Memory and Cognition,Community Support - Support with Memory and Cognition,Community Support,CASTLE PARK NURSING HOME,10542,02/06/2020,3475995,"2,118.48",0.00,N/A,N/A
Mental Health Support,Community Support - Mental Health Support,Community Support,CAVISTA LTD,1265480,02/06/2020,3476855,"2,118.48",0.00,N/A,N/A
Mental Health Support,Community Support - Mental Health Support,Community Support,CAVISTA LTD,1265480,02/06/2020,3476894,"2,118.48",0.00,N/A,N/A
Mental Health Support,Community Support - Mental Health Support,Community Support,CAVISTA LTD,1265480,02/06/2020,3476813,"2,118.48",0.00,N/A,N/A
Mental Health Support,Community Support - Mental Health Support,Community Support,CAVISTA LTD,1265480,02/06/2020,3476851,"1,059.24",0.00,N/A,N/A
Physical Support,Community Support - Physical Support,Community Support,CAVISTA LTD,1265480,02/06/2020,3476811,"2,118.48",0.00,N/A,N/A
Physical Support,Community Support - Physical Support,Community Support,CAVISTA LTD,1265480,02/06/2020,3476812,"2,118.48",0.00,N/A,N/A
Support with Memory and Cognition,Community Support - Support with Memory and Cognition,Community Support,CAVISTA LTD,1265480,02/06/2020,3476933,"2,118.48",0.00,N/A,N/A
Support with Memory and Cognition,Community Support - Support with Memory and Cognition,Community Support,CAVISTA LTD,1265480,02/06/2020,3476853,"2,118.48",0.00,N/A,N/A
Support with Memory and Cognition,Community Support - Support with Memory and Cognition,Community Support,CAVISTA LTD,1265480,02/06/2020,3476854,"2,118.48",0.00,N/A,N/A
Support with Memory and Cognition,Community Support - Support with Memory and Cognition,Community Support,CAVISTA LTD,1265480,02/06/2020,3476893,"2,118.48",0.00,N/A,N/A
Learning Disability Support,Transitions and Ordinary Lives - Learning Disability Support,Transitions and Ordinary Lives,CAXTON LODGE,18515,02/06/2020,3475367,"4,775.08",0.00,N/A,N/A
Social Care Activities,Home First - Social Care Activities,Home First,CDW LTD,465403,02/06/2020,3467967,517.50,0.00,People Services - Adults and Health,Information Technology Broadcasting and
Social Care Activities,Home First - Social Care Activities,Home First,CDW LTD,465403,02/06/2020,3467967,"1,862.90",0.00,People Services - Adults and Health,Information Technology Broadcasting and
Social Care Activities,Home First - Social Care Activities,Home First,CDW LTD,465403,02/06/2020,3467967,967.60,0.00,People Services - Adults and Health,Information Technology Broadcasting and
"Information, Computing & Technology","Information, Computing & Technology",Digital Services,CDW LTD,465403,02/06/2020,3474963,963.34,0.00,Organisation & Governance,Information Technology Broadcasting and
Learning Disability Support,Transitions and Ordinary Lives - Learning Disability Support,Transitions and Ordinary Lives,CEDAR COURT NURSING HOME,10543,02/06/2020,3475123,"1,890.84",0.00,N/A,N/A
Mental Health Support,Community Support - Mental Health Support,Community Support,CEDAR TREE CARE HOME,94367,02/06/2020,3476509,"3,000.00",0.00,N/A,N/A
Mental Health Support,Community Support - Mental Health Support,Community Support,CEDAR TREE CARE HOME,94367,02/06/2020,3476564,"3,000.00",0.00,N/A,N/A
Mental Health Support,Community Support - Mental Health Support,Community Support,CEDAR TREE CARE HOME,94367,02/06/2020,3476329,"3,000.00",0.00,N/A,N/A
Mental Health Support,Community Support - Mental Health Support,Community Support,CEDAR TREE CARE HOME,94367,02/06/2020,3476443,"1,392.86",0.00,N/A,N/A
Mental Health Support,Community Support - Mental Health Support,Community Support,CEDAR TREE CARE HOME,94367,02/06/2020,3476505,"3,000.00",0.00,N/A,N/A
Mental Health Support,Community Support - Mental Health Support,Community Support,CEDAR TREE CARE HOME,94367,02/06/2020,3476508,"3,000.00",0.00,N/A,N/A
Mental Health Support,Community Support - Mental Health Support,Community Support,CEDAR TREE CARE HOME,94367,02/06/2020,3476669,"2,785.71",0.00,N/A,N/A
Physical Support,Community Support - Physical Support,Community Support,CEDAR TREE CARE HOME,94367,02/06/2020,3476670,769.52,0.00,N/A,N/A
Physical Support,Community Support - Physical Support,Community Support,CEDAR TREE CARE HOME,94367,02/06/2020,3476565,"2,175.44",0.00,N/A,N/A
Physical Support,Community Support - Physical Support,Community Support,CEDAR TREE CARE HOME,94367,02/06/2020,3476447,853.52,0.00,N/A,N/A
Physical Support,Community Support - Physical Support,Community Support,CEDAR TREE CARE HOME,94367,02/06/2020,3476334,"2,600.00",0.00,N/A,N/A
Physical Support,Community Support - Physical Support,Community Support,CEDAR TREE CARE HOME,94367,02/06/2020,3476612,"2,175.44",0.00,N/A,N/A
Sensory Support,Community Support - Sensory Support,Community Support,CEDAR TREE CARE HOME,94367,02/06/2020,3476274,"2,093.60",0.00,N/A,N/A
Sensory Support,Community Support - Sensory Support,Community Support,CEDAR TREE CARE HOME,94367,02/06/2020,3476335,763.84,0.00,N/A,N/A
Support with Memory and Cognition,Community Support - Support with Memory and Cognition,Community Support,CEDAR TREE CARE HOME,94367,02/06/2020,3476333,763.84,0.00,N/A,N/A
Support with Memory and Cognition,Community Support - Support with Memory and Cognition,Community Support,CEDAR TREE CARE HOME,94367,02/06/2020,3476383,"2,175.44",0.00,N/A,N/A
Mental Health Support,Mental Health - Mental Health Support,Mental Health,CEDAR TREE CARE HOME,94367,02/06/2020,3476445,"1,631.58",0.00,N/A,N/A
Mental Health Support,Mental Health - Mental Health Support,Mental Health,CEDAR TREE CARE HOME,94367,02/06/2020,3476272,"2,018.83",0.00,N/A,N/A
Mental Health Support,Mental Health - Mental Health Support,Mental Health,CEDAR TREE CARE HOME,94367,02/06/2020,3476273,"1,040.00",0.00,N/A,N/A
Mental Health Support,Mental Health - Mental Health Support,Mental Health,CEDAR TREE CARE HOME,94367,02/06/2020,3476332,965.71,0.00,N/A,N/A
Mental Health Support,Mental Health - Mental Health Support,Mental Health,CEDAR TREE CARE HOME,94367,02/06/2020,3476613,"1,040.00",0.00,N/A,N/A
Mental Health Support,Mental Health - Mental Health Support,Mental Health,CEDAR TREE CARE HOME,94367,02/06/2020,3476384,"2,175.44",0.00,N/A,N/A
Mental Health Support,Mental Health - Mental Health Support,Mental Health,CEDAR TREE CARE HOME,94367,02/06/2020,3476506,"1,002.86",0.00,N/A,N/A
Mental Health Support,Mental Health - Mental Health Support,Mental Health,CEDAR TREE CARE HOME,94367,02/06/2020,3476507,"2,175.44",0.00,N/A,N/A
Learning Disability Support,Transitions and Ordinary Lives - Learning Disability Support,Transitions and Ordinary Lives,CHANGING LIVES UK QUALITY CARE LTD,1042485,02/06/2020,3475728,"3,180.00",0.00,N/A,N/A
Learning Disability Support,Community Support - Learning Disability Support,Community Support,CHESAPEAKE HOUSE,10547,02/06/2020,3475809,"2,132.40",0.00,N/A,N/A
Learning Disability Support,Transitions and Ordinary Lives - Learning Disability Support,Transitions and Ordinary Lives,CHESAPEAKE HOUSE,10547,02/06/2020,3475751,"2,132.40",0.00,N/A,N/A
Learning Disability Support,Transitions and Ordinary Lives - Learning Disability Support,Transitions and Ordinary Lives,CHESAPEAKE HOUSE,10547,02/06/2020,3475791,"2,132.40",0.00,N/A,N/A
Learning Disability Support,Transitions and Ordinary Lives - Learning Disability Support,Transitions and Ordinary Lives,CHESAPEAKE HOUSE,10547,02/06/2020,3475792,"2,132.40",0.00,N/A,N/A
Learning Disability Support,Transitions and Ordinary Lives - Learning Disability Support,Transitions and Ordinary Lives,CHESAPEAKE HOUSE,10547,02/06/2020,3475793,"2,132.40",0.00,N/A,N/A
Learning Disability Support,Transitions and Ordinary Lives - Learning Disability Support,Transitions and Ordinary Lives,CHESAPEAKE HOUSE,10547,02/06/2020,3475790,"2,132.40",0.00,N/A,N/A
Learning Disability Support,Transitions and Ordinary Lives - Learning Disability Support,Transitions and Ordinary Lives,CHESAPEAKE HOUSE,10547,02/06/2020,3475768,"2,559.24",0.00,N/A,N/A
Learning Disability Support,Transitions and Ordinary Lives - Learning Disability Support,Transitions and Ordinary Lives,CHESAPEAKE HOUSE,10547,02/06/2020,3475831,"2,132.40",0.00,N/A,N/A
Learning Disability Support,Transitions and Ordinary Lives - Learning Disability Support,Transitions and Ordinary Lives,CHESAPEAKE HOUSE,10547,02/06/2020,3475810,"2,132.40",0.00,N/A,N/A
Learning Disability Support,Transitions and Ordinary Lives - Learning Disability Support,Transitions and Ordinary Lives,CHESAPEAKE HOUSE,10547,02/06/2020,3475769,"2,132.40",0.00,N/A,N/A
Physical Support,Community Support - Physical Support,Community Support,CHESTNUT VIEW,10548,02/06/2020,3476698,"2,118.48",0.00,N/A,N/A
Physical Support,Community Support - Physical Support,Community Support,CHESTNUT VIEW,10548,02/06/2020,3476298,"2,118.48",0.00,N/A,N/A
Support with Memory and Cognition,Community Support - Support with Memory and Cognition,Community Support,CHESTNUT VIEW,10548,02/06/2020,3476634,"2,118.48",0.00,N/A,N/A
Support with Memory and Cognition,Community Support - Support with Memory and Cognition,Community Support,CHESTNUT VIEW,10548,02/06/2020,3476633,529.62,0.00,N/A,N/A
Support with Memory and Cognition,Community Support - Support with Memory and Cognition,Community Support,CHESTNUT VIEW,10548,02/06/2020,3476697,"2,118.48",0.00,N/A,N/A
Support with Memory and Cognition,Community Support - Support with Memory and Cognition,Community Support,CHESTNUT VIEW,10548,02/06/2020,3476354,"2,118.48",0.00,N/A,N/A
Mental Health Support,Mental Health - Mental Health Support,Mental Health,CHESTNUT VIEW,10548,02/06/2020,3476635,"2,118.48",0.00,N/A,N/A
Integrated Services,Agency Placements,Non-Schools,CHILDCARE BUREAU LTD,1109500,02/06/2020,3474602,"3,300.00",0.00,N/A,N/A
Integrated Services,Agency Placements,Non-Schools,CHILDCARE BUREAU LTD,1109500,02/06/2020,3474602,"3,260.00",0.00,N/A,N/A
Integrated Services,Agency Placements,Non-Schools,CHILDCARE BUREAU LTD,1109500,02/06/2020,3474602,"3,300.00",0.00,N/A,N/A
Integrated Services,Agency Placements,Non-Schools,CHRYSALIS CONSORTIUM,1109501,02/06/2020,3474599,"4,800.00",0.00,N/A,N/A
Integrated Services,Agency Placements,Non-Schools,CHRYSALIS CONSORTIUM,1109501,02/06/2020,3474599,"4,800.00",0.00,N/A,N/A
Support with Memory and Cognition,Community Support - Support with Memory and Cognition,Community Support,CHURCH FARM AT SKYLARKS LTD,815455,02/06/2020,3475660,"1,471.36",0.00,N/A,N/A
Support with Memory and Cognition,Community Support - Support with Memory and Cognition,Community Support,CHURCH FARM AT SKYLARKS LTD,815455,02/06/2020,3475407,"2,496.00",0.00,N/A,N/A
Physical Support,Community Support - Physical Support,Community Support,CLOVA HOUSE,10572,02/06/2020,3476160,"2,118.48",0.00,N/A,N/A
Physical Support,Community Support - Physical Support,Community Support,CLOVA HOUSE,10572,02/06/2020,3476161,"2,118.48",0.00,N/A,N/A
Physical Support,Community Support - Physical Support,Community Support,CLOVA HOUSE,10572,02/06/2020,3476181,"2,118.48",0.00,N/A,N/A
Physical Support,Community Support - Physical Support,Community Support,CLOVA HOUSE,10572,02/06/2020,3476162,"2,118.48",0.00,N/A,N/A
Mental Health Support,Mental Health - Mental Health Support,Mental Health,CLOVA HOUSE,10572,02/06/2020,3476238,"2,118.48",0.00,N/A,N/A
Mental Health Support,Mental Health - Mental Health Support,Mental Health,CLOVA HOUSE,10572,02/06/2020,3476239,"2,118.48",0.00,N/A,N/A
Learning Disability Support,Transitions and Ordinary Lives - Learning Disability Support,Transitions and Ordinary Lives,CLOVA HOUSE,10572,02/06/2020,3476131,"2,118.48",0.00,N/A,N/A
Learning Disability Support,Transitions and Ordinary Lives - Learning Disability Support,Transitions and Ordinary Lives,CLOVA HOUSE,10572,02/06/2020,3476224,"2,118.48",0.00,N/A,N/A
Mental Health Support,Mental Health - Mental Health Support,Mental Health,CLOVA HOUSE,10572,02/06/2020,3476182,"2,118.48",0.00,N/A,N/A
Corporate,Corporate Resources Other,Corporate,COMMUNITY ACTION DERBY LTD,1164,02/06/2020,3477512,"15,000.00",0.00,N/A,N/A
Integrated Services,Agency Placements,Non-Schools,COMPASS FOSTERING CENTRAL LTD,1109502,02/06/2020,3474567,"2,856.00",0.00,N/A,N/A
Integrated Services,Agency Placements,Non-Schools,COMPASS FOSTERING CENTRAL LTD,1109502,02/06/2020,3474567,"3,059.92",0.00,N/A,N/A
Integrated Services,Agency Placements,Non-Schools,COMPASS FOSTERING CENTRAL LTD,1109502,02/06/2020,3474567,"3,000.00",0.00,N/A,N/A
Integrated Services,Agency Placements,Non-Schools,COMPASS FOSTERING CENTRAL LTD,1109502,02/06/2020,3474567,"2,957.96",0.00,N/A,N/A
Integrated Services,Agency Placements,Non-Schools,COMPASS FOSTERING CENTRAL LTD,1109502,02/06/2020,3474567,"2,957.96",0.00,N/A,N/A
Integrated Services,Agency Placements,Non-Schools,COMPASS FOSTERING CENTRAL LTD,1109502,02/06/2020,3474567,"2,957.96",0.00,N/A,N/A
Integrated Services,Agency Placements,Non-Schools,COMPASS FOSTERING CENTRAL LTD,1109502,02/06/2020,3474567,"2,957.96",0.00,N/A,N/A
Integrated Services,Agency Placements,Non-Schools,COMPASS FOSTERING CENTRAL LTD,1109502,02/06/2020,3474567,"2,957.96",0.00,N/A,N/A
Integrated Services,Agency Placements,Non-Schools,COMPASS FOSTERING CENTRAL LTD,1109502,02/06/2020,3474567,"2,957.96",0.00,N/A,N/A
Integrated Services,Agency Placements,Non-Schools,COMPASS FOSTERING CENTRAL LTD,1109502,02/06/2020,3474567,"2,856.00",0.00,N/A,N/A
Integrated Services,Agency Placements,Non-Schools,COMPASS FOSTERING CENTRAL LTD,1109502,02/06/2020,3474567,"2,856.00",0.00,N/A,N/A
Integrated Services,Agency Placements,Non-Schools,COMPASS FOSTERING CENTRAL LTD,1109502,02/06/2020,3474567,"2,957.96",0.00,N/A,N/A
Integrated Services,Agency Placements,Non-Schools,COMPASS FOSTERING CENTRAL LTD,1109502,02/06/2020,3474567,"2,957.96",0.00,N/A,N/A
Integrated Services,Agency Placements,Non-Schools,COMPASS FOSTERING CENTRAL LTD,1109502,02/06/2020,3474567,"2,957.96",0.00,N/A,N/A
Integrated Services,Agency Placements,Non-Schools,COMPASS FOSTERING CENTRAL LTD,1109502,02/06/2020,3474567,"2,957.96",0.00,N/A,N/A
Integrated Services,Agency Placements,Non-Schools,COMPASS FOSTERING CENTRAL LTD,1109502,02/06/2020,3474567,"2,957.96",0.00,N/A,N/A
Integrated Services,Agency Placements,Non-Schools,COMPASS FOSTERING CENTRAL LTD,1109502,02/06/2020,3474567,"2,957.96",0.00,N/A,N/A
Integrated Services,Agency Placements,Non-Schools,COMPASS FOSTERING CENTRAL LTD,1109502,02/06/2020,3474567,"2,957.96",0.00,N/A,N/A
Integrated Services,Agency Placements,Non-Schools,COMPASS FOSTERING CENTRAL LTD,1109502,02/06/2020,3474567,"2,957.96",0.00,N/A,N/A
Integrated Services,Agency Placements,Non-Schools,COMPASS FOSTERING CENTRAL LTD,1109502,02/06/2020,3474567,"2,957.96",0.00,N/A,N/A
Integrated Services,Agency Placements,Non-Schools,COMPASS FOSTERING CENTRAL LTD,1109502,02/06/2020,3474567,"2,957.96",0.00,N/A,N/A
Integrated Services,Agency Placements,Non-Schools,COMPASS FOSTERING CENTRAL LTD,1109502,02/06/2020,3474567,"2,856.00",0.00,N/A,N/A
Integrated Services,Agency Placements,Non-Schools,COMPASS FOSTERING CENTRAL LTD,1109502,02/06/2020,3474567,"2,307.14",0.00,N/A,N/A
Integrated Services,Agency Placements,Non-Schools,COMPASS FOSTERING CENTRAL LTD,1109502,02/06/2020,3474567,"1,092.86",0.00,N/A,N/A
Integrated Services,Agency Placements,Non-Schools,COMPASS FOSTERING CENTRAL LTD,1109502,02/06/2020,3474567,"1,578.57",0.00,N/A,N/A
Integrated Services,Agency Placements,Non-Schools,COMPASS FOSTERING CENTRAL LTD,1109502,02/06/2020,3474567,"4,487.92",0.00,N/A,N/A
Integrated Services,Agency Placements,Non-Schools,COMPASS FOSTERING CENTRAL LTD,1109502,02/06/2020,3474567,"4,436.92",0.00,N/A,N/A
Integrated Services,Agency Placements,Non-Schools,COMPASS FOSTERING CENTRAL LTD,1109502,02/06/2020,3474567,"3,400.00",0.00,N/A,N/A
Integrated Services,Agency Placements,Non-Schools,COMPASS FOSTERING CENTRAL LTD,1109502,02/06/2020,3474567,"3,400.00",0.00,N/A,N/A
Integrated Services,Agency Placements,Non-Schools,COMPASS FOSTERING CENTRAL LTD,1109502,02/06/2020,3474567,"3,392.86",0.00,N/A,N/A
Integrated Services,Agency Placements,Non-Schools,COMPASS FOSTERING CENTRAL LTD,1109502,02/06/2020,3474567,"3,332.00",0.00,N/A,N/A
Integrated Services,Agency Placements,Non-Schools,COMPASS FOSTERING CENTRAL LTD,1109502,02/06/2020,3474567,"3,280.00",0.00,N/A,N/A
Integrated Services,Agency Placements,Non-Schools,COMPASS FOSTERING CENTRAL LTD,1109502,02/06/2020,3474567,"3,280.00",0.00,N/A,N/A
Integrated Services,Agency Placements,Non-Schools,COMPASS FOSTERING CENTRAL LTD,1109502,02/06/2020,3474567,"3,059.92",0.00,N/A,N/A
Integrated Services,Agency Placements,Non-Schools,COMPASS FOSTERING CENTRAL LTD,1109502,02/06/2020,3474567,"3,059.92",0.00,N/A,N/A
Integrated Services,Agency Placements,Non-Schools,COMPASS FOSTERING CENTRAL LTD,1109502,02/06/2020,3474567,"3,059.92",0.00,N/A,N/A
Integrated Services,Agency Placements,Non-Schools,COMPASS FOSTERING CENTRAL LTD,1109502,02/06/2020,3474567,"2,856.00",0.00,N/A,N/A
Integrated Services,Agency Placements,Non-Schools,COMPASS FOSTERING CENTRAL LTD,1109502,02/06/2020,3474567,"2,856.00",0.00,N/A,N/A
Integrated Services,Agency Placements,Non-Schools,COMPASS FOSTERING CENTRAL LTD,1109502,02/06/2020,3474567,"2,856.00",0.00,N/A,N/A
Integrated Services,Agency Placements,Non-Schools,COMPASS FOSTERING CENTRAL LTD,1109502,02/06/2020,3474567,"2,447.88",0.00,N/A,N/A
Integrated Services,Agency Placements,Non-Schools,COMPASS FOSTERING CENTRAL LTD,1109502,02/06/2020,3474567,"2,447.88",0.00,N/A,N/A
Integrated Services,Agency Placements,Non-Schools,COMPASS FOSTERING CENTRAL LTD,1109502,02/06/2020,3474567,"2,447.88",0.00,N/A,N/A
Integrated Services,Agency Placements,Non-Schools,CORA FOUNDATION,469424,02/06/2020,3472644,"83,589.87",0.00,People Services - Children & Young People,Healthcare Services
Learning Disability Support,Transitions and Ordinary Lives - Learning Disability Support,Transitions and Ordinary Lives,CRAEGMOOR HEALTHCARE,10478,02/06/2020,3475498,"1,604.60",0.00,N/A,N/A
Learning Disability Support,Transitions and Ordinary Lives - Learning Disability Support,Transitions and Ordinary Lives,CRAEGMOOR WIGGINTON COTTAGE,896468,02/06/2020,3475826,"9,969.68",0.00,N/A,N/A
Learning Disability Support,Community Support - Learning Disability Support,Community Support,CREATIVE SUPPORT LTD,1026475,02/06/2020,3473681,"1,739.60",0.00,N/A,N/A
Learning Disability Support,Community Support - Learning Disability Support,Community Support,CREATIVE SUPPORT LTD,1026475,02/06/2020,3473925,"1,739.60",0.00,N/A,N/A
Learning Disability Support,Community Support - Learning Disability Support,Community Support,CREATIVE SUPPORT LTD,1026475,02/06/2020,3474172,"1,739.60",0.00,N/A,N/A
Physical Support,Community Support - Physical Support,Community Support,CREATIVE SUPPORT LTD,1026475,02/06/2020,3473575,"1,021.52",0.00,N/A,N/A
Physical Support,Community Support - Physical Support,Community Support,CREATIVE SUPPORT LTD,1026475,02/06/2020,3474401,"1,021.52",0.00,N/A,N/A
Physical Support,Community Support - Physical Support,Community Support,CREATIVE SUPPORT LTD,1026475,02/06/2020,3473910,"1,021.52",0.00,N/A,N/A
Physical Support,Community Support - Physical Support,Community Support,CREATIVE SUPPORT LTD,1026475,02/06/2020,3473911,"1,021.52",0.00,N/A,N/A
Physical Support,Community Support - Physical Support,Community Support,CREATIVE SUPPORT LTD,1026475,02/06/2020,3474039,"1,021.52",0.00,N/A,N/A
Physical Support,Community Support - Physical Support,Community Support,CREATIVE SUPPORT LTD,1026475,02/06/2020,3474278,"1,021.52",0.00,N/A,N/A
Physical Support,Community Support - Physical Support,Community Support,CREATIVE SUPPORT LTD,1026475,02/06/2020,3474279,"1,021.52",0.00,N/A,N/A
Physical Support,Community Support - Physical Support,Community Support,CREATIVE SUPPORT LTD,1026475,02/06/2020,3473670,"1,021.52",0.00,N/A,N/A
Physical Support,Community Support - Physical Support,Community Support,CREATIVE SUPPORT LTD,1026475,02/06/2020,3474171,"1,021.52",0.00,N/A,N/A
Learning Disability Support,Transitions and Ordinary Lives - Learning Disability Support,Transitions and Ordinary Lives,CREATIVE SUPPORT LTD,1026475,02/06/2020,3474300,"6,349.52",0.00,N/A,N/A
Learning Disability Support,Transitions and Ordinary Lives - Learning Disability Support,Transitions and Ordinary Lives,CREATIVE SUPPORT LTD,1026475,02/06/2020,3473680,"6,349.52",0.00,N/A,N/A
Learning Disability Support,Transitions and Ordinary Lives - Learning Disability Support,Transitions and Ordinary Lives,CREATIVE SUPPORT LTD,1026475,02/06/2020,3473576,"8,029.76",0.00,N/A,N/A
Learning Disability Support,Transitions and Ordinary Lives - Learning Disability Support,Transitions and Ordinary Lives,CREATIVE SUPPORT LTD,1026475,02/06/2020,3473682,"6,708.52",0.00,N/A,N/A
Learning Disability Support,Transitions and Ordinary Lives - Learning Disability Support,Transitions and Ordinary Lives,CREATIVE SUPPORT LTD,1026475,02/06/2020,3473789,"1,883.16",0.00,N/A,N/A
Learning Disability Support,Transitions and Ordinary Lives - Learning Disability Support,Transitions and Ordinary Lives,CREATIVE SUPPORT LTD,1026475,02/06/2020,3473795,"6,708.52",0.00,N/A,N/A
Learning Disability Support,Transitions and Ordinary Lives - Learning Disability Support,Transitions and Ordinary Lives,CREATIVE SUPPORT LTD,1026475,02/06/2020,3473796,"8,029.76",0.00,N/A,N/A
Learning Disability Support,Transitions and Ordinary Lives - Learning Disability Support,Transitions and Ordinary Lives,CREATIVE SUPPORT LTD,1026475,02/06/2020,3474043,"2,007.44",0.00,N/A,N/A
Learning Disability Support,Transitions and Ordinary Lives - Learning Disability Support,Transitions and Ordinary Lives,CREATIVE SUPPORT LTD,1026475,02/06/2020,3474047,"1,883.16",0.00,N/A,N/A
Learning Disability Support,Transitions and Ordinary Lives - Learning Disability Support,Transitions and Ordinary Lives,CREATIVE SUPPORT LTD,1026475,02/06/2020,3473915,"1,677.13",0.00,N/A,N/A
Learning Disability Support,Transitions and Ordinary Lives - Learning Disability Support,Transitions and Ordinary Lives,CREATIVE SUPPORT LTD,1026475,02/06/2020,3474425,"6,708.52",0.00,N/A,N/A
Learning Disability Support,Transitions and Ordinary Lives - Learning Disability Support,Transitions and Ordinary Lives,CREATIVE SUPPORT LTD,1026475,02/06/2020,3473671,"6,349.52",0.00,N/A,N/A
Learning Disability Support,Transitions and Ordinary Lives - Learning Disability Support,Transitions and Ordinary Lives,CREATIVE SUPPORT LTD,1026475,02/06/2020,3474169,"8,029.76",0.00,N/A,N/A
Learning Disability Support,Transitions and Ordinary Lives - Learning Disability Support,Transitions and Ordinary Lives,CREATIVE SUPPORT LTD,1026475,02/06/2020,3473785,"1,587.38",0.00,N/A,N/A
Learning Disability Support,Transitions and Ordinary Lives - Learning Disability Support,Transitions and Ordinary Lives,CREATIVE SUPPORT LTD,1026475,02/06/2020,3473799,"1,883.16",0.00,N/A,N/A
Learning Disability Support,Transitions and Ordinary Lives - Learning Disability Support,Transitions and Ordinary Lives,CREATIVE SUPPORT LTD,1026475,02/06/2020,3473563,919.12,0.00,N/A,N/A
Learning Disability Support,Transitions and Ordinary Lives - Learning Disability Support,Transitions and Ordinary Lives,CREATIVE SUPPORT LTD,1026475,02/06/2020,3474435,919.12,0.00,N/A,N/A
Learning Disability Support,Transitions and Ordinary Lives - Learning Disability Support,Transitions and Ordinary Lives,CREATIVE SUPPORT LTD,1026475,02/06/2020,3473800,919.12,0.00,N/A,N/A
Learning Disability Support,Transitions and Ordinary Lives - Learning Disability Support,Transitions and Ordinary Lives,CREATIVE SUPPORT LTD,1026475,02/06/2020,3473562,"1,136.40",0.00,N/A,N/A
Learning Disability Support,Transitions and Ordinary Lives - Learning Disability Support,Transitions and Ordinary Lives,CREATIVE SUPPORT LTD,1026475,02/06/2020,3473574,"1,136.40",0.00,N/A,N/A
Learning Disability Support,Transitions and Ordinary Lives - Learning Disability Support,Transitions and Ordinary Lives,CREATIVE SUPPORT LTD,1026475,02/06/2020,3473577,"1,136.40",0.00,N/A,N/A
Integrated Services,Agency Placements,Non-Schools,CREDO CARE LTD,1109505,02/06/2020,3474585,"3,210.00",0.00,N/A,N/A
"Environmental Protection, Licensing, Housing",Environmental Protection,"Communities, Environment & Regulatory Services",CROWFOOT KENNELS LTD,134352,02/06/2020,3477251,"4,090.00",0.00,Communities & Place,Farming Fishing Forestry and Wildlife Co
General,Stores Road Depot & Fleet Management,"Strategic Partnerships, Planning & Streetpride",CTE UK LTD,134389,02/06/2020,3477494,"1,653.56",0.00,Communities & Place,Material Handling and Conditioning and S
Learning Disability Support,Community Support - Learning Disability Support,Community Support,CYGNET LEARNING DISABILITIES MIDLANDS LIMITED,959473,02/06/2020,3475158,"6,468.00",0.00,N/A,N/A
Physical Support,Community Support - Physical Support,Community Support,CYGNET LEARNING DISABILITIES MIDLANDS LIMITED,959473,02/06/2020,3475568,"7,624.12",0.00,N/A,N/A
Physical Support,Community Support - Physical Support,Community Support,CYGNET LEARNING DISABILITIES MIDLANDS LIMITED,959473,02/06/2020,3475487,"5,173.51",0.00,N/A,N/A
Physical Support,Community Support - Physical Support,Community Support,CYGNET LEARNING DISABILITIES MIDLANDS LIMITED,959473,02/06/2020,3475662,"7,624.12",0.00,N/A,N/A
Physical Support,Community Support - Physical Support,Community Support,CYGNET LEARNING DISABILITIES MIDLANDS LIMITED,959473,02/06/2020,3475584,"7,624.12",0.00,N/A,N/A
Physical Support,Community Support - Physical Support,Community Support,CYGNET LEARNING DISABILITIES MIDLANDS LIMITED,959473,02/06/2020,3475488,"7,624.12",0.00,N/A,N/A
Physical Support,Community Support - Physical Support,Community Support,CYGNET LEARNING DISABILITIES MIDLANDS LIMITED,959473,02/06/2020,3475489,544.58,0.00,N/A,N/A
Physical Support,Community Support - Physical Support,Community Support,CYGNET LEARNING DISABILITIES MIDLANDS LIMITED,959473,02/06/2020,3475408,"7,624.12",0.00,N/A,N/A
Physical Support,Community Support - Physical Support,Community Support,CYGNET LEARNING DISABILITIES MIDLANDS LIMITED,959473,02/06/2020,3475409,"7,624.12",0.00,N/A,N/A
Physical Support,Community Support - Physical Support,Community Support,CYGNET LEARNING DISABILITIES MIDLANDS LIMITED,959473,02/06/2020,3475410,"7,624.12",0.00,N/A,N/A
Physical Support,Community Support - Physical Support,Community Support,CYGNET LEARNING DISABILITIES MIDLANDS LIMITED,959473,02/06/2020,3475428,"7,624.12",0.00,N/A,N/A
Physical Support,Community Support - Physical Support,Community Support,CYGNET LEARNING DISABILITIES MIDLANDS LIMITED,959473,02/06/2020,3475239,"7,624.12",0.00,N/A,N/A
Physical Support,Community Support - Physical Support,Community Support,CYGNET LEARNING DISABILITIES MIDLANDS LIMITED,959473,02/06/2020,3475317,"7,079.54",0.00,N/A,N/A
Learning Disability Support,Transitions and Ordinary Lives - Learning Disability Support,Transitions and Ordinary Lives,CYGNET LEARNING DISABILITIES MIDLANDS LIMITED,959473,02/06/2020,3475503,"9,340.00",0.00,N/A,N/A
Learning Disability Support,Transitions and Ordinary Lives - Learning Disability Support,Transitions and Ordinary Lives,CYGNET LEARNING DISABILITIES MIDLANDS LIMITED,959473,02/06/2020,3475429,"4,827.92",0.00,N/A,N/A
Learning Disability Support,Transitions and Ordinary Lives - Learning Disability Support,Transitions and Ordinary Lives,CYGNET NW LTD,920472,02/06/2020,3475827,"6,175.92",0.00,N/A,N/A
Mental Health Support,Mental Health - Mental Health Support,Mental Health,DALE TOPCO LTD,624443,02/06/2020,3475659,"1,217.60",0.00,N/A,N/A
Mental Health Support,Mental Health - Mental Health Support,Mental Health,DALE TOPCO LTD,624443,02/06/2020,3475566,"1,360.00",0.00,N/A,N/A
Mental Health Support,Mental Health - Mental Health Support,Mental Health,DALE TOPCO LTD,624443,02/06/2020,3475238,"1,194.29",0.00,N/A,N/A
Retained Housing Revenue Account,Retained Housing Revenue Account,"Regeneration, Property & Housing",DERBY CITY COUNCIL C/TAX,1036478,02/06/2020,3472646,"2,370.60",0.00,N/A,N/A
Early Help & Children�s Safeguarding,Integrated and Safeguarding Services Locality 3/4,Non-Schools,DERBY GUESTHOUSE LTD,255426,02/06/2020,3477357,700.00,0.00,N/A,N/A
Property Design & Maintenance,Building - Repairs & Maintenance,"Regeneration, Property & Housing",DERBY HOMES LTD,1076486,02/06/2020,3476123,"1,100,000.00",0.00,N/A,N/A
Strategic Housing,Housing and Advice,"Regeneration, Property & Housing",DERBY HOMES LTD,1078471,02/06/2020,3477241,"303,500.00",0.00,N/A,N/A
Strategic Housing,Housing and Advice,"Regeneration, Property & Housing",DERBY HOMES LTD,1078471,02/06/2020,3477240,"365,706.00",0.00,N/A,N/A
Strategic Housing,Housing and Advice,"Regeneration, Property & Housing",DERBY HOMES LTD,1078471,02/06/2020,3477222,"289,800.00",0.00,N/A,N/A
Strategic Housing,Housing and Advice,"Regeneration, Property & Housing",DERBY HOMES LTD,1078471,02/06/2020,3477220,"343,000.00",0.00,N/A,N/A
Strategic Housing,Housing and Advice,"Regeneration, Property & Housing",DERBY HOMES LTD,1078471,02/06/2020,3477218,"525,558.00",0.00,N/A,N/A
Housing Revenue Account,Housing Revenue Account,"Regeneration, Property & Housing",DERBY HOMES LTD,1078471,02/06/2020,3464041,"10,560,000.00",0.00,N/A,N/A
Housing Revenue Account,Housing Revenue Account,"Regeneration, Property & Housing",DERBY HOMES LTD,1078471,02/06/2020,3464041,"16,938,000.00",0.00,N/A,N/A
Retained Housing Revenue Account,Retained Housing Revenue Account,"Regeneration, Property & Housing",DERBY HOMES LTD,1078471,02/06/2020,3464041,"30,059.00",0.00,N/A,N/A
Retained Housing Revenue Account,Retained Housing Revenue Account,"Regeneration, Property & Housing",DERBY HOMES LTD,1078471,02/06/2020,3464041,"54,604.00",0.00,N/A,N/A
Retained Housing Revenue Account,Retained Housing Revenue Account,"Regeneration, Property & Housing",DERBY HOMES LTD,1078471,02/06/2020,3464041,"69,000.00",0.00,N/A,N/A
Retained Housing Revenue Account,Retained Housing Revenue Account,"Regeneration, Property & Housing",DERBY HOMES LTD,1078471,02/06/2020,3464041,"295,000.00",0.00,N/A,N/A
Retained Housing Revenue Account,Retained Housing Revenue Account,"Regeneration, Property & Housing",DERBY HOMES LTD,1078471,02/06/2020,3464041,"1,036,000.00",0.00,N/A,N/A
Retained Housing Revenue Account,Retained Housing Revenue Account,"Regeneration, Property & Housing",DERBY HOMES LTD,1078471,02/06/2020,3464041,"191,753.00",0.00,N/A,N/A
Retained Housing Revenue Account,Retained Housing Revenue Account,"Regeneration, Property & Housing",DERBY HOMES LTD,1078471,02/06/2020,3464041,"25,207.00",0.00,N/A,N/A
Non Delegated Schools Budget,Non Delegated School Expenditure,Schools Block,DERBY PRIDE ACADEMY,144370,02/06/2020,3475018,"10,103.03",0.00,N/A,N/A
Learning Disability Support,Transitions and Ordinary Lives - Learning Disability Support,Transitions and Ordinary Lives,DERBY ROAD CARE HOME,10579,02/06/2020,3475454,"8,790.88",0.00,N/A,N/A
Learning Disability Support,Transitions and Ordinary Lives - Learning Disability Support,Transitions and Ordinary Lives,DERBY ROAD CARE HOME,10579,02/06/2020,3475533,"5,875.84",0.00,N/A,N/A
Learning Disability Support,Transitions and Ordinary Lives - Learning Disability Support,Transitions and Ordinary Lives,DERBY ROAD CARE HOME,10579,02/06/2020,3475107,"8,556.68",0.00,N/A,N/A
General,Stores Road Depot & Fleet Management,"Strategic Partnerships, Planning & Streetpride",DERBY SIGN AND GRAPHICS LTD,256425,02/06/2020,3477430,504.00,0.00,Communities & Place,Published Products
Learning Disability Support,Community Support - Learning Disability Support,Community Support,DERBYSHIRE CARE SERVICES,388459,02/06/2020,3473538,608.00,0.00,N/A,N/A
Learning Disability Support,Community Support - Learning Disability Support,Community Support,DERBYSHIRE CARE SERVICES,388459,02/06/2020,3473539,801.32,0.00,N/A,N/A
Learning Disability Support,Community Support - Learning Disability Support,Community Support,DERBYSHIRE CARE SERVICES,388459,02/06/2020,3473540,"1,062.32",0.00,N/A,N/A
Mental Health Support,Community Support - Mental Health Support,Community Support,DERBYSHIRE CARE SERVICES,388459,02/06/2020,3473543,527.32,0.00,N/A,N/A
Mental Health Support,Community Support - Mental Health Support,Community Support,DERBYSHIRE CARE SERVICES,388459,02/06/2020,3473544,572.16,0.00,N/A,N/A
Mental Health Support,Community Support - Mental Health Support,Community Support,DERBYSHIRE CARE SERVICES,388459,02/06/2020,3473545,"1,042.04",0.00,N/A,N/A
Mental Health Support,Community Support - Mental Health Support,Community Support,DERBYSHIRE CARE SERVICES,388459,02/06/2020,3474275,"1,042.04",0.00,N/A,N/A
Physical Support,Community Support - Physical Support,Community Support,DERBYSHIRE CARE SERVICES,388459,02/06/2020,3473590,560.06,0.00,N/A,N/A
Physical Support,Community Support - Physical Support,Community Support,DERBYSHIRE CARE SERVICES,388459,02/06/2020,3473591,679.44,0.00,N/A,N/A
Physical Support,Community Support - Physical Support,Community Support,DERBYSHIRE CARE SERVICES,388459,02/06/2020,3473691,891.48,0.00,N/A,N/A
Physical Support,Community Support - Physical Support,Community Support,DERBYSHIRE CARE SERVICES,388459,02/06/2020,3473951,737.60,0.00,N/A,N/A
Physical Support,Community Support - Physical Support,Community Support,DERBYSHIRE CARE SERVICES,388459,02/06/2020,3473952,823.92,0.00,N/A,N/A
Physical Support,Community Support - Physical Support,Community Support,DERBYSHIRE CARE SERVICES,388459,02/06/2020,3473953,937.08,0.00,N/A,N/A
Physical Support,Community Support - Physical Support,Community Support,DERBYSHIRE CARE SERVICES,388459,02/06/2020,3474312,887.72,0.00,N/A,N/A
Physical Support,Community Support - Physical Support,Community Support,DERBYSHIRE CARE SERVICES,388459,02/06/2020,3474060,680.80,0.00,N/A,N/A
Physical Support,Community Support - Physical Support,Community Support,DERBYSHIRE CARE SERVICES,388459,02/06/2020,3474061,737.16,0.00,N/A,N/A
Physical Support,Community Support - Physical Support,Community Support,DERBYSHIRE CARE SERVICES,388459,02/06/2020,3474062,823.92,0.00,N/A,N/A
Physical Support,Community Support - Physical Support,Community Support,DERBYSHIRE CARE SERVICES,388459,02/06/2020,3474063,887.72,0.00,N/A,N/A
Physical Support,Community Support - Physical Support,Community Support,DERBYSHIRE CARE SERVICES,388459,02/06/2020,3474310,572.16,0.00,N/A,N/A
Physical Support,Community Support - Physical Support,Community Support,DERBYSHIRE CARE SERVICES,388459,02/06/2020,3474311,738.01,0.00,N/A,N/A
Physical Support,Community Support - Physical Support,Community Support,DERBYSHIRE CARE SERVICES,388459,02/06/2020,3474445,679.44,0.00,N/A,N/A
Physical Support,Community Support - Physical Support,Community Support,DERBYSHIRE CARE SERVICES,388459,02/06/2020,3474446,897.32,0.00,N/A,N/A
Physical Support,Community Support - Physical Support,Community Support,DERBYSHIRE CARE SERVICES,388459,02/06/2020,3474447,"1,177.16",0.00,N/A,N/A
Physical Support,Community Support - Physical Support,Community Support,DERBYSHIRE CARE SERVICES,388459,02/06/2020,3474189,897.32,0.00,N/A,N/A
Physical Support,Community Support - Physical Support,Community Support,DERBYSHIRE CARE SERVICES,388459,02/06/2020,3474190,"1,021.72",0.00,N/A,N/A
Physical Support,Community Support - Physical Support,Community Support,DERBYSHIRE CARE SERVICES,388459,02/06/2020,3474304,504.60,0.00,N/A,N/A
Physical Support,Community Support - Physical Support,Community Support,DERBYSHIRE CARE SERVICES,388459,02/06/2020,3474056,726.48,0.00,N/A,N/A
Physical Support,Community Support - Physical Support,Community Support,DERBYSHIRE CARE SERVICES,388459,02/06/2020,3473945,897.32,0.00,N/A,N/A
Physical Support,Community Support - Physical Support,Community Support,DERBYSHIRE CARE SERVICES,388459,02/06/2020,3473686,680.80,0.00,N/A,N/A
Physical Support,Community Support - Physical Support,Community Support,DERBYSHIRE CARE SERVICES,388459,02/06/2020,3473582,726.48,0.00,N/A,N/A
Physical Support,Community Support - Physical Support,Community Support,DERBYSHIRE CARE SERVICES,388459,02/06/2020,3474386,739.16,0.00,N/A,N/A
Physical Support,Community Support - Physical Support,Community Support,DERBYSHIRE CARE SERVICES,388459,02/06/2020,3474387,887.72,0.00,N/A,N/A
Physical Support,Community Support - Physical Support,Community Support,DERBYSHIRE CARE SERVICES,388459,02/06/2020,3474388,962.36,0.00,N/A,N/A
Physical Support,Community Support - Physical Support,Community Support,DERBYSHIRE CARE SERVICES,388459,02/06/2020,3474389,"1,042.04",0.00,N/A,N/A
Physical Support,Community Support - Physical Support,Community Support,DERBYSHIRE CARE SERVICES,388459,02/06/2020,3474390,"1,042.04",0.00,N/A,N/A
Physical Support,Community Support - Physical Support,Community Support,DERBYSHIRE CARE SERVICES,388459,02/06/2020,3474391,"1,139.48",0.00,N/A,N/A
Physical Support,Community Support - Physical Support,Community Support,DERBYSHIRE CARE SERVICES,388459,02/06/2020,3474263,504.60,0.00,N/A,N/A
Physical Support,Community Support - Physical Support,Community Support,DERBYSHIRE CARE SERVICES,388459,02/06/2020,3474264,649.32,0.00,N/A,N/A
Physical Support,Community Support - Physical Support,Community Support,DERBYSHIRE CARE SERVICES,388459,02/06/2020,3474265,655.16,0.00,N/A,N/A
Physical Support,Community Support - Physical Support,Community Support,DERBYSHIRE CARE SERVICES,388459,02/06/2020,3474266,797.48,0.00,N/A,N/A
Physical Support,Community Support - Physical Support,Community Support,DERBYSHIRE CARE SERVICES,388459,02/06/2020,3474267,"1,042.04",0.00,N/A,N/A
Physical Support,Community Support - Physical Support,Community Support,DERBYSHIRE CARE SERVICES,388459,02/06/2020,3474268,"1,066.08",0.00,N/A,N/A
Physical Support,Community Support - Physical Support,Community Support,DERBYSHIRE CARE SERVICES,388459,02/06/2020,3473903,"1,139.48",0.00,N/A,N/A
Physical Support,Community Support - Physical Support,Community Support,DERBYSHIRE CARE SERVICES,388459,02/06/2020,3474383,572.16,0.00,N/A,N/A
Physical Support,Community Support - Physical Support,Community Support,DERBYSHIRE CARE SERVICES,388459,02/06/2020,3474140,572.16,0.00,N/A,N/A
Physical Support,Community Support - Physical Support,Community Support,DERBYSHIRE CARE SERVICES,388459,02/06/2020,3474141,572.16,0.00,N/A,N/A
Physical Support,Community Support - Physical Support,Community Support,DERBYSHIRE CARE SERVICES,388459,02/06/2020,3474142,680.80,0.00,N/A,N/A
Physical Support,Community Support - Physical Support,Community Support,DERBYSHIRE CARE SERVICES,388459,02/06/2020,3474143,802.96,0.00,N/A,N/A
Physical Support,Community Support - Physical Support,Community Support,DERBYSHIRE CARE SERVICES,388459,02/06/2020,3474144,864.92,0.00,N/A,N/A
Physical Support,Community Support - Physical Support,Community Support,DERBYSHIRE CARE SERVICES,388459,02/06/2020,3474145,933.64,0.00,N/A,N/A
Physical Support,Community Support - Physical Support,Community Support,DERBYSHIRE CARE SERVICES,388459,02/06/2020,3474146,"1,067.16",0.00,N/A,N/A
Physical Support,Community Support - Physical Support,Community Support,DERBYSHIRE CARE SERVICES,388459,02/06/2020,3474147,"1,139.48",0.00,N/A,N/A
Physical Support,Community Support - Physical Support,Community Support,DERBYSHIRE CARE SERVICES,388459,02/06/2020,3474148,"1,185.12",0.00,N/A,N/A
Physical Support,Community Support - Physical Support,Community Support,DERBYSHIRE CARE SERVICES,388459,02/06/2020,3474149,"1,238.52",0.00,N/A,N/A
Physical Support,Community Support - Physical Support,Community Support,DERBYSHIRE CARE SERVICES,388459,02/06/2020,3474269,"1,139.48",0.00,N/A,N/A
Physical Support,Community Support - Physical Support,Community Support,DERBYSHIRE CARE SERVICES,388459,02/06/2020,3474270,"1,142.16",0.00,N/A,N/A
Physical Support,Community Support - Physical Support,Community Support,DERBYSHIRE CARE SERVICES,388459,02/06/2020,3474385,737.16,0.00,N/A,N/A
Physical Support,Community Support - Physical Support,Community Support,DERBYSHIRE CARE SERVICES,388459,02/06/2020,3474384,649.32,0.00,N/A,N/A
Physical Support,Community Support - Physical Support,Community Support,DERBYSHIRE CARE SERVICES,388459,02/06/2020,3473773,"1,066.08",0.00,N/A,N/A
Physical Support,Community Support - Physical Support,Community Support,DERBYSHIRE CARE SERVICES,388459,02/06/2020,3473646,887.72,0.00,N/A,N/A
Physical Support,Community Support - Physical Support,Community Support,DERBYSHIRE CARE SERVICES,388459,02/06/2020,3473647,"1,142.16",0.00,N/A,N/A
Physical Support,Community Support - Physical Support,Community Support,DERBYSHIRE CARE SERVICES,388459,02/06/2020,3473648,"1,206.96",0.00,N/A,N/A
Physical Support,Community Support - Physical Support,Community Support,DERBYSHIRE CARE SERVICES,388459,02/06/2020,3473644,572.16,0.00,N/A,N/A
Physical Support,Community Support - Physical Support,Community Support,DERBYSHIRE CARE SERVICES,388459,02/06/2020,3473645,572.16,0.00,N/A,N/A
Physical Support,Community Support - Physical Support,Community Support,DERBYSHIRE CARE SERVICES,388459,02/06/2020,3473527,529.92,0.00,N/A,N/A
Physical Support,Community Support - Physical Support,Community Support,DERBYSHIRE CARE SERVICES,388459,02/06/2020,3473528,557.72,0.00,N/A,N/A
Physical Support,Community Support - Physical Support,Community Support,DERBYSHIRE CARE SERVICES,388459,02/06/2020,3473529,572.16,0.00,N/A,N/A
Physical Support,Community Support - Physical Support,Community Support,DERBYSHIRE CARE SERVICES,388459,02/06/2020,3473530,655.16,0.00,N/A,N/A
Physical Support,Community Support - Physical Support,Community Support,DERBYSHIRE CARE SERVICES,388459,02/06/2020,3473531,823.92,0.00,N/A,N/A
Physical Support,Community Support - Physical Support,Community Support,DERBYSHIRE CARE SERVICES,388459,02/06/2020,3473532,887.72,0.00,N/A,N/A
Physical Support,Community Support - Physical Support,Community Support,DERBYSHIRE CARE SERVICES,388459,02/06/2020,3473774,"1,139.48",0.00,N/A,N/A
Physical Support,Community Support - Physical Support,Community Support,DERBYSHIRE CARE SERVICES,388459,02/06/2020,3474035,"1,280.15",0.00,N/A,N/A
Physical Support,Community Support - Physical Support,Community Support,DERBYSHIRE CARE SERVICES,388459,02/06/2020,3474033,669.60,0.00,N/A,N/A
Physical Support,Community Support - Physical Support,Community Support,DERBYSHIRE CARE SERVICES,388459,02/06/2020,3474034,"1,206.96",0.00,N/A,N/A
Physical Support,Community Support - Physical Support,Community Support,DERBYSHIRE CARE SERVICES,388459,02/06/2020,3473902,"1,066.08",0.00,N/A,N/A
Physical Support,Community Support - Physical Support,Community Support,DERBYSHIRE CARE SERVICES,388459,02/06/2020,3473536,"1,139.48",0.00,N/A,N/A
Physical Support,Community Support - Physical Support,Community Support,DERBYSHIRE CARE SERVICES,388459,02/06/2020,3473534,895.32,0.00,N/A,N/A
Physical Support,Community Support - Physical Support,Community Support,DERBYSHIRE CARE SERVICES,388459,02/06/2020,3473535,"1,139.48",0.00,N/A,N/A
Physical Support,Community Support - Physical Support,Community Support,DERBYSHIRE CARE SERVICES,388459,02/06/2020,3474452,518.00,0.00,N/A,N/A
Physical Support,Community Support - Physical Support,Community Support,DERBYSHIRE CARE SERVICES,388459,02/06/2020,3474453,572.16,0.00,N/A,N/A
Physical Support,Community Support - Physical Support,Community Support,DERBYSHIRE CARE SERVICES,388459,02/06/2020,3474454,649.32,0.00,N/A,N/A
Physical Support,Community Support - Physical Support,Community Support,DERBYSHIRE CARE SERVICES,388459,02/06/2020,3473698,557.72,0.00,N/A,N/A
Physical Support,Community Support - Physical Support,Community Support,DERBYSHIRE CARE SERVICES,388459,02/06/2020,3473699,737.16,0.00,N/A,N/A
Physical Support,Community Support - Physical Support,Community Support,DERBYSHIRE CARE SERVICES,388459,02/06/2020,3473700,820.16,0.00,N/A,N/A
Physical Support,Community Support - Physical Support,Community Support,DERBYSHIRE CARE SERVICES,388459,02/06/2020,3473701,897.32,0.00,N/A,N/A
Physical Support,Community Support - Physical Support,Community Support,DERBYSHIRE CARE SERVICES,388459,02/06/2020,3473966,555.20,0.00,N/A,N/A
Physical Support,Community Support - Physical Support,Community Support,DERBYSHIRE CARE SERVICES,388459,02/06/2020,3473608,948.52,0.00,N/A,N/A
Physical Support,Community Support - Physical Support,Community Support,DERBYSHIRE CARE SERVICES,388459,02/06/2020,3473609,"1,042.04",0.00,N/A,N/A
Physical Support,Community Support - Physical Support,Community Support,DERBYSHIRE CARE SERVICES,388459,02/06/2020,3474455,862.16,0.00,N/A,N/A
Physical Support,Community Support - Physical Support,Community Support,DERBYSHIRE CARE SERVICES,388459,02/06/2020,3474128,"1,249.92",0.00,N/A,N/A
Physical Support,Community Support - Physical Support,Community Support,DERBYSHIRE CARE SERVICES,388459,02/06/2020,3473702,"1,023.16",0.00,N/A,N/A
Physical Support,Community Support - Physical Support,Community Support,DERBYSHIRE CARE SERVICES,388459,02/06/2020,3473830,"1,042.04",0.00,N/A,N/A
Physical Support,Community Support - Physical Support,Community Support,DERBYSHIRE CARE SERVICES,388459,02/06/2020,3473821,518.00,0.00,N/A,N/A
Physical Support,Community Support - Physical Support,Community Support,DERBYSHIRE CARE SERVICES,388459,02/06/2020,3473822,572.16,0.00,N/A,N/A
Physical Support,Community Support - Physical Support,Community Support,DERBYSHIRE CARE SERVICES,388459,02/06/2020,3473823,645.25,0.00,N/A,N/A
Physical Support,Community Support - Physical Support,Community Support,DERBYSHIRE CARE SERVICES,388459,02/06/2020,3473824,675.24,0.00,N/A,N/A
Physical Support,Community Support - Physical Support,Community Support,DERBYSHIRE CARE SERVICES,388459,02/06/2020,3473825,726.48,0.00,N/A,N/A
Physical Support,Community Support - Physical Support,Community Support,DERBYSHIRE CARE SERVICES,388459,02/06/2020,3473826,797.36,0.00,N/A,N/A
Physical Support,Community Support - Physical Support,Community Support,DERBYSHIRE CARE SERVICES,388459,02/06/2020,3473827,954.60,0.00,N/A,N/A
Physical Support,Community Support - Physical Support,Community Support,DERBYSHIRE CARE SERVICES,388459,02/06/2020,3473828,985.16,0.00,N/A,N/A
Physical Support,Community Support - Physical Support,Community Support,DERBYSHIRE CARE SERVICES,388459,02/06/2020,3473829,"1,042.04",0.00,N/A,N/A
Physical Support,Community Support - Physical Support,Community Support,DERBYSHIRE CARE SERVICES,388459,02/06/2020,3473894,"1,185.08",0.00,N/A,N/A
Physical Support,Community Support - Physical Support,Community Support,DERBYSHIRE CARE SERVICES,388459,02/06/2020,3473895,"1,258.80",0.00,N/A,N/A
Physical Support,Community Support - Physical Support,Community Support,DERBYSHIRE CARE SERVICES,388459,02/06/2020,3473965,504.60,0.00,N/A,N/A
Physical Support,Community Support - Physical Support,Community Support,DERBYSHIRE CARE SERVICES,388459,02/06/2020,3474456,905.40,0.00,N/A,N/A
Physical Support,Community Support - Physical Support,Community Support,DERBYSHIRE CARE SERVICES,388459,02/06/2020,3474457,985.16,0.00,N/A,N/A
Physical Support,Community Support - Physical Support,Community Support,DERBYSHIRE CARE SERVICES,388459,02/06/2020,3474378,"1,139.48",0.00,N/A,N/A
Physical Support,Community Support - Physical Support,Community Support,DERBYSHIRE CARE SERVICES,388459,02/06/2020,3474321,762.76,0.00,N/A,N/A
Physical Support,Community Support - Physical Support,Community Support,DERBYSHIRE CARE SERVICES,388459,02/06/2020,3474322,869.44,0.00,N/A,N/A
Physical Support,Community Support - Physical Support,Community Support,DERBYSHIRE CARE SERVICES,388459,02/06/2020,3474323,"1,042.04",0.00,N/A,N/A
Physical Support,Community Support - Physical Support,Community Support,DERBYSHIRE CARE SERVICES,388459,02/06/2020,3473518,"1,042.04",0.00,N/A,N/A
Physical Support,Community Support - Physical Support,Community Support,DERBYSHIRE CARE SERVICES,388459,02/06/2020,3473519,"1,066.08",0.00,N/A,N/A
Physical Support,Community Support - Physical Support,Community Support,DERBYSHIRE CARE SERVICES,388459,02/06/2020,3473520,"1,139.48",0.00,N/A,N/A
Physical Support,Community Support - Physical Support,Community Support,DERBYSHIRE CARE SERVICES,388459,02/06/2020,3473521,"1,214.52",0.00,N/A,N/A
Physical Support,Community Support - Physical Support,Community Support,DERBYSHIRE CARE SERVICES,388459,02/06/2020,3474200,891.48,0.00,N/A,N/A
Physical Support,Community Support - Physical Support,Community Support,DERBYSHIRE CARE SERVICES,388459,02/06/2020,3474201,948.52,0.00,N/A,N/A
Physical Support,Community Support - Physical Support,Community Support,DERBYSHIRE CARE SERVICES,388459,02/06/2020,3473602,604.88,0.00,N/A,N/A
Physical Support,Community Support - Physical Support,Community Support,DERBYSHIRE CARE SERVICES,388459,02/06/2020,3473607,872.08,0.00,N/A,N/A
Physical Support,Community Support - Physical Support,Community Support,DERBYSHIRE CARE SERVICES,388459,02/06/2020,3473603,645.25,0.00,N/A,N/A
Physical Support,Community Support - Physical Support,Community Support,DERBYSHIRE CARE SERVICES,388459,02/06/2020,3473604,651.00,0.00,N/A,N/A
Physical Support,Community Support - Physical Support,Community Support,DERBYSHIRE CARE SERVICES,388459,02/06/2020,3474319,557.72,0.00,N/A,N/A
Physical Support,Community Support - Physical Support,Community Support,DERBYSHIRE CARE SERVICES,388459,02/06/2020,3474320,613.26,0.00,N/A,N/A
Physical Support,Community Support - Physical Support,Community Support,DERBYSHIRE CARE SERVICES,388459,02/06/2020,3474198,760.72,0.00,N/A,N/A
Physical Support,Community Support - Physical Support,Community Support,DERBYSHIRE CARE SERVICES,388459,02/06/2020,3474199,787.76,0.00,N/A,N/A
Physical Support,Community Support - Physical Support,Community Support,DERBYSHIRE CARE SERVICES,388459,02/06/2020,3474197,504.60,0.00,N/A,N/A
Physical Support,Community Support - Physical Support,Community Support,DERBYSHIRE CARE SERVICES,388459,02/06/2020,3473769,"1,185.08",0.00,N/A,N/A
Physical Support,Community Support - Physical Support,Community Support,DERBYSHIRE CARE SERVICES,388459,02/06/2020,3473770,"1,214.52",0.00,N/A,N/A
Physical Support,Community Support - Physical Support,Community Support,DERBYSHIRE CARE SERVICES,388459,02/06/2020,3473767,"1,042.04",0.00,N/A,N/A
Physical Support,Community Support - Physical Support,Community Support,DERBYSHIRE CARE SERVICES,388459,02/06/2020,3473768,"1,066.08",0.00,N/A,N/A
Physical Support,Community Support - Physical Support,Community Support,DERBYSHIRE CARE SERVICES,388459,02/06/2020,3474029,"1,126.88",0.00,N/A,N/A
Physical Support,Community Support - Physical Support,Community Support,DERBYSHIRE CARE SERVICES,388459,02/06/2020,3473605,737.16,0.00,N/A,N/A
Physical Support,Community Support - Physical Support,Community Support,DERBYSHIRE CARE SERVICES,388459,02/06/2020,3473606,787.76,0.00,N/A,N/A
Physical Support,Community Support - Physical Support,Community Support,DERBYSHIRE CARE SERVICES,388459,02/06/2020,3474071,604.88,0.00,N/A,N/A
Physical Support,Community Support - Physical Support,Community Support,DERBYSHIRE CARE SERVICES,388459,02/06/2020,3474072,710.12,0.00,N/A,N/A
Physical Support,Community Support - Physical Support,Community Support,DERBYSHIRE CARE SERVICES,388459,02/06/2020,3474073,958.12,0.00,N/A,N/A
Physical Support,Community Support - Physical Support,Community Support,DERBYSHIRE CARE SERVICES,388459,02/06/2020,3474074,"1,036.49",0.00,N/A,N/A
Physical Support,Community Support - Physical Support,Community Support,DERBYSHIRE CARE SERVICES,388459,02/06/2020,3473904,530.10,0.00,N/A,N/A
Physical Support,Community Support - Physical Support,Community Support,DERBYSHIRE CARE SERVICES,388459,02/06/2020,3473649,530.10,0.00,N/A,N/A
Physical Support,Community Support - Physical Support,Community Support,DERBYSHIRE CARE SERVICES,388459,02/06/2020,3474150,"1,139.48",0.00,N/A,N/A
Physical Support,Community Support - Physical Support,Community Support,DERBYSHIRE CARE SERVICES,388459,02/06/2020,3473957,747.95,0.00,N/A,N/A
Physical Support,Community Support - Physical Support,Community Support,DERBYSHIRE CARE SERVICES,388459,02/06/2020,3473593,680.80,0.00,N/A,N/A
Physical Support,Community Support - Physical Support,Community Support,DERBYSHIRE CARE SERVICES,388459,02/06/2020,3473594,"1,504.28",0.00,N/A,N/A
Physical Support,Community Support - Physical Support,Community Support,DERBYSHIRE CARE SERVICES,388459,02/06/2020,3473810,700.96,0.00,N/A,N/A
Physical Support,Community Support - Physical Support,Community Support,DERBYSHIRE CARE SERVICES,388459,02/06/2020,3473811,"1,139.48",0.00,N/A,N/A
Physical Support,Community Support - Physical Support,Community Support,DERBYSHIRE CARE SERVICES,388459,02/06/2020,3473958,823.92,0.00,N/A,N/A
Physical Support,Community Support - Physical Support,Community Support,DERBYSHIRE CARE SERVICES,388459,02/06/2020,3473692,"1,062.32",0.00,N/A,N/A
Physical Support,Community Support - Physical Support,Community Support,DERBYSHIRE CARE SERVICES,388459,02/06/2020,3474356,654.60,0.00,N/A,N/A
Physical Support,Community Support - Physical Support,Community Support,DERBYSHIRE CARE SERVICES,388459,02/06/2020,3473496,571.28,0.00,N/A,N/A
Physical Support,Community Support - Physical Support,Community Support,DERBYSHIRE CARE SERVICES,388459,02/06/2020,3473954,"1,139.48",0.00,N/A,N/A
Physical Support,Community Support - Physical Support,Community Support,DERBYSHIRE CARE SERVICES,388459,02/06/2020,3473809,"1,139.48",0.00,N/A,N/A
Sensory Support,Community Support - Sensory Support,Community Support,DERBYSHIRE CARE SERVICES,388459,02/06/2020,3474151,945.52,0.00,N/A,N/A
Sensory Support,Community Support - Sensory Support,Community Support,DERBYSHIRE CARE SERVICES,388459,02/06/2020,3474392,726.48,0.00,N/A,N/A
Sensory Support,Community Support - Sensory Support,Community Support,DERBYSHIRE CARE SERVICES,388459,02/06/2020,3473537,"1,139.48",0.00,N/A,N/A
Sensory Support,Community Support - Sensory Support,Community Support,DERBYSHIRE CARE SERVICES,388459,02/06/2020,3474271,726.48,0.00,N/A,N/A
Support with Memory and Cognition,Community Support - Support with Memory and Cognition,Community Support,DERBYSHIRE CARE SERVICES,388459,02/06/2020,3473778,985.16,0.00,N/A,N/A
Support with Memory and Cognition,Community Support - Support with Memory and Cognition,Community Support,DERBYSHIRE CARE SERVICES,388459,02/06/2020,3473654,985.16,0.00,N/A,N/A
Support with Memory and Cognition,Community Support - Support with Memory and Cognition,Community Support,DERBYSHIRE CARE SERVICES,388459,02/06/2020,3474398,931.20,0.00,N/A,N/A
Mental Health Support,Mental Health - Mental Health Support,Mental Health,DERBYSHIRE CARE SERVICES,388459,02/06/2020,3473908,753.02,0.00,N/A,N/A
Mental Health Support,Mental Health - Mental Health Support,Mental Health,DERBYSHIRE CARE SERVICES,388459,02/06/2020,3474395,514.72,0.00,N/A,N/A
Mental Health Support,Mental Health - Mental Health Support,Mental Health,DERBYSHIRE CARE SERVICES,388459,02/06/2020,3474396,741.00,0.00,N/A,N/A
Mental Health Support,Mental Health - Mental Health Support,Mental Health,DERBYSHIRE CARE SERVICES,388459,02/06/2020,3473653,741.00,0.00,N/A,N/A
Mental Health Support,Mental Health - Mental Health Support,Mental Health,DERBYSHIRE CARE SERVICES,388459,02/06/2020,3473777,712.24,0.00,N/A,N/A
Mental Health Support,Mental Health - Mental Health Support,Mental Health,DERBYSHIRE CARE SERVICES,388459,02/06/2020,3473541,544.84,0.00,N/A,N/A
Mental Health Support,Mental Health - Mental Health Support,Mental Health,DERBYSHIRE CARE SERVICES,388459,02/06/2020,3473546,848.08,0.00,N/A,N/A
Physical Support,Community Support - Physical Support,Community Support,DERBYSHIRE COMMUNITY CARE LTD,1152473,02/06/2020,3473713,513.44,0.00,N/A,N/A
Physical Support,Community Support - Physical Support,Community Support,DERBYSHIRE COMMUNITY CARE LTD,1152473,02/06/2020,3474331,513.44,0.00,N/A,N/A
Public Health,Sexual Health,Public Health,DERBYSHIRE COMMUNITY HEALTH SERVICES NHS TRUST,109973,02/06/2020,3474985,"184,250.00",0.00,People Services - Adults and Health,Education and Training Services
Public Health,Sexual Health,Public Health,DERBYSHIRE COMMUNITY HEALTH SERVICES NHS TRUST,109973,02/06/2020,3477426,"8,259.71",0.00,People Services - Adults and Health,Education and Training Services
Refuse & Waste Management,Waste Disposal,"Strategic Partnerships, Planning & Streetpride",DERBYSHIRE COUNTY COUNCIL,1042479,02/06/2020,3477433,"786,861.00",0.00,N/A,N/A
Learning Disability Support,Transitions and Ordinary Lives - Learning Disability Support,Transitions and Ordinary Lives,DERBYSHIRE HOME CARE LTD,388460,02/06/2020,3474505,"1,608.40",0.00,N/A,N/A
Learning Disability Support,Transitions and Ordinary Lives - Learning Disability Support,Transitions and Ordinary Lives,DERBYSHIRE HOME CARE LTD,388460,02/06/2020,3474507,"1,160.52",0.00,N/A,N/A
Learning Disability Support,Transitions and Ordinary Lives - Learning Disability Support,Transitions and Ordinary Lives,DERBYSHIRE HOME CARE LTD,388460,02/06/2020,3473986,"6,644.80",0.00,N/A,N/A
Learning Disability Support,Transitions and Ordinary Lives - Learning Disability Support,Transitions and Ordinary Lives,DERBYSHIRE HOME CARE LTD,388460,02/06/2020,3473985,659.61,0.00,N/A,N/A
Learning Disability Support,Transitions and Ordinary Lives - Learning Disability Support,Transitions and Ordinary Lives,DERBYSHIRE HOME CARE LTD,388460,02/06/2020,3474338,"2,726.64",0.00,N/A,N/A
Learning Disability Support,Transitions and Ordinary Lives - Learning Disability Support,Transitions and Ordinary Lives,DERBYSHIRE HOME CARE LTD,388460,02/06/2020,3474212,"4,983.60",0.00,N/A,N/A
Learning Disability Support,Transitions and Ordinary Lives - Learning Disability Support,Transitions and Ordinary Lives,DERBYSHIRE HOME CARE LTD,388460,02/06/2020,3473721,"2,044.98",0.00,N/A,N/A
Learning Disability Support,Transitions and Ordinary Lives - Learning Disability Support,Transitions and Ordinary Lives,DERWENT VIEW RESIDENTIAL HOME,10577,02/06/2020,3475828,"8,593.28",0.00,N/A,N/A
Learning Disability Support,Transitions and Ordinary Lives - Learning Disability Support,Transitions and Ordinary Lives,DERWENT VIEW RESIDENTIAL HOME,10577,02/06/2020,3475788,"6,000.00",0.00,N/A,N/A
Learning Disability Support,Transitions and Ordinary Lives - Learning Disability Support,Transitions and Ordinary Lives,DERWENT VIEW RESIDENTIAL HOME,10577,02/06/2020,3475789,"6,820.88",0.00,N/A,N/A
Learning Disability Support,Transitions and Ordinary Lives - Learning Disability Support,Transitions and Ordinary Lives,DERWENT VIEW RESIDENTIAL HOME,10577,02/06/2020,3475750,"7,529.84",0.00,N/A,N/A
Learning Disability Support,Transitions and Ordinary Lives - Learning Disability Support,Transitions and Ordinary Lives,DERWENT VIEW RESIDENTIAL HOME,10577,02/06/2020,3475829,"9,008.28",0.00,N/A,N/A
Physical Support,Community Support - Physical Support,Community Support,DEVONSHIRE COURT,40529,02/06/2020,3475268,"1,842.08",0.00,N/A,N/A
Learning Disability Support,Community Support - Learning Disability Support,Community Support,DIMENSIONS UK LTD,388489,02/06/2020,3474478,"3,223.80",0.00,N/A,N/A
Learning Disability Support,Community Support - Learning Disability Support,Community Support,DIMENSIONS UK LTD,388489,02/06/2020,3474094,"1,870.72",0.00,N/A,N/A
Learning Disability Support,Community Support - Learning Disability Support,Community Support,DIMENSIONS UK LTD,388489,02/06/2020,3474213,"1,064.88",0.00,N/A,N/A
Learning Disability Support,Community Support - Learning Disability Support,Community Support,DIMENSIONS UK LTD,388489,02/06/2020,3473987,"1,708.40",0.00,N/A,N/A
Learning Disability Support,Community Support - Learning Disability Support,Community Support,DIMENSIONS UK LTD,388489,02/06/2020,3474475,"1,036.24",0.00,N/A,N/A
Learning Disability Support,Community Support - Learning Disability Support,Community Support,DIMENSIONS UK LTD,388489,02/06/2020,3474476,"1,985.80",0.00,N/A,N/A
Learning Disability Support,Community Support - Learning Disability Support,Community Support,DIMENSIONS UK LTD,388489,02/06/2020,3474477,"2,100.96",0.00,N/A,N/A
Learning Disability Support,Community Support - Learning Disability Support,Community Support,DIMENSIONS UK LTD,388489,02/06/2020,3474339,921.08,0.00,N/A,N/A
Learning Disability Support,Community Support - Learning Disability Support,Community Support,DIMENSIONS UK LTD,388489,02/06/2020,3474340,"7,596.16",0.00,N/A,N/A
Learning Disability Support,Community Support - Learning Disability Support,Community Support,DIMENSIONS UK LTD,388489,02/06/2020,3473723,"1,093.80",0.00,N/A,N/A
Learning Disability Support,Transitions and Ordinary Lives - Learning Disability Support,Transitions and Ordinary Lives,DIMENSIONS UK LTD,388489,02/06/2020,3473849,"4,882.84",0.00,N/A,N/A
Learning Disability Support,Transitions and Ordinary Lives - Learning Disability Support,Transitions and Ordinary Lives,DIMENSIONS UK LTD,388489,02/06/2020,3473848,"4,334.12",0.00,N/A,N/A
Early Help & Children�s Safeguarding,Integrated and Safeguarding Services Locality 2,Non-Schools,DODDS SOLICITORS LLP,952477,02/06/2020,3477178,622.26,0.00,N/A,N/A
Mental Health Support,Community Support - Mental Health Support,Community Support,DOUGLAS COURT RESIDENTIAL HOME,10578,02/06/2020,3476198,"2,118.48",0.00,N/A,N/A
Mental Health Support,Community Support - Mental Health Support,Community Support,DOUGLAS COURT RESIDENTIAL HOME,10578,02/06/2020,3476154,511.24,0.00,N/A,N/A
Physical Support,Community Support - Physical Support,Community Support,DOUGLAS COURT RESIDENTIAL HOME,10578,02/06/2020,3476139,"2,118.48",0.00,N/A,N/A
Physical Support,Community Support - Physical Support,Community Support,DOUGLAS COURT RESIDENTIAL HOME,10578,02/06/2020,3476186,"2,118.48",0.00,N/A,N/A
Physical Support,Community Support - Physical Support,Community Support,DOUGLAS COURT RESIDENTIAL HOME,10578,02/06/2020,3476193,740.08,0.00,N/A,N/A
Physical Support,Community Support - Physical Support,Community Support,DOUGLAS COURT RESIDENTIAL HOME,10578,02/06/2020,3476194,"2,292.92",0.00,N/A,N/A
Physical Support,Community Support - Physical Support,Community Support,DOUGLAS COURT RESIDENTIAL HOME,10578,02/06/2020,3476195,"2,292.92",0.00,N/A,N/A
Physical Support,Community Support - Physical Support,Community Support,DOUGLAS COURT RESIDENTIAL HOME,10578,02/06/2020,3476168,"2,118.48",0.00,N/A,N/A
Physical Support,Community Support - Physical Support,Community Support,DOUGLAS COURT RESIDENTIAL HOME,10578,02/06/2020,3476240,"1,588.86",0.00,N/A,N/A
Physical Support,Community Support - Physical Support,Community Support,DOUGLAS COURT RESIDENTIAL HOME,10578,02/06/2020,3476241,"2,118.48",0.00,N/A,N/A
Physical Support,Community Support - Physical Support,Community Support,DOUGLAS COURT RESIDENTIAL HOME,10578,02/06/2020,3476167,552.80,0.00,N/A,N/A
Physical Support,Community Support - Physical Support,Community Support,DOUGLAS COURT RESIDENTIAL HOME,10578,02/06/2020,3476138,"2,118.48",0.00,N/A,N/A
Physical Support,Community Support - Physical Support,Community Support,DOUGLAS COURT RESIDENTIAL HOME,10578,02/06/2020,3476228,"2,118.48",0.00,N/A,N/A
Physical Support,Community Support - Physical Support,Community Support,DOUGLAS COURT RESIDENTIAL HOME,10578,02/06/2020,3476152,"2,118.48",0.00,N/A,N/A
Physical Support,Community Support - Physical Support,Community Support,DOUGLAS COURT RESIDENTIAL HOME,10578,02/06/2020,3476229,"2,118.48",0.00,N/A,N/A
Physical Support,Community Support - Physical Support,Community Support,DOUGLAS COURT RESIDENTIAL HOME,10578,02/06/2020,3476196,"2,118.48",0.00,N/A,N/A
Support with Memory and Cognition,Community Support - Support with Memory and Cognition,Community Support,DOUGLAS COURT RESIDENTIAL HOME,10578,02/06/2020,3476217,"2,292.92",0.00,N/A,N/A
Support with Memory and Cognition,Community Support - Support with Memory and Cognition,Community Support,DOUGLAS COURT RESIDENTIAL HOME,10578,02/06/2020,3476244,"2,292.92",0.00,N/A,N/A
Support with Memory and Cognition,Community Support - Support with Memory and Cognition,Community Support,DOUGLAS COURT RESIDENTIAL HOME,10578,02/06/2020,3476225,"1,815.84",0.00,N/A,N/A
Support with Memory and Cognition,Community Support - Support with Memory and Cognition,Community Support,DOUGLAS COURT RESIDENTIAL HOME,10578,02/06/2020,3476149,"2,500.00",0.00,N/A,N/A
Support with Memory and Cognition,Community Support - Support with Memory and Cognition,Community Support,DOUGLAS COURT RESIDENTIAL HOME,10578,02/06/2020,3476185,"2,118.48",0.00,N/A,N/A
Support with Memory and Cognition,Community Support - Support with Memory and Cognition,Community Support,DOUGLAS COURT RESIDENTIAL HOME,10578,02/06/2020,3476191,"2,118.48",0.00,N/A,N/A
Support with Memory and Cognition,Community Support - Support with Memory and Cognition,Community Support,DOUGLAS COURT RESIDENTIAL HOME,10578,02/06/2020,3476164,"1,588.86",0.00,N/A,N/A
Support with Memory and Cognition,Community Support - Support with Memory and Cognition,Community Support,DOUGLAS COURT RESIDENTIAL HOME,10578,02/06/2020,3476166,"2,118.48",0.00,N/A,N/A
Support with Memory and Cognition,Community Support - Support with Memory and Cognition,Community Support,DOUGLAS COURT RESIDENTIAL HOME,10578,02/06/2020,3476137,"2,292.92",0.00,N/A,N/A
Emergency Planning,Emergency Planning,Commissioning,DOUGLAS COURT RESIDENTIAL HOME,1599,02/06/2020,3477360,"8,386.68",0.00,N/A,N/A
Mental Health Support,Mental Health - Mental Health Support,Mental Health,DOUGLAS COURT RESIDENTIAL HOME,10578,02/06/2020,3476197,"2,206.64",0.00,N/A,N/A
Mental Health Support,Mental Health - Mental Health Support,Mental Health,DOUGLAS COURT RESIDENTIAL HOME,10578,02/06/2020,3476142,"2,118.48",0.00,N/A,N/A
Mental Health Support,Mental Health - Mental Health Support,Mental Health,DOUGLAS COURT RESIDENTIAL HOME,10578,02/06/2020,3476143,"2,292.92",0.00,N/A,N/A
Mental Health Support,Mental Health - Mental Health Support,Mental Health,DOUGLAS COURT RESIDENTIAL HOME,10578,02/06/2020,3476153,597.24,0.00,N/A,N/A
Mental Health Support,Mental Health - Mental Health Support,Mental Health,DOUGLAS COURT RESIDENTIAL HOME,10578,02/06/2020,3476214,529.62,0.00,N/A,N/A
Learning Disability Support,Transitions and Ordinary Lives - Learning Disability Support,Transitions and Ordinary Lives,ELIZABETH FITZROY HOMES,10945,02/06/2020,3475021,"5,786.40",0.00,N/A,N/A
Learning Disability Support,Transitions and Ordinary Lives - Learning Disability Support,Transitions and Ordinary Lives,ELMCARE LTD,552446,02/06/2020,3475578,"3,600.00",0.00,N/A,N/A
Learning Disability Support,Transitions and Ordinary Lives - Learning Disability Support,Transitions and Ordinary Lives,ELMCARE LTD,552446,02/06/2020,3475668,"3,600.00",0.00,N/A,N/A
Learning Disability Support,Transitions and Ordinary Lives - Learning Disability Support,Transitions and Ordinary Lives,ELMCARE LTD,552446,02/06/2020,3475669,"3,600.00",0.00,N/A,N/A
Learning Disability Support,Transitions and Ordinary Lives - Learning Disability Support,Transitions and Ordinary Lives,ELMCARE LTD,552446,02/06/2020,3475496,"3,600.00",0.00,N/A,N/A
Learning Disability Support,Transitions and Ordinary Lives - Learning Disability Support,Transitions and Ordinary Lives,ELMCARE LTD,552446,02/06/2020,3475326,"3,600.00",0.00,N/A,N/A
Learning Disability Support,Transitions and Ordinary Lives - Learning Disability Support,Transitions and Ordinary Lives,ELMCARE LTD,552446,02/06/2020,3475425,"3,600.00",0.00,N/A,N/A
Learning Disability Support,Transitions and Ordinary Lives - Learning Disability Support,Transitions and Ordinary Lives,ELMCARE LTD,552446,02/06/2020,3475077,"4,400.00",0.00,N/A,N/A
Learning Disability Support,Transitions and Ordinary Lives - Learning Disability Support,Transitions and Ordinary Lives,ELMCARE LTD,552446,02/06/2020,3475245,"4,881.16",0.00,N/A,N/A
Learning Disability Support,Transitions and Ordinary Lives - Learning Disability Support,Transitions and Ordinary Lives,ELMCARE LTD,552446,02/06/2020,3475246,"4,901.00",0.00,N/A,N/A
Learning Disability Support,Transitions and Ordinary Lives - Learning Disability Support,Transitions and Ordinary Lives,ELMCARE LTD,552446,02/06/2020,3475485,"4,881.16",0.00,N/A,N/A
Learning Disability Support,Transitions and Ordinary Lives - Learning Disability Support,Transitions and Ordinary Lives,ELMCARE LTD,552446,02/06/2020,3475065,"4,881.16",0.00,N/A,N/A
Learning Disability Support,Transitions and Ordinary Lives - Learning Disability Support,Transitions and Ordinary Lives,ELMCARE LTD,552446,02/06/2020,3475658,"4,881.16",0.00,N/A,N/A
Learning Disability Support,Transitions and Ordinary Lives - Learning Disability Support,Transitions and Ordinary Lives,ELMCARE LTD,552446,02/06/2020,3475406,"4,881.16",0.00,N/A,N/A
Learning Disability Support,Transitions and Ordinary Lives - Learning Disability Support,Transitions and Ordinary Lives,ELMCARE LTD,552446,02/06/2020,3475492,"4,881.16",0.00,N/A,N/A
Learning Disability Support,Transitions and Ordinary Lives - Learning Disability Support,Transitions and Ordinary Lives,ELMCARE LTD,552446,02/06/2020,3475494,"4,550.93",0.00,N/A,N/A
Learning Disability Support,Transitions and Ordinary Lives - Learning Disability Support,Transitions and Ordinary Lives,ELMCARE LTD,552446,02/06/2020,3475579,"4,800.00",0.00,N/A,N/A
Learning Disability Support,Transitions and Ordinary Lives - Learning Disability Support,Transitions and Ordinary Lives,ELMCARE LTD,552446,02/06/2020,3475580,"4,901.00",0.00,N/A,N/A
Learning Disability Support,Transitions and Ordinary Lives - Learning Disability Support,Transitions and Ordinary Lives,ELMCARE LTD,552446,02/06/2020,3475068,"4,881.16",0.00,N/A,N/A
Learning Disability Support,Transitions and Ordinary Lives - Learning Disability Support,Transitions and Ordinary Lives,ELMCARE LTD,552446,02/06/2020,3475070,"4,881.16",0.00,N/A,N/A
Learning Disability Support,Transitions and Ordinary Lives - Learning Disability Support,Transitions and Ordinary Lives,ELMCARE LTD,552446,02/06/2020,3475072,"4,881.16",0.00,N/A,N/A
Learning Disability Support,Transitions and Ordinary Lives - Learning Disability Support,Transitions and Ordinary Lives,ELMCARE LTD,552446,02/06/2020,3475232,"4,881.16",0.00,N/A,N/A
Learning Disability Support,Transitions and Ordinary Lives - Learning Disability Support,Transitions and Ordinary Lives,ELMCARE LTD,552446,02/06/2020,3475563,"4,881.16",0.00,N/A,N/A
Learning Disability Support,Transitions and Ordinary Lives - Learning Disability Support,Transitions and Ordinary Lives,ELMCARE LTD,552446,02/06/2020,3475318,"4,881.16",0.00,N/A,N/A
Learning Disability Support,Transitions and Ordinary Lives - Learning Disability Support,Transitions and Ordinary Lives,ELMCARE LTD,552446,02/06/2020,3475414,"4,881.16",0.00,N/A,N/A
Learning Disability Support,Transitions and Ordinary Lives - Learning Disability Support,Transitions and Ordinary Lives,ELMCARE LTD,552446,02/06/2020,3475324,"4,873.44",0.00,N/A,N/A
Learning Disability Support,Transitions and Ordinary Lives - Learning Disability Support,Transitions and Ordinary Lives,ELMCARE LTD,552446,02/06/2020,3475404,"4,859.00",0.00,N/A,N/A
Learning Disability Support,Transitions and Ordinary Lives - Learning Disability Support,Transitions and Ordinary Lives,ELMCARE LTD,552446,02/06/2020,3475152,"4,859.00",0.00,N/A,N/A
Learning Disability Support,Transitions and Ordinary Lives - Learning Disability Support,Transitions and Ordinary Lives,ELMCARE LTD,552446,02/06/2020,3475327,"4,525.34",0.00,N/A,N/A
Learning Disability Support,Transitions and Ordinary Lives - Learning Disability Support,Transitions and Ordinary Lives,ELMCARE LTD,552446,02/06/2020,3475329,"4,873.44",0.00,N/A,N/A
Learning Disability Support,Transitions and Ordinary Lives - Learning Disability Support,Transitions and Ordinary Lives,ELMCARE LTD,552446,02/06/2020,3475655,"4,859.00",0.00,N/A,N/A
Learning Disability Support,Transitions and Ordinary Lives - Learning Disability Support,Transitions and Ordinary Lives,ELMCARE LTD,552446,02/06/2020,3475412,"4,859.00",0.00,N/A,N/A
Learning Disability Support,Transitions and Ordinary Lives - Learning Disability Support,Transitions and Ordinary Lives,ELMCARE LTD,552446,02/06/2020,3475417,"4,859.00",0.00,N/A,N/A
Learning Disability Support,Transitions and Ordinary Lives - Learning Disability Support,Transitions and Ordinary Lives,ELMCARE LTD,552446,02/06/2020,3475421,"4,859.00",0.00,N/A,N/A
Learning Disability Support,Transitions and Ordinary Lives - Learning Disability Support,Transitions and Ordinary Lives,ELMCARE LTD,552446,02/06/2020,3475321,"4,859.00",0.00,N/A,N/A
Learning Disability Support,Transitions and Ordinary Lives - Learning Disability Support,Transitions and Ordinary Lives,ELMCARE LTD,552446,02/06/2020,3475243,"4,859.00",0.00,N/A,N/A
Learning Disability Support,Transitions and Ordinary Lives - Learning Disability Support,Transitions and Ordinary Lives,ELMCARE LTD,552446,02/06/2020,3475236,"4,859.00",0.00,N/A,N/A
Learning Disability Support,Transitions and Ordinary Lives - Learning Disability Support,Transitions and Ordinary Lives,ELMCARE LTD,552446,02/06/2020,3475242,"4,859.00",0.00,N/A,N/A
Learning Disability Support,Transitions and Ordinary Lives - Learning Disability Support,Transitions and Ordinary Lives,ELMCARE LTD,552446,02/06/2020,3475571,"4,859.00",0.00,N/A,N/A
Learning Disability Support,Transitions and Ordinary Lives - Learning Disability Support,Transitions and Ordinary Lives,ELMCARE LTD,552446,02/06/2020,3475311,"4,859.00",0.00,N/A,N/A
Learning Disability Support,Transitions and Ordinary Lives - Learning Disability Support,Transitions and Ordinary Lives,ELMCARE LTD,552446,02/06/2020,3475313,"4,859.00",0.00,N/A,N/A
Learning Disability Support,Transitions and Ordinary Lives - Learning Disability Support,Transitions and Ordinary Lives,ELMCARE LTD,552446,02/06/2020,3475502,"4,873.44",0.00,N/A,N/A
Learning Disability Support,Transitions and Ordinary Lives - Learning Disability Support,Transitions and Ordinary Lives,ELMCARE LTD,552446,02/06/2020,3475481,"4,859.00",0.00,N/A,N/A
Learning Disability Support,Transitions and Ordinary Lives - Learning Disability Support,Transitions and Ordinary Lives,ELMCARE LTD,552446,02/06/2020,3475577,"4,873.44",0.00,N/A,N/A
Learning Disability Support,Transitions and Ordinary Lives - Learning Disability Support,Transitions and Ordinary Lives,ELMCARE LTD,552446,02/06/2020,3475569,"4,859.00",0.00,N/A,N/A
Learning Disability Support,Transitions and Ordinary Lives - Learning Disability Support,Transitions and Ordinary Lives,ELMCARE LTD,552446,02/06/2020,3475651,"4,859.00",0.00,N/A,N/A
Learning Disability Support,Transitions and Ordinary Lives - Learning Disability Support,Transitions and Ordinary Lives,ELMCARE LTD,552446,02/06/2020,3475405,"4,859.00",0.00,N/A,N/A
Learning Disability Support,Transitions and Ordinary Lives - Learning Disability Support,Transitions and Ordinary Lives,ELMCARE LTD,552446,02/06/2020,3475153,"4,859.00",0.00,N/A,N/A
Learning Disability Support,Transitions and Ordinary Lives - Learning Disability Support,Transitions and Ordinary Lives,ELMCARE LTD,552446,02/06/2020,3475154,"4,859.00",0.00,N/A,N/A
Learning Disability Support,Transitions and Ordinary Lives - Learning Disability Support,Transitions and Ordinary Lives,ELMCARE LTD,552446,02/06/2020,3475490,"4,859.00",0.00,N/A,N/A
Learning Disability Support,Transitions and Ordinary Lives - Learning Disability Support,Transitions and Ordinary Lives,ELMCARE LTD,552446,02/06/2020,3475413,"4,859.00",0.00,N/A,N/A
Learning Disability Support,Transitions and Ordinary Lives - Learning Disability Support,Transitions and Ordinary Lives,ELMCARE LTD,552446,02/06/2020,3475415,"4,859.00",0.00,N/A,N/A
Learning Disability Support,Transitions and Ordinary Lives - Learning Disability Support,Transitions and Ordinary Lives,ELMCARE LTD,552446,02/06/2020,3475071,"4,859.00",0.00,N/A,N/A
Learning Disability Support,Transitions and Ordinary Lives - Learning Disability Support,Transitions and Ordinary Lives,ELMCARE LTD,552446,02/06/2020,3475073,"4,859.00",0.00,N/A,N/A
Learning Disability Support,Transitions and Ordinary Lives - Learning Disability Support,Transitions and Ordinary Lives,ELMCARE LTD,552446,02/06/2020,3475235,"4,859.00",0.00,N/A,N/A
Learning Disability Support,Transitions and Ordinary Lives - Learning Disability Support,Transitions and Ordinary Lives,ELMCARE LTD,552446,02/06/2020,3475575,"4,525.34",0.00,N/A,N/A
Learning Disability Support,Transitions and Ordinary Lives - Learning Disability Support,Transitions and Ordinary Lives,ELMCARE LTD,552446,02/06/2020,3475314,"4,859.00",0.00,N/A,N/A
Learning Disability Support,Transitions and Ordinary Lives - Learning Disability Support,Transitions and Ordinary Lives,ELMCARE LTD,552446,02/06/2020,3475328,"2,400.00",0.00,N/A,N/A
Mental Health Support,Community Support - Mental Health Support,Community Support,ELVASTON LODGE RESIDENTIAL HOME,10582,02/06/2020,3476818,756.60,0.00,N/A,N/A
Mental Health Support,Community Support - Mental Health Support,Community Support,ELVASTON LODGE RESIDENTIAL HOME,10582,02/06/2020,3476868,756.60,0.00,N/A,N/A
Mental Health Support,Community Support - Mental Health Support,Community Support,ELVASTON LODGE RESIDENTIAL HOME,10582,02/06/2020,3476976,"1,361.88",0.00,N/A,N/A
Mental Health Support,Community Support - Mental Health Support,Community Support,ELVASTON LODGE RESIDENTIAL HOME,10582,02/06/2020,3476869,"2,118.48",0.00,N/A,N/A
Physical Support,Community Support - Physical Support,Community Support,ELVASTON LODGE RESIDENTIAL HOME,10582,02/06/2020,3477009,"1,588.86",0.00,N/A,N/A
Physical Support,Community Support - Physical Support,Community Support,ELVASTON LODGE RESIDENTIAL HOME,10582,02/06/2020,3477011,"2,118.48",0.00,N/A,N/A
Physical Support,Community Support - Physical Support,Community Support,ELVASTON LODGE RESIDENTIAL HOME,10582,02/06/2020,3476743,582.50,0.00,N/A,N/A
Physical Support,Community Support - Physical Support,Community Support,ELVASTON LODGE RESIDENTIAL HOME,10582,02/06/2020,3476744,"1,456.26",0.00,N/A,N/A
Physical Support,Community Support - Physical Support,Community Support,ELVASTON LODGE RESIDENTIAL HOME,10582,02/06/2020,3476774,946.57,0.00,N/A,N/A
Physical Support,Community Support - Physical Support,Community Support,ELVASTON LODGE RESIDENTIAL HOME,10582,02/06/2020,3476903,"2,118.48",0.00,N/A,N/A
Physical Support,Community Support - Physical Support,Community Support,ELVASTON LODGE RESIDENTIAL HOME,10582,02/06/2020,3476779,"2,118.48",0.00,N/A,N/A
Physical Support,Community Support - Physical Support,Community Support,ELVASTON LODGE RESIDENTIAL HOME,10582,02/06/2020,3476936,"2,292.92",0.00,N/A,N/A
Physical Support,Community Support - Physical Support,Community Support,ELVASTON LODGE RESIDENTIAL HOME,10582,02/06/2020,3476817,"1,719.69",0.00,N/A,N/A
Physical Support,Community Support - Physical Support,Community Support,ELVASTON LODGE RESIDENTIAL HOME,10582,02/06/2020,3476864,801.24,0.00,N/A,N/A
Physical Support,Community Support - Physical Support,Community Support,ELVASTON LODGE RESIDENTIAL HOME,10582,02/06/2020,3476865,"2,292.92",0.00,N/A,N/A
Physical Support,Community Support - Physical Support,Community Support,ELVASTON LODGE RESIDENTIAL HOME,10582,02/06/2020,3476905,"2,118.48",0.00,N/A,N/A
Physical Support,Community Support - Physical Support,Community Support,ELVASTON LODGE RESIDENTIAL HOME,10582,02/06/2020,3476906,"2,292.92",0.00,N/A,N/A
Physical Support,Community Support - Physical Support,Community Support,ELVASTON LODGE RESIDENTIAL HOME,10582,02/06/2020,3476822,"2,118.48",0.00,N/A,N/A
Physical Support,Community Support - Physical Support,Community Support,ELVASTON LODGE RESIDENTIAL HOME,10582,02/06/2020,3476823,"2,118.48",0.00,N/A,N/A
Physical Support,Community Support - Physical Support,Community Support,ELVASTON LODGE RESIDENTIAL HOME,10582,02/06/2020,3476977,"2,118.48",0.00,N/A,N/A
Support with Memory and Cognition,Community Support - Support with Memory and Cognition,Community Support,ELVASTON LODGE RESIDENTIAL HOME,10582,02/06/2020,3477012,"2,118.48",0.00,N/A,N/A
Support with Memory and Cognition,Community Support - Support with Memory and Cognition,Community Support,ELVASTON LODGE RESIDENTIAL HOME,10582,02/06/2020,3476819,801.24,0.00,N/A,N/A
Mental Health Support,Mental Health - Mental Health Support,Mental Health,ELVASTON LODGE RESIDENTIAL HOME,10582,02/06/2020,3477014,"2,292.92",0.00,N/A,N/A
Mental Health Support,Mental Health - Mental Health Support,Mental Health,ELVASTON LODGE RESIDENTIAL HOME,10582,02/06/2020,3476711,"2,118.48",0.00,N/A,N/A
Mental Health Support,Mental Health - Mental Health Support,Mental Health,ELVASTON LODGE RESIDENTIAL HOME,10582,02/06/2020,3476712,"3,600.00",0.00,N/A,N/A
Mental Health Support,Mental Health - Mental Health Support,Mental Health,ELVASTON LODGE RESIDENTIAL HOME,10582,02/06/2020,3476867,"2,292.92",0.00,N/A,N/A
Mental Health Support,Mental Health - Mental Health Support,Mental Health,ELVASTON LODGE RESIDENTIAL HOME,10582,02/06/2020,3476978,"1,696.52",0.00,N/A,N/A
Mental Health Support,Community Support - Mental Health Support,Community Support,EMBRACE CARE LIMITED,683453,02/06/2020,3476762,"2,093.60",0.00,N/A,N/A
Mental Health Support,Community Support - Mental Health Support,Community Support,EMBRACE CARE LIMITED,683453,02/06/2020,3476801,747.71,0.00,N/A,N/A
Mental Health Support,Community Support - Mental Health Support,Community Support,EMBRACE CARE LIMITED,683453,02/06/2020,3476802,"1,631.58",0.00,N/A,N/A
Mental Health Support,Community Support - Mental Health Support,Community Support,EMBRACE CARE LIMITED,683453,02/06/2020,3476953,"2,093.60",0.00,N/A,N/A
Mental Health Support,Community Support - Mental Health Support,Community Support,EMBRACE CARE LIMITED,683453,02/06/2020,3476807,"2,175.44",0.00,N/A,N/A
Mental Health Support,Community Support - Mental Health Support,Community Support,EMBRACE CARE LIMITED,683453,02/06/2020,3476884,"2,175.44",0.00,N/A,N/A
Mental Health Support,Community Support - Mental Health Support,Community Support,EMBRACE CARE LIMITED,683453,02/06/2020,3476838,"2,093.60",0.00,N/A,N/A
Physical Support,Community Support - Physical Support,Community Support,EMBRACE CARE LIMITED,683453,02/06/2020,3476767,"2,175.44",0.00,N/A,N/A
Physical Support,Community Support - Physical Support,Community Support,EMBRACE CARE LIMITED,683453,02/06/2020,3476839,"2,175.44",0.00,N/A,N/A
Physical Support,Community Support - Physical Support,Community Support,EMBRACE CARE LIMITED,683453,02/06/2020,3476765,"2,118.48",0.00,N/A,N/A
Physical Support,Community Support - Physical Support,Community Support,EMBRACE CARE LIMITED,683453,02/06/2020,3476766,"2,175.44",0.00,N/A,N/A
Physical Support,Community Support - Physical Support,Community Support,EMBRACE CARE LIMITED,683453,02/06/2020,3476887,"2,175.44",0.00,N/A,N/A
Physical Support,Community Support - Physical Support,Community Support,EMBRACE CARE LIMITED,683453,02/06/2020,3476888,"2,175.44",0.00,N/A,N/A
Physical Support,Community Support - Physical Support,Community Support,EMBRACE CARE LIMITED,683453,02/06/2020,3476960,"2,175.44",0.00,N/A,N/A
Physical Support,Community Support - Physical Support,Community Support,EMBRACE CARE LIMITED,683453,02/06/2020,3476961,"2,175.44",0.00,N/A,N/A
Physical Support,Community Support - Physical Support,Community Support,EMBRACE CARE LIMITED,683453,02/06/2020,3476962,"2,175.44",0.00,N/A,N/A
Physical Support,Community Support - Physical Support,Community Support,EMBRACE CARE LIMITED,683453,02/06/2020,3476734,"2,175.44",0.00,N/A,N/A
Physical Support,Community Support - Physical Support,Community Support,EMBRACE CARE LIMITED,683453,02/06/2020,3476998,"2,175.44",0.00,N/A,N/A
Physical Support,Community Support - Physical Support,Community Support,EMBRACE CARE LIMITED,683453,02/06/2020,3476925,701.24,0.00,N/A,N/A
Physical Support,Community Support - Physical Support,Community Support,EMBRACE CARE LIMITED,683453,02/06/2020,3476768,"2,118.48",0.00,N/A,N/A
Physical Support,Community Support - Physical Support,Community Support,EMBRACE CARE LIMITED,683453,02/06/2020,3476963,"2,118.48",0.00,N/A,N/A
Physical Support,Community Support - Physical Support,Community Support,EMBRACE CARE LIMITED,683453,02/06/2020,3476954,"1,747.51",0.00,N/A,N/A
Physical Support,Community Support - Physical Support,Community Support,EMBRACE CARE LIMITED,683453,02/06/2020,3476956,"2,118.48",0.00,N/A,N/A
Physical Support,Community Support - Physical Support,Community Support,EMBRACE CARE LIMITED,683453,02/06/2020,3476803,"2,118.48",0.00,N/A,N/A
Physical Support,Community Support - Physical Support,Community Support,EMBRACE CARE LIMITED,683453,02/06/2020,3476997,"1,588.86",0.00,N/A,N/A
Physical Support,Community Support - Physical Support,Community Support,EMBRACE CARE LIMITED,683453,02/06/2020,3476964,"2,175.44",0.00,N/A,N/A
Physical Support,Community Support - Physical Support,Community Support,EMBRACE CARE LIMITED,683453,02/06/2020,3476769,"2,175.44",0.00,N/A,N/A
Physical Support,Community Support - Physical Support,Community Support,EMBRACE CARE LIMITED,683453,02/06/2020,3476770,"2,175.44",0.00,N/A,N/A
Physical Support,Community Support - Physical Support,Community Support,EMBRACE CARE LIMITED,683453,02/06/2020,3476805,"2,175.44",0.00,N/A,N/A
Physical Support,Community Support - Physical Support,Community Support,EMBRACE CARE LIMITED,683453,02/06/2020,3476841,"2,175.44",0.00,N/A,N/A
Sensory Support,Community Support - Sensory Support,Community Support,EMBRACE CARE LIMITED,683453,02/06/2020,3476771,"2,175.44",0.00,N/A,N/A
Support with Memory and Cognition,Community Support - Support with Memory and Cognition,Community Support,EMBRACE CARE LIMITED,683453,02/06/2020,3476924,"2,175.44",0.00,N/A,N/A
Support with Memory and Cognition,Community Support - Support with Memory and Cognition,Community Support,EMBRACE CARE LIMITED,683453,02/06/2020,3476886,"2,175.44",0.00,N/A,N/A
Support with Memory and Cognition,Community Support - Support with Memory and Cognition,Community Support,EMBRACE CARE LIMITED,683453,02/06/2020,3476957,"2,175.44",0.00,N/A,N/A
Support with Memory and Cognition,Community Support - Support with Memory and Cognition,Community Support,EMBRACE CARE LIMITED,683453,02/06/2020,3476958,"2,175.44",0.00,N/A,N/A
Support with Memory and Cognition,Community Support - Support with Memory and Cognition,Community Support,EMBRACE CARE LIMITED,683453,02/06/2020,3476804,"2,118.48",0.00,N/A,N/A
Support with Memory and Cognition,Community Support - Support with Memory and Cognition,Community Support,EMBRACE CARE LIMITED,683453,02/06/2020,3476959,"2,175.44",0.00,N/A,N/A
Support with Memory and Cognition,Community Support - Support with Memory and Cognition,Community Support,EMBRACE CARE LIMITED,683453,02/06/2020,3476733,"2,118.48",0.00,N/A,N/A
Support with Memory and Cognition,Community Support - Support with Memory and Cognition,Community Support,EMBRACE CARE LIMITED,683453,02/06/2020,3476929,"2,175.44",0.00,N/A,N/A
Mental Health Support,Mental Health - Mental Health Support,Mental Health,EMBRACE CARE LIMITED,683453,02/06/2020,3476965,"1,702.00",0.00,N/A,N/A
Mental Health Support,Mental Health - Mental Health Support,Mental Health,EMBRACE CARE LIMITED,683453,02/06/2020,3476926,"2,175.44",0.00,N/A,N/A
Mental Health Support,Mental Health - Mental Health Support,Mental Health,EMBRACE CARE LIMITED,683453,02/06/2020,3476843,"1,258.32",0.00,N/A,N/A
Mental Health Support,Mental Health - Mental Health Support,Mental Health,EMBRACE CARE LIMITED,683453,02/06/2020,3476844,"1,939.80",0.00,N/A,N/A
Mental Health Support,Mental Health - Mental Health Support,Mental Health,EMBRACE CARE LIMITED,683453,02/06/2020,3476735,"2,118.48",0.00,N/A,N/A
Mental Health Support,Mental Health - Mental Health Support,Mental Health,EMBRACE CARE LIMITED,683453,02/06/2020,3476736,"1,331.56",0.00,N/A,N/A
Mental Health Support,Mental Health - Mental Health Support,Mental Health,EMBRACE CARE LIMITED,683453,02/06/2020,3476999,"2,175.44",0.00,N/A,N/A
Learning Disability Support,Transitions and Ordinary Lives - Learning Disability Support,Transitions and Ordinary Lives,EMBRACE CARE LIMITED,683453,02/06/2020,3476928,"2,121.28",0.00,N/A,N/A
Learning Disability Support,Transitions and Ordinary Lives - Learning Disability Support,Transitions and Ordinary Lives,EMBRACE CARE LIMITED,683453,02/06/2020,3476806,"1,888.68",0.00,N/A,N/A
Learning Disability Support,Transitions and Ordinary Lives - Learning Disability Support,Transitions and Ordinary Lives,EMBRACE CARE LIMITED,683453,02/06/2020,3476737,"2,175.44",0.00,N/A,N/A
Learning Disability Support,Transitions and Ordinary Lives - Learning Disability Support,Transitions and Ordinary Lives,EMBRACE CARE LIMITED,683453,02/06/2020,3476966,"2,175.44",0.00,N/A,N/A
Learning Disability Support,Transitions and Ordinary Lives - Learning Disability Support,Transitions and Ordinary Lives,EMBRACE CARE LIMITED,683453,02/06/2020,3477002,"2,175.44",0.00,N/A,N/A
Learning Disability Support,Transitions and Ordinary Lives - Learning Disability Support,Transitions and Ordinary Lives,EMBRACE CARE LIMITED,683453,02/06/2020,3476931,"2,440.16",0.00,N/A,N/A
Mental Health Support,Mental Health - Mental Health Support,Mental Health,EMBRACE CARE LIMITED,683453,02/06/2020,3477000,"1,377.92",0.00,N/A,N/A
Mental Health Support,Mental Health - Mental Health Support,Mental Health,EMBRACE CARE LIMITED,683453,02/06/2020,3476930,"2,317.76",0.00,N/A,N/A
Mental Health Support,Mental Health - Mental Health Support,Mental Health,EMBRACE CARE LIMITED,683453,02/06/2020,3477001,"2,175.44",0.00,N/A,N/A
Learning Disability Support,Transitions and Ordinary Lives - Learning Disability Support,Transitions and Ordinary Lives,EMH CARE AND SUPPORT LTD,1033482,02/06/2020,3475334,"2,810.32",0.00,N/A,N/A
Non Delegated Schools Budget,Non Delegated School Expenditure,Schools Block,ESTEEM MULTI ACADEMY TRUST,1141471,02/06/2020,3475020,"26,267.89",0.00,N/A,N/A
Physical Support,Community Support - Physical Support,Community Support,ETIQUETTE RECRUITMENT AND STAFFING LTD,1152476,02/06/2020,3473714,"1,420.92",0.00,N/A,N/A
Physical Support,Community Support - Physical Support,Community Support,ETIQUETTE RECRUITMENT AND STAFFING LTD,1152476,02/06/2020,3473982,718.88,0.00,N/A,N/A
Physical Support,Community Support - Physical Support,Community Support,ETIQUETTE RECRUITMENT AND STAFFING LTD,1152476,02/06/2020,3474088,"1,238.52",0.00,N/A,N/A
Physical Support,Community Support - Physical Support,Community Support,ETIQUETTE RECRUITMENT AND STAFFING LTD,1152476,02/06/2020,3474499,"1,042.04",0.00,N/A,N/A
Physical Support,Community Support - Physical Support,Community Support,ETIQUETTE RECRUITMENT AND STAFFING LTD,1152476,02/06/2020,3474089,996.36,0.00,N/A,N/A
Physical Support,Community Support - Physical Support,Community Support,ETIQUETTE RECRUITMENT AND STAFFING LTD,1152476,02/06/2020,3474090,"1,139.48",0.00,N/A,N/A
Physical Support,Community Support - Physical Support,Community Support,ETIQUETTE RECRUITMENT AND STAFFING LTD,1152476,02/06/2020,3473844,"1,042.04",0.00,N/A,N/A
Physical Support,Community Support - Physical Support,Community Support,ETIQUETTE RECRUITMENT AND STAFFING LTD,1152476,02/06/2020,3473845,"1,139.48",0.00,N/A,N/A
Physical Support,Community Support - Physical Support,Community Support,ETIQUETTE RECRUITMENT AND STAFFING LTD,1152476,02/06/2020,3474332,"1,042.04",0.00,N/A,N/A
Physical Support,Community Support - Physical Support,Community Support,ETIQUETTE RECRUITMENT AND STAFFING LTD,1152476,02/06/2020,3474470,"1,262.56",0.00,N/A,N/A
General,Stores Road Depot & Fleet Management,"Strategic Partnerships, Planning & Streetpride",EXCEL VEHICLE HIRE (DERBY) LTD,937515,02/06/2020,3477431,690.96,0.00,N/A,N/A
General,Stores Road Depot & Fleet Management,"Strategic Partnerships, Planning & Streetpride",EXCEL VEHICLE HIRE (DERBY) LTD,937515,02/06/2020,3477432,690.96,0.00,N/A,N/A
Learning Disability Support,Community Support - Learning Disability Support,Community Support,FARRIESS COURT,10585,02/06/2020,3476497,"2,118.48",0.00,N/A,N/A
Physical Support,Community Support - Physical Support,Community Support,FARRIESS COURT,10585,02/06/2020,3476261,"2,118.48",0.00,N/A,N/A
Physical Support,Community Support - Physical Support,Community Support,FARRIESS COURT,10585,02/06/2020,3476560,"2,118.48",0.00,N/A,N/A
Physical Support,Community Support - Physical Support,Community Support,FARRIESS COURT,10585,02/06/2020,3476262,"2,118.48",0.00,N/A,N/A
Physical Support,Community Support - Physical Support,Community Support,FARRIESS COURT,10585,02/06/2020,3476496,"2,118.48",0.00,N/A,N/A
Mental Health Support,Mental Health - Mental Health Support,Mental Health,FARRIESS COURT,10585,02/06/2020,3476436,"2,061.76",0.00,N/A,N/A
Mental Health Support,Mental Health - Mental Health Support,Mental Health,FARRIESS COURT,10585,02/06/2020,3476656,"1,588.86",0.00,N/A,N/A
Mental Health Support,Mental Health - Mental Health Support,Mental Health,FARRIESS COURT,10585,02/06/2020,3476372,728.13,0.00,N/A,N/A
Mental Health Support,Mental Health - Mental Health Support,Mental Health,FARRIESS COURT,10585,02/06/2020,3476373,"2,118.48",0.00,N/A,N/A
Mental Health Support,Mental Health - Mental Health Support,Mental Health,FARRIESS COURT,10585,02/06/2020,3476495,728.13,0.00,N/A,N/A
Mental Health Support,Mental Health - Mental Health Support,Mental Health,FARRIESS COURT,10585,02/06/2020,3476498,"2,118.48",0.00,N/A,N/A
Mental Health Support,Mental Health - Mental Health Support,Mental Health,FARRIESS COURT,10585,02/06/2020,3476323,"2,118.48",0.00,N/A,N/A
Mental Health Support,Mental Health - Mental Health Support,Mental Health,FARRIESS COURT,10585,02/06/2020,3476434,"2,038.76",0.00,N/A,N/A
Mental Health Support,Mental Health - Mental Health Support,Mental Health,FARRIESS COURT,10585,02/06/2020,3476260,"2,118.48",0.00,N/A,N/A
Mental Health Support,Mental Health - Mental Health Support,Mental Health,FARRIESS COURT,10585,02/06/2020,3476600,"1,588.86",0.00,N/A,N/A
Mental Health Support,Mental Health - Mental Health Support,Mental Health,FARRIESS COURT,10585,02/06/2020,3476601,"2,118.48",0.00,N/A,N/A
Mental Health Support,Mental Health - Mental Health Support,Mental Health,FARRIESS COURT,10585,02/06/2020,3476322,"1,720.00",0.00,N/A,N/A
Mental Health Support,Mental Health - Mental Health Support,Mental Health,FARRIESS COURT,10585,02/06/2020,3476659,"2,118.48",0.00,N/A,N/A
Mental Health Support,Mental Health - Mental Health Support,Mental Health,FARRIESS COURT,10585,02/06/2020,3476263,"1,820.00",0.00,N/A,N/A
Refuse & Waste Management,Refuse Collection,"Strategic Partnerships, Planning & Streetpride",FCC RECYCLING UK LTD,126166,02/06/2020,3477290,"14,886.00",0.00,Communities & Place,Industrial Cleaning Services
Integrated Services,Agency Placements,Non-Schools,FIVE RIVERS CHILDCARE LTD,1122471,02/06/2020,3474536,"6,200.00",0.00,N/A,N/A
Integrated Services,Agency Placements,Non-Schools,FIVE RIVERS CHILDCARE LTD,1122471,02/06/2020,3474536,"5,800.00",0.00,N/A,N/A
Integrated Services,Agency Placements,Non-Schools,FIVE RIVERS CHILDCARE LTD,1122471,02/06/2020,3474536,"5,800.00",0.00,N/A,N/A
Integrated Services,Agency Placements,Non-Schools,FIVE RIVERS CHILDCARE LTD,1122471,02/06/2020,3474536,"3,316.00",0.00,N/A,N/A
Integrated Services,Agency Placements,Non-Schools,FIVE RIVERS CHILDCARE LTD,1122471,02/06/2020,3474536,"3,236.00",0.00,N/A,N/A
Integrated Services,Agency Placements,Non-Schools,FIVE RIVERS CHILDCARE LTD,1122471,02/06/2020,3474536,"3,076.00",0.00,N/A,N/A
Integrated Services,Agency Placements,Non-Schools,FIVE RIVERS CHILDCARE LTD,1122471,02/06/2020,3474536,"1,959.86",0.00,N/A,N/A
Physical Support,Community Support - Physical Support,Community Support,FOSSE HEALTHCARE LTD,448402,02/06/2020,3474163,614.17,0.00,N/A,N/A
Physical Support,Community Support - Physical Support,Community Support,FOSSE HEALTHCARE LTD,448402,02/06/2020,3474166,854.61,0.00,N/A,N/A
Physical Support,Community Support - Physical Support,Community Support,FOSSE HEALTHCARE LTD,448402,02/06/2020,3474167,854.61,0.00,N/A,N/A
Physical Support,Community Support - Physical Support,Community Support,FOSSE HEALTHCARE LTD,448402,02/06/2020,3473920,726.48,0.00,N/A,N/A
Physical Support,Community Support - Physical Support,Community Support,FOSSE HEALTHCARE LTD,448402,02/06/2020,3473921,"1,053.57",0.00,N/A,N/A
Physical Support,Community Support - Physical Support,Community Support,FOSSE HEALTHCARE LTD,448402,02/06/2020,3474164,580.46,0.00,N/A,N/A
Physical Support,Community Support - Physical Support,Community Support,FOSSE HEALTHCARE LTD,448402,02/06/2020,3474165,"1,139.48",0.00,N/A,N/A
Physical Support,Community Support - Physical Support,Community Support,FOSSE HEALTHCARE LTD,448402,02/06/2020,3473787,"1,009.01",0.00,N/A,N/A
Emergency Planning,Emergency Planning,Commissioning,FOSSE HEALTHCARE LTD,441402,02/06/2020,3477195,"13,343.50",0.00,People Services - Adults and Health,Healthcare Services
Emergency Planning,Emergency Planning,Commissioning,FOSSE HEALTHCARE LTD,441402,02/06/2020,3477195,"4,122.95",0.00,People Services - Adults and Health,Healthcare Services
Mental Health Support,Mental Health - Mental Health Support,Mental Health,FOSSE HEALTHCARE LTD,448402,02/06/2020,3474290,814.32,0.00,N/A,N/A
Learning Disability Support,Transitions and Ordinary Lives - Learning Disability Support,Transitions and Ordinary Lives,FOSSE HEALTHCARE LTD,448402,02/06/2020,3473923,525.40,0.00,N/A,N/A
Learning Disability Support,Transitions and Ordinary Lives - Learning Disability Support,Transitions and Ordinary Lives,FOSSE HEALTHCARE LTD,448402,02/06/2020,3473788,525.40,0.00,N/A,N/A
Integrated Services,Agency Placements,Non-Schools,FOSTER CARE ASSOCIATES LTD fca,1109506,02/06/2020,3474532,"1,874.88",0.00,N/A,N/A
Integrated Services,Agency Placements,Non-Schools,FOSTER CARE ASSOCIATES LTD fca,1109506,02/06/2020,3474532,"1,774.92",0.00,N/A,N/A
Integrated Services,Agency Placements,Non-Schools,FOSTER CARE ASSOCIATES LTD fca,1109506,02/06/2020,3474532,575.50,0.00,N/A,N/A
Integrated Services,Agency Placements,Non-Schools,FOSTER CARE ASSOCIATES LTD fca,1109506,02/06/2020,3474532,"5,200.00",0.00,N/A,N/A
Integrated Services,Agency Placements,Non-Schools,FOSTER CARE ASSOCIATES LTD fca,1109506,02/06/2020,3474532,"4,914.00",0.00,N/A,N/A
Integrated Services,Agency Placements,Non-Schools,FOSTER CARE ASSOCIATES LTD fca,1109506,02/06/2020,3474532,"3,871.00",0.00,N/A,N/A
Integrated Services,Agency Placements,Non-Schools,FOSTER CARE ASSOCIATES LTD fca,1109506,02/06/2020,3474532,"3,871.00",0.00,N/A,N/A
Integrated Services,Agency Placements,Non-Schools,FOSTER CARE ASSOCIATES LTD fca,1109506,02/06/2020,3474532,"5,698.00",0.00,N/A,N/A
Integrated Services,Agency Placements,Non-Schools,FOSTER CARE ASSOCIATES LTD fca,1109506,02/06/2020,3474532,"5,405.68",0.00,N/A,N/A
Integrated Services,Agency Placements,Non-Schools,FOSTER CARE ASSOCIATES LTD fca,1109506,02/06/2020,3474532,"5,405.68",0.00,N/A,N/A
Integrated Services,Agency Placements,Non-Schools,FOSTER CARE ASSOCIATES LTD fca,1109506,02/06/2020,3474532,"3,801.00",0.00,N/A,N/A
Integrated Services,Agency Placements,Non-Schools,FOSTER CARE ASSOCIATES LTD fca,1109506,02/06/2020,3474532,"3,801.00",0.00,N/A,N/A
Integrated Services,Agency Placements,Non-Schools,FOSTER CARE ASSOCIATES LTD fca,1109506,02/06/2020,3474532,"3,222.80",0.00,N/A,N/A
Integrated Services,Agency Placements,Non-Schools,FOSTER CARE ASSOCIATES LTD fca,1109506,02/06/2020,3474532,"3,222.80",0.00,N/A,N/A
Integrated Services,Agency Placements,Non-Schools,FOSTER CARE ASSOCIATES LTD fca,1109506,02/06/2020,3474532,"3,222.80",0.00,N/A,N/A
Integrated Services,Agency Placements,Non-Schools,FOSTER CARE ASSOCIATES LTD fca,1109506,02/06/2020,3474532,"3,222.80",0.00,N/A,N/A
Integrated Services,Agency Placements,Non-Schools,FOSTER CARE ASSOCIATES LTD fca,1109506,02/06/2020,3474534,"5,006.96",0.00,N/A,N/A
Integrated Services,Agency Placements,Non-Schools,FOSTER CARE ASSOCIATES LTD fca,1109506,02/06/2020,3474534,"3,871.00",0.00,N/A,N/A
Integrated Services,Agency Placements,Non-Schools,FOSTER CARE ASSOCIATES LTD fca,1109506,02/06/2020,3474532,"3,040.80",0.00,N/A,N/A
Integrated Services,Agency Placements,Non-Schools,FOSTER CARE ASSOCIATES LTD fca,1109506,02/06/2020,3474532,"2,867.20",0.00,N/A,N/A
Integrated Services,Agency Placements,Non-Schools,FOSTER CARE ASSOCIATES LTD fca,1109506,02/06/2020,3474532,"2,867.20",0.00,N/A,N/A
Integrated Services,Agency Placements,Non-Schools,FOSTER CARE ASSOCIATES LTD fca,1109506,02/06/2020,3474532,"2,520.80",0.00,N/A,N/A
Integrated Services,Agency Placements,Non-Schools,FOSTER CARE ASSOCIATES LTD fca,1109506,02/06/2020,3474532,"3,068.80",0.00,N/A,N/A
Integrated Services,Agency Placements,Non-Schools,FOSTER CARE ASSOCIATES LTD fca,1109506,02/06/2020,3474532,"3,068.80",0.00,N/A,N/A
Integrated Services,Agency Placements,Non-Schools,FOSTER CARE ASSOCIATES LTD fca,1109506,02/06/2020,3474534,"3,749.76",0.00,N/A,N/A
Integrated Services,Agency Placements,Non-Schools,FOSTER CARE ASSOCIATES LTD fca,1109506,02/06/2020,3474534,"3,222.80",0.00,N/A,N/A
Integrated Services,Agency Placements,Non-Schools,FOSTERING DIMENSIONS LTD,1109507,02/06/2020,3474551,"1,311.43",0.00,N/A,N/A
Integrated Services,Agency Placements,Non-Schools,FOSTERING PEOPLE LTD,1109510,02/06/2020,3474529,"3,110.80",0.00,N/A,N/A
Integrated Services,Agency Placements,Non-Schools,FOSTERING PEOPLE LTD,1109510,02/06/2020,3474529,"3,110.80",0.00,N/A,N/A
Integrated Services,Agency Placements,Non-Schools,FOSTERING PEOPLE LTD,1109510,02/06/2020,3474529,"3,080.00",0.00,N/A,N/A
Integrated Services,Agency Placements,Non-Schools,FOSTERING PEOPLE LTD,1109510,02/06/2020,3474529,"3,080.00",0.00,N/A,N/A
Integrated Services,Agency Placements,Non-Schools,FOSTERING PEOPLE LTD,1109510,02/06/2020,3474529,"3,080.00",0.00,N/A,N/A
Integrated Services,Agency Placements,Non-Schools,FOSTERING PEOPLE LTD,1109510,02/06/2020,3474529,"2,954.00",0.00,N/A,N/A
Integrated Services,Agency Placements,Non-Schools,FOSTERING PEOPLE LTD,1109510,02/06/2020,3474529,"2,954.00",0.00,N/A,N/A
Integrated Services,Agency Placements,Non-Schools,FOSTERING PEOPLE LTD,1109510,02/06/2020,3474529,"2,954.00",0.00,N/A,N/A
Integrated Services,Agency Placements,Non-Schools,FOSTERING PEOPLE LTD,1109510,02/06/2020,3474529,"2,954.00",0.00,N/A,N/A
Integrated Services,Agency Placements,Non-Schools,FOSTERING PEOPLE LTD,1109510,02/06/2020,3474529,"2,954.00",0.00,N/A,N/A
Integrated Services,Agency Placements,Non-Schools,FOSTERING PEOPLE LTD,1109510,02/06/2020,3474529,"2,954.00",0.00,N/A,N/A
Integrated Services,Agency Placements,Non-Schools,FOSTERING PEOPLE LTD,1109510,02/06/2020,3474529,"2,954.00",0.00,N/A,N/A
Integrated Services,Agency Placements,Non-Schools,FOSTERING PEOPLE LTD,1109510,02/06/2020,3474529,"5,199.60",0.00,N/A,N/A
Integrated Services,Agency Placements,Non-Schools,FOSTERING PEOPLE LTD,1109510,02/06/2020,3474529,"5,199.60",0.00,N/A,N/A
Integrated Services,Agency Placements,Non-Schools,FOSTERING PEOPLE LTD,1109510,02/06/2020,3474529,"5,199.60",0.00,N/A,N/A
Integrated Services,Agency Placements,Non-Schools,FOSTERING PEOPLE LTD,1109510,02/06/2020,3474529,"5,199.60",0.00,N/A,N/A
Integrated Services,Agency Placements,Non-Schools,FOSTERING PEOPLE LTD,1109510,02/06/2020,3474529,"5,199.60",0.00,N/A,N/A
Integrated Services,Agency Placements,Non-Schools,FOSTERING PEOPLE LTD,1109510,02/06/2020,3474529,"3,528.30",0.00,N/A,N/A
Integrated Services,Agency Placements,Non-Schools,FOSTERING PEOPLE LTD,1109510,02/06/2020,3474529,"2,434.28",0.00,N/A,N/A
Integrated Services,Agency Placements,Non-Schools,FOSTERING PEOPLE LTD,1109510,02/06/2020,3474529,"2,434.28",0.00,N/A,N/A
Integrated Services,Agency Placements,Non-Schools,FOSTERING PEOPLE LTD,1109510,02/06/2020,3474529,"1,671.30",0.00,N/A,N/A
Integrated Services,Agency Placements,Non-Schools,FOSTERING PEOPLE LTD,1109510,02/06/2020,3474529,"2,954.00",0.00,N/A,N/A
Integrated Services,Agency Placements,Non-Schools,FOSTERING PEOPLE LTD,1109510,02/06/2020,3474529,"2,954.00",0.00,N/A,N/A
Integrated Services,Agency Placements,Non-Schools,FOSTERING PEOPLE LTD,1109510,02/06/2020,3474529,"2,954.00",0.00,N/A,N/A
Integrated Services,Agency Placements,Non-Schools,FOSTERING PEOPLE LTD,1109510,02/06/2020,3474529,"2,954.00",0.00,N/A,N/A
Integrated Services,Agency Placements,Non-Schools,FOSTERING PEOPLE LTD,1109510,02/06/2020,3474529,"2,954.00",0.00,N/A,N/A
Integrated Services,Agency Placements,Non-Schools,FOSTERING PEOPLE LTD,1109510,02/06/2020,3474529,"2,797.20",0.00,N/A,N/A
Integrated Services,Agency Placements,Non-Schools,FOSTERING PEOPLE LTD,1109510,02/06/2020,3474529,"2,797.20",0.00,N/A,N/A
Integrated Services,Agency Placements,Non-Schools,FOSTERING PEOPLE LTD,1109510,02/06/2020,3474529,"2,797.20",0.00,N/A,N/A
Integrated Services,Agency Placements,Non-Schools,FOSTERING PEOPLE LTD,1109510,02/06/2020,3474529,"2,128.00",0.00,N/A,N/A
Integrated Services,Agency Placements,Non-Schools,FOSTERING PEOPLE LTD,1109510,02/06/2020,3474529,"2,128.00",0.00,N/A,N/A
Integrated Services,Agency Placements,Non-Schools,FOSTERING PEOPLE LTD,1109510,02/06/2020,3474529,"2,797.20",0.00,N/A,N/A
Integrated Services,Agency Placements,Non-Schools,FOSTERING PEOPLE LTD,1109510,02/06/2020,3474529,"2,797.20",0.00,N/A,N/A
Integrated Services,Agency Placements,Non-Schools,FOSTERING PEOPLE LTD,1109510,02/06/2020,3474529,"2,797.20",0.00,N/A,N/A
Integrated Services,Agency Placements,Non-Schools,FOSTERING PEOPLE LTD,1109510,02/06/2020,3474529,"2,797.20",0.00,N/A,N/A
Integrated Services,Agency Placements,Non-Schools,FOSTERING PEOPLE LTD,1109510,02/06/2020,3474529,"2,797.20",0.00,N/A,N/A
Integrated Services,Agency Placements,Non-Schools,FOSTERING PEOPLE LTD,1109510,02/06/2020,3474529,"2,797.20",0.00,N/A,N/A
Integrated Services,Agency Placements,Non-Schools,FOSTERING PEOPLE LTD,1109510,02/06/2020,3474529,"2,797.20",0.00,N/A,N/A
Integrated Services,Agency Placements,Non-Schools,FOSTERING PEOPLE LTD,1109510,02/06/2020,3474529,"2,797.20",0.00,N/A,N/A
Integrated Services,Agency Placements,Non-Schools,FOSTERING PEOPLE LTD,1109510,02/06/2020,3474529,"2,797.20",0.00,N/A,N/A
Integrated Services,Agency Placements,Non-Schools,FOSTERING PEOPLE LTD,1109510,02/06/2020,3474529,"2,797.20",0.00,N/A,N/A
Integrated Services,Agency Placements,Non-Schools,FOSTERING PEOPLE LTD,1109510,02/06/2020,3474529,"3,593.12",0.00,N/A,N/A
Integrated Services,Agency Placements,Non-Schools,FOSTERING PEOPLE LTD,1109510,02/06/2020,3474529,"5,199.60",0.00,N/A,N/A
Integrated Services,Agency Placements,Non-Schools,FOSTERING PEOPLE LTD,1109510,02/06/2020,3474529,"5,143.60",0.00,N/A,N/A
Integrated Services,Agency Placements,Non-Schools,FOSTERING PEOPLE LTD,1109510,02/06/2020,3474529,"3,587.36",0.00,N/A,N/A
Integrated Services,Agency Placements,Non-Schools,FOSTERING PEOPLE LTD,1109510,02/06/2020,3474529,"3,718.96",0.00,N/A,N/A
Integrated Services,Agency Placements,Non-Schools,FOSTERING PEOPLE LTD,1109510,02/06/2020,3474529,"3,587.36",0.00,N/A,N/A
Integrated Services,Agency Placements,Non-Schools,FOSTERING PEOPLE LTD,1109510,02/06/2020,3474529,"3,718.96",0.00,N/A,N/A
Integrated Services,Agency Placements,Non-Schools,FOSTERING PEOPLE LTD,1109510,02/06/2020,3474529,"3,551.80",0.00,N/A,N/A
Integrated Services,Agency Placements,Non-Schools,FOSTERING PEOPLE LTD,1109510,02/06/2020,3474529,"3,718.96",0.00,N/A,N/A
Integrated Services,Agency Placements,Non-Schools,FOSTERING PEOPLE LTD,1109510,02/06/2020,3474529,"3,344.00",0.00,N/A,N/A
Integrated Services,Agency Placements,Non-Schools,FOSTERING PEOPLE LTD,1109510,02/06/2020,3474529,"3,718.96",0.00,N/A,N/A
Integrated Services,Agency Placements,Non-Schools,FOSTERING PEOPLE LTD,1109510,02/06/2020,3474529,"3,344.00",0.00,N/A,N/A
Integrated Services,Agency Placements,Non-Schools,FOSTERING PEOPLE LTD,1109510,02/06/2020,3474529,"3,136.00",0.00,N/A,N/A
Integrated Services,Agency Placements,Non-Schools,FOSTERING PEOPLE LTD,1109510,02/06/2020,3474529,"3,718.96",0.00,N/A,N/A
Integrated Services,Agency Placements,Non-Schools,FOSTERING PEOPLE LTD,1109510,02/06/2020,3474529,"3,136.00",0.00,N/A,N/A
Integrated Services,Agency Placements,Non-Schools,FOSTERING PEOPLE LTD,1109510,02/06/2020,3474529,"2,954.00",0.00,N/A,N/A
Integrated Services,Agency Placements,Non-Schools,FOSTERING PEOPLE LTD,1109510,02/06/2020,3474529,"2,954.00",0.00,N/A,N/A
Integrated Services,Agency Placements,Non-Schools,FOSTERING PEOPLE LTD,1109510,02/06/2020,3474529,"2,954.00",0.00,N/A,N/A
Integrated Services,Agency Placements,Non-Schools,FOSTERING PEOPLE LTD,1109510,02/06/2020,3474529,"2,954.00",0.00,N/A,N/A
Integrated Services,Agency Placements,Non-Schools,FOSTERING PEOPLE LTD,1109510,02/06/2020,3474529,"2,954.00",0.00,N/A,N/A
Integrated Services,Agency Placements,Non-Schools,FOSTERING PEOPLE LTD,1109510,02/06/2020,3474529,"2,954.00",0.00,N/A,N/A
Integrated Services,Agency Placements,Non-Schools,FOSTERING PEOPLE LTD,1109510,02/06/2020,3474529,"1,120.00",0.00,N/A,N/A
Integrated Services,Agency Placements,Non-Schools,FOSTERING PEOPLE LTD,1109510,02/06/2020,3474529,"1,791.43",0.00,N/A,N/A
Integrated Services,Agency Placements,Non-Schools,FOSTERING PEOPLE LTD,1109510,02/06/2020,3474529,"1,120.00",0.00,N/A,N/A
Integrated Services,Agency Placements,Non-Schools,FOSTERING PEOPLE LTD,1109510,02/06/2020,3474529,"3,110.80",0.00,N/A,N/A
Integrated Services,Agency Placements,Non-Schools,FOSTERING PEOPLE LTD,1109510,02/06/2020,3474529,"3,110.80",0.00,N/A,N/A
Integrated Services,Agency Placements,Non-Schools,FOSTERING PEOPLE LTD,1109510,02/06/2020,3474529,"3,110.80",0.00,N/A,N/A
Integrated Services,Agency Placements,Non-Schools,FOSTERING PEOPLE LTD,1109510,02/06/2020,3474529,"3,110.80",0.00,N/A,N/A
Integrated Services,Agency Placements,Non-Schools,FOSTERING PEOPLE LTD,1109510,02/06/2020,3474529,"3,110.80",0.00,N/A,N/A
Integrated Services,Agency Placements,Non-Schools,FOSTERING PEOPLE LTD,1109510,02/06/2020,3474529,"3,110.80",0.00,N/A,N/A
Integrated Services,Agency Placements,Non-Schools,FOSTERING PEOPLE LTD,1109510,02/06/2020,3474529,"3,136.00",0.00,N/A,N/A
Integrated Services,Agency Placements,Non-Schools,FOSTERING PEOPLE LTD,1109510,02/06/2020,3474529,"3,136.00",0.00,N/A,N/A
Integrated Services,Agency Placements,Non-Schools,FOSTERING PEOPLE LTD,1109510,02/06/2020,3474529,"3,110.80",0.00,N/A,N/A
Integrated Services,Agency Placements,Non-Schools,FOSTERING SOLUTIONS LTD,1109511,02/06/2020,3474540,"5,992.00",0.00,N/A,N/A
Integrated Services,Agency Placements,Non-Schools,FOSTERING SOLUTIONS LTD,1109511,02/06/2020,3474540,"3,968.00",0.00,N/A,N/A
Integrated Services,Agency Placements,Non-Schools,FOSTERING SOLUTIONS LTD,1109511,02/06/2020,3474540,"3,276.00",0.00,N/A,N/A
Integrated Services,Agency Placements,Non-Schools,FOSTERING SOLUTIONS LTD,1109511,02/06/2020,3474540,"3,276.00",0.00,N/A,N/A
Integrated Services,Agency Placements,Non-Schools,FOSTERING SOLUTIONS LTD,1109511,02/06/2020,3474540,"3,210.48",0.00,N/A,N/A
Integrated Services,Agency Placements,Non-Schools,FOSTERING SOLUTIONS LTD,1109511,02/06/2020,3474540,"2,980.04",0.00,N/A,N/A
Integrated Services,Agency Placements,Non-Schools,FOSTERING SOLUTIONS LTD,1109511,02/06/2020,3474540,"2,819.88",0.00,N/A,N/A
Integrated Services,Agency Placements,Non-Schools,FOSTERING SOLUTIONS LTD,1109511,02/06/2020,3474540,"2,819.88",0.00,N/A,N/A
Integrated Services,Agency Placements,Non-Schools,FOSTERING SOLUTIONS LTD,1109511,02/06/2020,3474540,"2,640.00",0.00,N/A,N/A
Integrated Services,Agency Placements,Non-Schools,FOSTERING SOLUTIONS LTD,1109511,02/06/2020,3474540,"2,640.00",0.00,N/A,N/A
Integrated Services,Agency Placements,Non-Schools,FOSTERPLUS LTD,1109515,02/06/2020,3474780,"2,960.00",0.00,N/A,N/A
Integrated Services,Agency Placements,Non-Schools,FOSTERPLUS LTD,1109515,02/06/2020,3474780,"2,960.00",0.00,N/A,N/A
Integrated Services,Agency Placements,Non-Schools,FOSTERPLUS LTD,1109515,02/06/2020,3474780,"2,880.00",0.00,N/A,N/A
General,Stores Road Depot & Fleet Management,"Strategic Partnerships, Planning & Streetpride",FUELTEK LTD,232392,02/06/2020,3474909,"3,270.04",0.00,Communities & Place,Commercial and Military and Private Vehi
Learning Disability Support,Transitions and Ordinary Lives - Learning Disability Support,Transitions and Ordinary Lives,FULLWOOD HOUSE ACH LTD,222389,02/06/2020,3475303,"2,200.00",0.00,N/A,N/A
Learning Disability Support,Transitions and Ordinary Lives - Learning Disability Support,Transitions and Ordinary Lives,FULLWOOD HOUSE ACH LTD,222389,02/06/2020,3475125,"2,154.44",0.00,N/A,N/A
Learning Disability Support,Transitions and Ordinary Lives - Learning Disability Support,Transitions and Ordinary Lives,FULLWOOD HOUSE ACH LTD,222389,02/06/2020,3475126,"2,786.24",0.00,N/A,N/A
Integrated Services,Agency Placements,Non-Schools,FUSION FOSTERING,1112468,02/06/2020,3474549,"3,700.00",0.00,N/A,N/A
Integrated Services,Agency Placements,Non-Schools,FUSION FOSTERING,1112468,02/06/2020,3474549,"3,380.00",0.00,N/A,N/A
Integrated Services,Agency Placements,Non-Schools,FUSION FOSTERING,1112468,02/06/2020,3474549,"3,380.00",0.00,N/A,N/A
Integrated Services,Agency Placements,Non-Schools,FUSION FOSTERING,1112468,02/06/2020,3474549,"3,300.00",0.00,N/A,N/A
Integrated Services,Agency Placements,Non-Schools,FUSION FOSTERING,1112468,02/06/2020,3474549,589.29,0.00,N/A,N/A
Integrated Services,Agency Placements,Non-Schools,FUTURE IN MIND,879471,02/06/2020,3472572,"14,571.43",0.00,N/A,N/A
Economic Regeneration,DEGF,"Regeneration, Property & Housing",GELDARDS LLP,905481,02/06/2020,3472817,"1,530.00",0.00,N/A,N/A
Mental Health Support,Mental Health - Mental Health Support,Mental Health,GILBY HOUSE NURSING HOME,471192,02/06/2020,3475471,955.24,0.00,N/A,N/A
Learning Disability Support,Transitions and Ordinary Lives - Learning Disability Support,Transitions and Ordinary Lives,GRATIA RESIDENTIAL HOME,10590,02/06/2020,3475119,"3,148.56",0.00,N/A,N/A
Neighbourhoods,Capital,Capital,GREENHATCH LTD,1735,02/06/2020,3472802,"2,475.00",0.00,Asset Management - Structures Maintenance,Engineering and Research and Technology
Learning Disability Support,Community Support - Learning Disability Support,Community Support,GREENWICH GARDENS EXTRA CAS DCS,537476,02/06/2020,3474086,"1,221.92",0.00,N/A,N/A
Learning Disability Support,Community Support - Learning Disability Support,Community Support,GREENWICH GARDENS EXTRA CAS DCS,537476,02/06/2020,3473710,698.08,0.00,N/A,N/A
Mental Health Support,Community Support - Mental Health Support,Community Support,GREENWICH GARDENS EXTRA CAS DCS,537476,02/06/2020,3473841,"1,063.68",0.00,N/A,N/A
Mental Health Support,Community Support - Mental Health Support,Community Support,GREENWICH GARDENS EXTRA CAS DCS,537476,02/06/2020,3473980,602.29,0.00,N/A,N/A
Mental Health Support,Community Support - Mental Health Support,Community Support,GREENWICH GARDENS EXTRA CAS DCS,537476,02/06/2020,3474208,864.92,0.00,N/A,N/A
Physical Support,Community Support - Physical Support,Community Support,GREENWICH GARDENS EXTRA CAS DCS,537476,02/06/2020,3473614,787.76,0.00,N/A,N/A
Physical Support,Community Support - Physical Support,Community Support,GREENWICH GARDENS EXTRA CAS DCS,537476,02/06/2020,3473975,525.44,0.00,N/A,N/A
Physical Support,Community Support - Physical Support,Community Support,GREENWICH GARDENS EXTRA CAS DCS,537476,02/06/2020,3474083,970.72,0.00,N/A,N/A
Physical Support,Community Support - Physical Support,Community Support,GREENWICH GARDENS EXTRA CAS DCS,537476,02/06/2020,3474084,"1,442.92",0.00,N/A,N/A
Physical Support,Community Support - Physical Support,Community Support,GREENWICH GARDENS EXTRA CAS DCS,537476,02/06/2020,3474085,"1,442.92",0.00,N/A,N/A
Physical Support,Community Support - Physical Support,Community Support,GREENWICH GARDENS EXTRA CAS DCS,537476,02/06/2020,3473971,645.54,0.00,N/A,N/A
Physical Support,Community Support - Physical Support,Community Support,GREENWICH GARDENS EXTRA CAS DCS,537476,02/06/2020,3473972,903.32,0.00,N/A,N/A
Physical Support,Community Support - Physical Support,Community Support,GREENWICH GARDENS EXTRA CAS DCS,537476,02/06/2020,3473974,683.56,0.00,N/A,N/A
Physical Support,Community Support - Physical Support,Community Support,GREENWICH GARDENS EXTRA CAS DCS,537476,02/06/2020,3474464,545.60,0.00,N/A,N/A
Physical Support,Community Support - Physical Support,Community Support,GREENWICH GARDENS EXTRA CAS DCS,537476,02/06/2020,3473708,"1,481.40",0.00,N/A,N/A
Physical Support,Community Support - Physical Support,Community Support,GREENWICH GARDENS EXTRA CAS DCS,537476,02/06/2020,3474077,511.88,0.00,N/A,N/A
Physical Support,Community Support - Physical Support,Community Support,GREENWICH GARDENS EXTRA CAS DCS,537476,02/06/2020,3474082,933.32,0.00,N/A,N/A
Physical Support,Community Support - Physical Support,Community Support,GREENWICH GARDENS EXTRA CAS DCS,537476,02/06/2020,3474205,622.76,0.00,N/A,N/A
Physical Support,Community Support - Physical Support,Community Support,GREENWICH GARDENS EXTRA CAS DCS,537476,02/06/2020,3474206,864.92,0.00,N/A,N/A
Physical Support,Community Support - Physical Support,Community Support,GREENWICH GARDENS EXTRA CAS DCS,537476,02/06/2020,3474207,"1,212.88",0.00,N/A,N/A
Physical Support,Community Support - Physical Support,Community Support,GREENWICH GARDENS EXTRA CAS DCS,537476,02/06/2020,3473836,"1,476.44",0.00,N/A,N/A
Physical Support,Community Support - Physical Support,Community Support,GREENWICH GARDENS EXTRA CAS DCS,537476,02/06/2020,3473837,"1,543.06",0.00,N/A,N/A
Physical Support,Community Support - Physical Support,Community Support,GREENWICH GARDENS EXTRA CAS DCS,537476,02/06/2020,3473612,"1,355.08",0.00,N/A,N/A
Physical Support,Community Support - Physical Support,Community Support,GREENWICH GARDENS EXTRA CAS DCS,537476,02/06/2020,3474462,"1,415.88",0.00,N/A,N/A
Physical Support,Community Support - Physical Support,Community Support,GREENWICH GARDENS EXTRA CAS DCS,537476,02/06/2020,3474463,"1,607.00",0.00,N/A,N/A
Physical Support,Community Support - Physical Support,Community Support,GREENWICH GARDENS EXTRA CAS DCS,537476,02/06/2020,3474079,887.72,0.00,N/A,N/A
Physical Support,Community Support - Physical Support,Community Support,GREENWICH GARDENS EXTRA CAS DCS,537476,02/06/2020,3473838,"1,042.04",0.00,N/A,N/A
Sensory Support,Community Support - Sensory Support,Community Support,GREENWICH GARDENS EXTRA CAS DCS,537476,02/06/2020,3473709,"1,139.48",0.00,N/A,N/A
Support with Memory and Cognition,Community Support - Support with Memory and Cognition,Community Support,GREENWICH GARDENS EXTRA CAS DCS,537476,02/06/2020,3474465,"1,292.36",0.00,N/A,N/A
Support with Memory and Cognition,Community Support - Support with Memory and Cognition,Community Support,GREENWICH GARDENS EXTRA CAS DCS,537476,02/06/2020,3473979,"1,292.36",0.00,N/A,N/A
Mental Health Support,Mental Health - Mental Health Support,Mental Health,GREENWICH GARDENS EXTRA CAS DCS,537476,02/06/2020,3473616,596.20,0.00,N/A,N/A
Mental Health Support,Mental Health - Mental Health Support,Mental Health,GREENWICH GARDENS EXTRA CAS DCS,537476,02/06/2020,3473711,636.32,0.00,N/A,N/A
Learning Disability Support,Transitions and Ordinary Lives - Learning Disability Support,Transitions and Ordinary Lives,GRETTON HOMES,10594,02/06/2020,3475080,"6,447.00",0.00,N/A,N/A
Mental Health Support,Mental Health - Mental Health Support,Mental Health,HALCYON LIVING 111 LTD,473756,02/06/2020,3475306,"1,517.80",0.00,N/A,N/A
Learning Disability Support,Transitions and Ordinary Lives - Learning Disability Support,Transitions and Ordinary Lives,HAREWOOD PARK NURSING HOME,10593,02/06/2020,3475520,"2,801.56",0.00,N/A,N/A
Strategic Asset Management and Estates,Strategic Asset Management and Estates,"Regeneration, Property & Housing",HAYS SPECIALIST RECRUITMENT LTD,1852,02/06/2020,3477423,"4,018.95",0.00,N/A,N/A
Physical Support,Community Support - Physical Support,Community Support,HC ONE LIMITED,1111483,02/06/2020,3475677,"2,038.76",0.00,N/A,N/A
Physical Support,Community Support - Physical Support,Community Support,HC ONE OVAL LTD,119813,02/06/2020,3476578,"2,118.48",0.00,N/A,N/A
Physical Support,Community Support - Physical Support,Community Support,HC ONE OVAL LTD,119813,02/06/2020,3476686,"2,175.44",0.00,N/A,N/A
Physical Support,Community Support - Physical Support,Community Support,HC ONE OVAL LTD,119813,02/06/2020,3476349,"2,118.48",0.00,N/A,N/A
Physical Support,Community Support - Physical Support,Community Support,HC ONE OVAL LTD,119813,02/06/2020,3476292,"2,175.44",0.00,N/A,N/A
Physical Support,Community Support - Physical Support,Community Support,HC ONE OVAL LTD,119813,02/06/2020,3476626,"2,175.44",0.00,N/A,N/A
Physical Support,Community Support - Physical Support,Community Support,HC ONE OVAL LTD,119813,02/06/2020,3476471,"2,118.48",0.00,N/A,N/A
Physical Support,Community Support - Physical Support,Community Support,HC ONE OVAL LTD,119813,02/06/2020,3476286,"1,165.01",0.00,N/A,N/A
Physical Support,Community Support - Physical Support,Community Support,HC ONE OVAL LTD,119813,02/06/2020,3476395,"1,019.38",0.00,N/A,N/A
Physical Support,Community Support - Physical Support,Community Support,HC ONE OVAL LTD,119813,02/06/2020,3476399,"1,570.20",0.00,N/A,N/A
Physical Support,Community Support - Physical Support,Community Support,HC ONE OVAL LTD,119813,02/06/2020,3476401,"2,093.60",0.00,N/A,N/A
Physical Support,Community Support - Physical Support,Community Support,HC ONE OVAL LTD,119813,02/06/2020,3476407,"2,175.44",0.00,N/A,N/A
Physical Support,Community Support - Physical Support,Community Support,HC ONE OVAL LTD,119813,02/06/2020,3476527,"2,093.60",0.00,N/A,N/A
Physical Support,Community Support - Physical Support,Community Support,HC ONE OVAL LTD,119813,02/06/2020,3476528,"2,093.60",0.00,N/A,N/A
Physical Support,Community Support - Physical Support,Community Support,HC ONE OVAL LTD,119813,02/06/2020,3476621,"1,794.51",0.00,N/A,N/A
Physical Support,Community Support - Physical Support,Community Support,HC ONE OVAL LTD,119813,02/06/2020,3476627,"2,175.44",0.00,N/A,N/A
Physical Support,Community Support - Physical Support,Community Support,HC ONE OVAL LTD,119813,02/06/2020,3476628,"2,175.44",0.00,N/A,N/A
Physical Support,Community Support - Physical Support,Community Support,HC ONE OVAL LTD,119813,02/06/2020,3476525,621.55,0.00,N/A,N/A
Physical Support,Community Support - Physical Support,Community Support,HC ONE OVAL LTD,119813,02/06/2020,3476526,747.71,0.00,N/A,N/A
Physical Support,Community Support - Physical Support,Community Support,HC ONE OVAL LTD,119813,02/06/2020,3476469,"2,118.48",0.00,N/A,N/A
Physical Support,Community Support - Physical Support,Community Support,HC ONE OVAL LTD,119813,02/06/2020,3476403,"2,175.44",0.00,N/A,N/A
Physical Support,Community Support - Physical Support,Community Support,HC ONE OVAL LTD,119813,02/06/2020,3476288,"1,631.58",0.00,N/A,N/A
Physical Support,Community Support - Physical Support,Community Support,HC ONE OVAL LTD,119813,02/06/2020,3476458,"1,570.20",0.00,N/A,N/A
Physical Support,Community Support - Physical Support,Community Support,HC ONE OVAL LTD,119813,02/06/2020,3476470,"2,175.44",0.00,N/A,N/A
Support with Memory and Cognition,Community Support - Support with Memory and Cognition,Community Support,HC ONE OVAL LTD,119813,02/06/2020,3476347,"2,175.44",0.00,N/A,N/A
Mental Health Support,Mental Health - Mental Health Support,Mental Health,HC ONE OVAL LTD,119813,02/06/2020,3475634,"1,243.20",0.00,N/A,N/A
Learning Disability Support,Transitions and Ordinary Lives - Learning Disability Support,Transitions and Ordinary Lives,HC ONE OVAL LTD,119813,02/06/2020,3476408,"2,118.48",0.00,N/A,N/A
Integrated Services,Agency Placements,Non-Schools,HEATH FARM FOSTERING,1112471,02/06/2020,3474704,"5,800.00",0.00,N/A,N/A
Learning Disability Support,Transitions and Ordinary Lives - Learning Disability Support,Transitions and Ordinary Lives,HEATHCOTES CARE HOME,17541,02/06/2020,3475193,"9,993.68",0.00,N/A,N/A
Learning Disability Support,Transitions and Ordinary Lives - Learning Disability Support,Transitions and Ordinary Lives,HEATHCOTES CARE LTD,22350,02/06/2020,3475094,"8,681.08",0.00,N/A,N/A
Learning Disability Support,Transitions and Ordinary Lives - Learning Disability Support,Transitions and Ordinary Lives,HEATHCOTES CARE LTD,22350,02/06/2020,3475104,"1,378.92",0.00,N/A,N/A
Learning Disability Support,Transitions and Ordinary Lives - Learning Disability Support,Transitions and Ordinary Lives,HEATHCOTES CARE LTD,22350,02/06/2020,3475354,"7,813.96",0.00,N/A,N/A
Learning Disability Support,Community Support - Learning Disability Support,Community Support,HEATHCOTES DERBY,568444,02/06/2020,3475724,"8,189.72",0.00,N/A,N/A
Physical Support,Community Support - Physical Support,Community Support,HEATHCOTES DERBY,568444,02/06/2020,3475786,"2,523.24",0.00,N/A,N/A
Physical Support,Community Support - Physical Support,Community Support,HEATHCOTES DERBY,568444,02/06/2020,3475843,"5,887.52",0.00,N/A,N/A
Learning Disability Support,Transitions and Ordinary Lives - Learning Disability Support,Transitions and Ordinary Lives,HEATHCOTES DERBY,568444,02/06/2020,3475747,"7,334.56",0.00,N/A,N/A
Learning Disability Support,Transitions and Ordinary Lives - Learning Disability Support,Transitions and Ordinary Lives,HEATHCOTES DERBY,568444,02/06/2020,3475824,"8,529.72",0.00,N/A,N/A
Learning Disability Support,Transitions and Ordinary Lives - Learning Disability Support,Transitions and Ordinary Lives,HEATHCOTES DERBY,568444,02/06/2020,3475763,"7,094.92",0.00,N/A,N/A
Mental Health Support,Mental Health - Mental Health Support,Mental Health,HEGARTY CARE LIMITED,924470,02/06/2020,3475727,"2,982.86",0.00,N/A,N/A
Mental Health Support,Mental Health - Mental Health Support,Mental Health,HEGARTY CARE LIMITED,924470,02/06/2020,3475767,"3,480.00",0.00,N/A,N/A
Learning Disability Support,Transitions and Ordinary Lives - Learning Disability Support,Transitions and Ordinary Lives,HEGARTY CARE LIMITED,924470,02/06/2020,3475844,"12,250.00",0.00,N/A,N/A
Learning & Inclusion,Inclusion & Intervention,Non-Schools,HEMPSALL CONSULTANCIES LTD,994471,02/06/2020,3477486,"6,450.00",0.00,N/A,N/A
General,Stores Road Depot & Fleet Management,"Strategic Partnerships, Planning & Streetpride",HENTON AND CHATTELL LTD,1883,02/06/2020,3474991,"48,771.00",0.00,Communities & Place,Commercial and Military and Private Vehi
Learning Disability Support,Transitions and Ordinary Lives - Learning Disability Support,Transitions and Ordinary Lives,HICA GROUP,1255471,02/06/2020,3475291,"2,186.96",0.00,N/A,N/A
Learning Disability Support,Transitions and Ordinary Lives - Learning Disability Support,Transitions and Ordinary Lives,HICA GROUP,1255471,02/06/2020,3475623,"2,186.96",0.00,N/A,N/A
Learning Disability Support,Transitions and Ordinary Lives - Learning Disability Support,Transitions and Ordinary Lives,HICA GROUP,1255471,02/06/2020,3475376,"2,030.75",0.00,N/A,N/A
Learning Disability Support,Transitions and Ordinary Lives - Learning Disability Support,Transitions and Ordinary Lives,HICA GROUP,1255471,02/06/2020,3475462,"2,186.96",0.00,N/A,N/A
Learning Disability Support,Transitions and Ordinary Lives - Learning Disability Support,Transitions and Ordinary Lives,HIGHFIELD COURT CARE COMPLEX,10608,02/06/2020,3475671,"3,200.00",0.00,N/A,N/A
Learning Disability Support,Transitions and Ordinary Lives - Learning Disability Support,Transitions and Ordinary Lives,HIGHFIELD COURT CARE COMPLEX,10608,02/06/2020,3475427,"4,810.40",0.00,N/A,N/A
Learning Disability Support,Transitions and Ordinary Lives - Learning Disability Support,Transitions and Ordinary Lives,HIGHFIELD COURT CARE COMPLEX,10608,02/06/2020,3475426,"3,000.00",0.00,N/A,N/A
Learning Disability Support,Transitions and Ordinary Lives - Learning Disability Support,Transitions and Ordinary Lives,HIGHFIELD COURT CARE COMPLEX,10608,02/06/2020,3475081,"2,192.72",0.00,N/A,N/A
Learning Disability Support,Transitions and Ordinary Lives - Learning Disability Support,Transitions and Ordinary Lives,HIGHFIELD COURT CARE COMPLEX,10608,02/06/2020,3475082,"3,000.00",0.00,N/A,N/A
Learning Disability Support,Transitions and Ordinary Lives - Learning Disability Support,Transitions and Ordinary Lives,HIGHFIELD COURT CARE COMPLEX,10608,02/06/2020,3475500,"2,628.12",0.00,N/A,N/A
Early Help & Children�s Safeguarding,Integrated and Safeguarding Services Locality 3/4,Non-Schools,HILBROKE HOUSE LTD,1002472,02/06/2020,3477172,770.00,0.00,N/A,N/A
Early Help & Children�s Safeguarding,Integrated and Safeguarding Services Locality 3/4,Non-Schools,HILBROKE HOUSE LTD,1002472,02/06/2020,3474904,"1,050.00",0.00,N/A,N/A
Early Help & Children�s Safeguarding,Integrated and Safeguarding Services Locality 3/4,Non-Schools,HILBROKE HOUSE LTD,1002472,02/06/2020,3474918,525.00,0.00,N/A,N/A
Early Help & Children�s Safeguarding,Integrated Services Locality 3/4,Non-Schools,HILBROKE HOUSE LTD,1002472,02/06/2020,3477245,910.00,0.00,N/A,N/A
Early Help & Children�s Safeguarding,Integrated Services Locality 3/4,Non-Schools,HILBROKE HOUSE LTD,1002472,02/06/2020,3477266,910.00,0.00,N/A,N/A
Early Help & Children�s Safeguarding,Integrated Services Locality 3/4,Non-Schools,HILBROKE HOUSE LTD,1002472,02/06/2020,3477264,910.00,0.00,N/A,N/A
Early Help & Children�s Safeguarding,Integrated Services Locality 3/4,Non-Schools,HILBROKE HOUSE LTD,1002472,02/06/2020,3477243,770.00,0.00,N/A,N/A
Integrated Services,Agency Placements,Non-Schools,HILLCREST CHILDRENS SERVICES 2 LIMITED,1112472,02/06/2020,3474709,"4,952.00",0.00,N/A,N/A
Integrated Services,Agency Placements,Non-Schools,HILLCREST CHILDRENS SERVICES 2 LIMITED,1316472,02/06/2020,3472591,"18,350.19",0.00,N/A,N/A
Integrated Services,Agency Placements,Non-Schools,HILLCREST CHILDRENS SERVICES 2 LIMITED,1316472,02/06/2020,3449027,"16,564.80",0.00,N/A,N/A
Integrated Services,Agency Placements,Non-Schools,HILLCREST CHILDRENS SERVICES 2 LIMITED,1316472,02/06/2020,3449027,"16,584.80",0.00,N/A,N/A
Integrated Services,Agency Placements,Non-Schools,HILLCREST CHILDRENS SERVICES 2 LIMITED,1316472,02/06/2020,3449027,"16,564.80",0.00,N/A,N/A
Integrated Services,Agency Placements,Non-Schools,HILLCREST CHILDRENS SERVICES 2 LIMITED,1316472,02/06/2020,3449036,"19,507.50",0.00,N/A,N/A
Integrated Services,Agency Placements,Non-Schools,HILLCREST CHILDRENS SERVICES 2 LIMITED,1316472,02/06/2020,3449036,"19,507.50",0.00,N/A,N/A
Physical Support,Community Support - Physical Support,Community Support,HOLLY TREE LODGE,10612,02/06/2020,3476201,"2,118.48",0.00,N/A,N/A
Physical Support,Community Support - Physical Support,Community Support,HOLLY TREE LODGE,10612,02/06/2020,3476169,"2,061.76",0.00,N/A,N/A
Physical Support,Community Support - Physical Support,Community Support,HOLLY TREE LODGE,10612,02/06/2020,3476170,"2,118.48",0.00,N/A,N/A
Physical Support,Community Support - Physical Support,Community Support,HOLLY TREE LODGE,10612,02/06/2020,3476246,"2,118.48",0.00,N/A,N/A
Support with Memory and Cognition,Community Support - Support with Memory and Cognition,Community Support,HOLLY TREE LODGE,10612,02/06/2020,3476218,"2,118.48",0.00,N/A,N/A
Support with Memory and Cognition,Community Support - Support with Memory and Cognition,Community Support,HOLLY TREE LODGE,10612,02/06/2020,3476144,"2,118.48",0.00,N/A,N/A
Mental Health Support,Mental Health - Mental Health Support,Mental Health,HOLLY TREE LODGE,10612,02/06/2020,3476202,"2,118.48",0.00,N/A,N/A
Mental Health Support,Mental Health - Mental Health Support,Mental Health,HOLLY TREE LODGE,10612,02/06/2020,3476203,"2,118.48",0.00,N/A,N/A
Mental Health Support,Mental Health - Mental Health Support,Mental Health,HOLLY TREE LODGE,10612,02/06/2020,3476171,"2,118.48",0.00,N/A,N/A
Physical Support,Community Support - Physical Support,Community Support,HOME SUPPORT SERVICES,1120475,02/06/2020,3473867,572.16,0.00,N/A,N/A
Integrated Commissioning,Integrated Commissioning,Commissioning,HOME SUPPORT SERVICES,1120475,02/06/2020,3474005,"1,264.08",0.00,N/A,N/A
Integrated Commissioning,Integrated Commissioning,Commissioning,HOME SUPPORT SERVICES,1120475,02/06/2020,3474227,"1,264.08",0.00,N/A,N/A
Integrated Services,Agency Placements,Non-Schools,HOPE FOSTERING SERVICE,1230482,02/06/2020,3474554,"3,400.00",0.00,N/A,N/A
Integrated Services,Agency Placements,Non-Schools,HOPE FOSTERING SERVICE,1230482,02/06/2020,3474554,"3,400.00",0.00,N/A,N/A
Integrated Services,Agency Placements,Non-Schools,HOPE FOSTERING SERVICE,1230482,02/06/2020,3474554,"3,000.00",0.00,N/A,N/A
Integrated Services,Agency Placements,Non-Schools,HOPE FOSTERING SERVICE,1230482,02/06/2020,3474554,"2,940.00",0.00,N/A,N/A
Integrated Services,Agency Placements,Non-Schools,HOPE FOSTERING SERVICE,1230482,02/06/2020,3474554,"2,940.00",0.00,N/A,N/A
Integrated Services,Agency Placements,Non-Schools,HOPE FOSTERING SERVICE,1230482,02/06/2020,3474554,"2,808.00",0.00,N/A,N/A
Integrated Services,Agency Placements,Non-Schools,HOPE FOSTERING SERVICE,1230482,02/06/2020,3474554,"2,808.00",0.00,N/A,N/A
Integrated Services,Agency Placements,Non-Schools,HOPE FOSTERING SERVICE,1230482,02/06/2020,3474554,"2,808.00",0.00,N/A,N/A
Integrated Services,Agency Placements,Non-Schools,HOPE FOSTERING SERVICE,1230482,02/06/2020,3474554,"2,808.00",0.00,N/A,N/A
Integrated Services,Agency Placements,Non-Schools,HOPE FOSTERING SERVICE,1230482,02/06/2020,3474554,"2,640.00",0.00,N/A,N/A
Integrated Services,Agency Placements,Non-Schools,HOPEDALE CHILDREN AND FAMILY SERVICES LTD,479401,02/06/2020,3472611,"11,942.67",0.00,N/A,N/A
Integrated Services,Agency Placements,Non-Schools,HOPEDALE CHILDREN AND FAMILY SERVICES LTD,479401,02/06/2020,3472611,"11,924.67",0.00,N/A,N/A
Integrated Services,Agency Placements,Non-Schools,HORIZON CARE AND EDUCATION LTD,221385,02/06/2020,3472565,"12,000.00",0.00,People Services - Children & Young People,Politics and Civic Affairs Services
Integrated Services,Agency Placements,Non-Schools,HORIZON CARE AND EDUCATION LTD,221385,02/06/2020,3472566,"12,000.00",0.00,People Services - Children & Young People,Politics and Civic Affairs Services
Integrated Services,Agency Placements,Non-Schools,HORIZON CARE AND EDUCATION LTD,221385,02/06/2020,3472567,"12,000.00",0.00,People Services - Children & Young People,Politics and Civic Affairs Services
Integrated Commissioning,Integrated Commissioning,Commissioning,HOUSING 21,1030469,02/06/2020,3472762,"2,146.24",0.00,N/A,N/A
Learning Disability Support,Transitions and Ordinary Lives - Learning Disability Support,Transitions and Ordinary Lives,HOWSON CARE CENTRE LTD,120848,02/06/2020,3475296,"2,008.00",0.00,N/A,N/A
Mental Health Support,Mental Health - Mental Health Support,Mental Health,HUDSON SANDIACRE LTD,966473,02/06/2020,3475504,"4,300.00",0.00,N/A,N/A
Learning Disability Support,Community Support - Learning Disability Support,Community Support,I CARE GB LTD,471255,02/06/2020,3474097,836.14,0.00,N/A,N/A
Learning Disability Support,Community Support - Learning Disability Support,Community Support,I CARE GB LTD,471255,02/06/2020,3473726,836.14,0.00,N/A,N/A
Mental Health Support,Community Support - Mental Health Support,Community Support,I CARE GB LTD,471255,02/06/2020,3473853,"1,307.52",0.00,N/A,N/A
Mental Health Support,Community Support - Mental Health Support,Community Support,I CARE GB LTD,471255,02/06/2020,3474484,"1,307.52",0.00,N/A,N/A
Physical Support,Community Support - Physical Support,Community Support,I CARE GB LTD,471255,02/06/2020,3473831,900.21,0.00,N/A,N/A
Physical Support,Community Support - Physical Support,Community Support,I CARE GB LTD,471255,02/06/2020,3474324,532.95,0.00,N/A,N/A
Physical Support,Community Support - Physical Support,Community Support,I CARE GB LTD,471255,02/06/2020,3473989,501.09,0.00,N/A,N/A
Physical Support,Community Support - Physical Support,Community Support,I CARE GB LTD,471255,02/06/2020,3473676,799.56,0.00,N/A,N/A
Physical Support,Community Support - Physical Support,Community Support,I CARE GB LTD,471255,02/06/2020,3474096,679.46,0.00,N/A,N/A
Physical Support,Community Support - Physical Support,Community Support,I CARE GB LTD,471255,02/06/2020,3473677,928.89,0.00,N/A,N/A
Physical Support,Community Support - Physical Support,Community Support,I CARE GB LTD,471255,02/06/2020,3474174,529.20,0.00,N/A,N/A
Physical Support,Community Support - Physical Support,Community Support,I CARE GB LTD,471255,02/06/2020,3474175,690.54,0.00,N/A,N/A
Physical Support,Community Support - Physical Support,Community Support,I CARE GB LTD,471255,02/06/2020,3474430,552.87,0.00,N/A,N/A
Physical Support,Community Support - Physical Support,Community Support,I CARE GB LTD,471255,02/06/2020,3474049,552.87,0.00,N/A,N/A
Physical Support,Community Support - Physical Support,Community Support,I CARE GB LTD,471255,02/06/2020,3474482,581.56,0.00,N/A,N/A
Physical Support,Community Support - Physical Support,Community Support,I CARE GB LTD,471255,02/06/2020,3474483,698.02,0.00,N/A,N/A
Physical Support,Community Support - Physical Support,Community Support,I CARE GB LTD,471255,02/06/2020,3474217,888.84,0.00,N/A,N/A
Physical Support,Community Support - Physical Support,Community Support,I CARE GB LTD,471255,02/06/2020,3473929,552.87,0.00,N/A,N/A
Physical Support,Community Support - Physical Support,Community Support,I CARE GB LTD,471255,02/06/2020,3474302,928.89,0.00,N/A,N/A
Physical Support,Community Support - Physical Support,Community Support,I CARE GB LTD,471255,02/06/2020,3473850,508.17,0.00,N/A,N/A
Physical Support,Community Support - Physical Support,Community Support,I CARE GB LTD,471255,02/06/2020,3473724,"1,194.44",0.00,N/A,N/A
Mental Health Support,Mental Health - Mental Health Support,Mental Health,I CARE GB LTD,471255,02/06/2020,3474486,655.08,0.00,N/A,N/A
"Occupational Health, Safety, Markets & Bereavement Services",Bereavement Services,"Communities, Environment & Regulatory Services",IMPACT MARKETING & PUBLICITY LTD,2283,02/06/2020,3474948,995.00,0.00,Communities & Place,Editorial and Design and Graphic and Fin
Mental Health Support,Mental Health - Mental Health Support,Mental Health,INDEPENDENT HOMES LTD,1305481,02/06/2020,3475748,"3,897.14",0.00,N/A,N/A
Mental Health Support,Mental Health - Mental Health Support,Mental Health,ISLAND PLACE,50475,02/06/2020,3475181,848.00,0.00,N/A,N/A
Integrated Services,Agency Placements,Non-Schools,ISP CENTRAL OFFICE,1112475,02/06/2020,3474630,"6,596.00",0.00,N/A,N/A
Integrated Services,Agency Placements,Non-Schools,ISP CENTRAL OFFICE,1112475,02/06/2020,3474630,"5,196.00",0.00,N/A,N/A
Integrated Services,Agency Placements,Non-Schools,ISP CENTRAL OFFICE,1112475,02/06/2020,3474630,"5,196.00",0.00,N/A,N/A
Integrated Services,Agency Placements,Non-Schools,ISP CENTRAL OFFICE,1112475,02/06/2020,3474630,"5,196.00",0.00,N/A,N/A
Integrated Services,Agency Placements,Non-Schools,ISP CENTRAL OFFICE,1112475,02/06/2020,3474630,"5,196.00",0.00,N/A,N/A
Integrated Services,Agency Placements,Non-Schools,ISP CENTRAL OFFICE,1112475,02/06/2020,3474630,"5,196.00",0.00,N/A,N/A
Integrated Services,Agency Placements,Non-Schools,ISP CENTRAL OFFICE,1112475,02/06/2020,3474630,"5,196.00",0.00,N/A,N/A
Integrated Services,Agency Placements,Non-Schools,ISP CENTRAL OFFICE,1112475,02/06/2020,3474630,965.71,0.00,N/A,N/A
Adults Health and Housing,Capital,Capital,J & K DEVELOPMENTS LTD,955472,02/06/2020,3475015,"7,000.00",0.00,N/A,N/A
Adults Health and Housing,Capital,Capital,J & K DEVELOPMENTS LTD,955472,02/06/2020,3475013,"7,650.00",0.00,N/A,N/A
Learning Disability Support,Transitions and Ordinary Lives - Learning Disability Support,Transitions and Ordinary Lives,JAMES COURT RESIDENTIAL HOME,119369,02/06/2020,3475633,"2,288.84",0.00,N/A,N/A
Integrated Services,Agency Placements,Non-Schools,JAY FOSTERING,1112476,02/06/2020,3474538,"3,036.00",0.00,N/A,N/A
Integrated Services,Agency Placements,Non-Schools,JAY FOSTERING,1112476,02/06/2020,3474538,"3,036.00",0.00,N/A,N/A
Integrated Services,Agency Placements,Non-Schools,JAY FOSTERING,1112476,02/06/2020,3474538,"2,956.00",0.00,N/A,N/A
Integrated Services,Agency Placements,Non-Schools,JAY FOSTERING,1112476,02/06/2020,3474538,"2,956.00",0.00,N/A,N/A
Integrated Services,Agency Placements,Non-Schools,JAY FOSTERING,1112476,02/06/2020,3474538,"2,956.00",0.00,N/A,N/A
Integrated Services,Agency Placements,Non-Schools,JAY FOSTERING,1112476,02/06/2020,3474538,"2,880.00",0.00,N/A,N/A
Integrated Services,Agency Placements,Non-Schools,JAY FOSTERING,1112476,02/06/2020,3474538,"3,200.00",0.00,N/A,N/A
Integrated Services,Agency Placements,Non-Schools,JAY FOSTERING,1112476,02/06/2020,3474538,"3,116.00",0.00,N/A,N/A
Integrated Services,Agency Placements,Non-Schools,JAY FOSTERING,1112476,02/06/2020,3474538,"3,116.00",0.00,N/A,N/A
Integrated Services,Agency Placements,Non-Schools,JAY FOSTERING,1112476,02/06/2020,3474538,"3,116.00",0.00,N/A,N/A
Integrated Services,Agency Placements,Non-Schools,JAY FOSTERING,1112476,02/06/2020,3474538,"3,116.00",0.00,N/A,N/A
Integrated Services,Agency Placements,Non-Schools,JAY FOSTERING,1112476,02/06/2020,3474538,"3,116.00",0.00,N/A,N/A
Integrated Services,Agency Placements,Non-Schools,JAY FOSTERING,1112476,02/06/2020,3474538,"3,116.00",0.00,N/A,N/A
Integrated Services,Agency Placements,Non-Schools,JAY FOSTERING,1112476,02/06/2020,3474538,"3,080.00",0.00,N/A,N/A
Integrated Services,Agency Placements,Non-Schools,KEDLESTON WINGS EDUCATION LTD,1303468,02/06/2020,3472596,"55,172.00",0.00,N/A,N/A
Physical Support,Community Support - Physical Support,Community Support,KIDSLEY GRANGE NURSING HOME,11650,02/06/2020,3475365,"2,243.36",0.00,N/A,N/A
Mental Health Support,Community Support - Mental Health Support,Community Support,KILBURN CARE CENTRE,10256,02/06/2020,3475194,"2,144.80",0.00,N/A,N/A
Integrated Commissioning,Integrated Commissioning,Commissioning,KILBURN CARE CENTRE,10256,02/06/2020,3475040,"2,118.48",0.00,N/A,N/A
Mental Health Support,Mental Health - Mental Health Support,Mental Health,KILBURN CARE CENTRE,10256,02/06/2020,3475368,"2,741.04",0.00,N/A,N/A
Mental Health Support,Mental Health - Mental Health Support,Mental Health,KILBURN CARE CENTRE,10256,02/06/2020,3475513,"2,726.60",0.00,N/A,N/A
Mental Health Support,Mental Health - Mental Health Support,Mental Health,KILBURN CARE CENTRE,10256,02/06/2020,3475514,"2,726.60",0.00,N/A,N/A
Mental Health Support,Mental Health - Mental Health Support,Mental Health,KILBURN CARE CENTRE,10256,02/06/2020,3475506,"2,726.60",0.00,N/A,N/A
Mental Health Support,Mental Health - Mental Health Support,Mental Health,KILBURN CARE CENTRE,10256,02/06/2020,3475507,"2,726.60",0.00,N/A,N/A
Mental Health Support,Mental Health - Mental Health Support,Mental Health,KILBURN CARE CENTRE,10256,02/06/2020,3475508,"2,726.60",0.00,N/A,N/A
Mental Health Support,Mental Health - Mental Health Support,Mental Health,KILBURN CARE CENTRE,10256,02/06/2020,3475250,"2,726.60",0.00,N/A,N/A
Mental Health Support,Mental Health - Mental Health Support,Mental Health,KILBURN CARE CENTRE,10256,02/06/2020,3475255,"2,726.60",0.00,N/A,N/A
Mental Health Support,Mental Health - Mental Health Support,Mental Health,KILBURN CARE CENTRE,10256,02/06/2020,3475171,"2,726.60",0.00,N/A,N/A
Mental Health Support,Mental Health - Mental Health Support,Mental Health,KILBURN CARE CENTRE,10256,02/06/2020,3475162,"2,726.60",0.00,N/A,N/A
Mental Health Support,Mental Health - Mental Health Support,Mental Health,KILBURN CARE CENTRE,10256,02/06/2020,3475673,"2,726.60",0.00,N/A,N/A
Mental Health Support,Mental Health - Mental Health Support,Mental Health,KILBURN CARE CENTRE,10256,02/06/2020,3475256,"2,726.60",0.00,N/A,N/A
Mental Health Support,Mental Health - Mental Health Support,Mental Health,KILBURN CARE CENTRE,10256,02/06/2020,3475532,"2,741.04",0.00,N/A,N/A
Mental Health Support,Mental Health - Mental Health Support,Mental Health,KILBURN CARE CENTRE,10256,02/06/2020,3475682,"2,726.60",0.00,N/A,N/A
Mental Health Support,Mental Health - Mental Health Support,Mental Health,KILBURN CARE CENTRE,10256,02/06/2020,3475335,"2,726.60",0.00,N/A,N/A
Mental Health Support,Mental Health - Mental Health Support,Mental Health,KILBURN CARE CENTRE,10256,02/06/2020,3475041,"2,545.25",0.00,N/A,N/A
Learning Disability Support,Transitions and Ordinary Lives - Learning Disability Support,Transitions and Ordinary Lives,KILBURN CARE CENTRE,10256,02/06/2020,3475336,"3,005.20",0.00,N/A,N/A
Learning Disability Support,Transitions and Ordinary Lives - Learning Disability Support,Transitions and Ordinary Lives,KILBURN CARE CENTRE,10256,02/06/2020,3475168,"3,005.20",0.00,N/A,N/A
Learning Disability Support,Transitions and Ordinary Lives - Learning Disability Support,Transitions and Ordinary Lives,KILBURN CARE CENTRE,10256,02/06/2020,3475161,"3,005.20",0.00,N/A,N/A
Learning Disability Support,Transitions and Ordinary Lives - Learning Disability Support,Transitions and Ordinary Lives,KILBURN CARE CENTRE,10256,02/06/2020,3475674,"3,005.20",0.00,N/A,N/A
Learning Disability Support,Transitions and Ordinary Lives - Learning Disability Support,Transitions and Ordinary Lives,KILBURN CARE CENTRE,10256,02/06/2020,3475676,"3,005.20",0.00,N/A,N/A
Learning Disability Support,Transitions and Ordinary Lives - Learning Disability Support,Transitions and Ordinary Lives,KILBURN CARE CENTRE,10256,02/06/2020,3475672,"3,005.20",0.00,N/A,N/A
Learning Disability Support,Transitions and Ordinary Lives - Learning Disability Support,Transitions and Ordinary Lives,KILBURN CARE CENTRE,10256,02/06/2020,3475515,"3,005.20",0.00,N/A,N/A
Learning Disability Support,Transitions and Ordinary Lives - Learning Disability Support,Transitions and Ordinary Lives,KILBURN CARE CENTRE,10256,02/06/2020,3475452,"3,019.64",0.00,N/A,N/A
Learning Disability Support,Transitions and Ordinary Lives - Learning Disability Support,Transitions and Ordinary Lives,KILBURN CARE CENTRE,10256,02/06/2020,3475106,"3,019.64",0.00,N/A,N/A
Learning Disability Support,Transitions and Ordinary Lives - Learning Disability Support,Transitions and Ordinary Lives,KILBURN CARE CENTRE,10256,02/06/2020,3475583,"3,005.20",0.00,N/A,N/A
Learning Disability Support,Transitions and Ordinary Lives - Learning Disability Support,Transitions and Ordinary Lives,KILBURN CARE CENTRE,10256,02/06/2020,3475530,"2,803.95",0.00,N/A,N/A
Learning Disability Support,Transitions and Ordinary Lives - Learning Disability Support,Transitions and Ordinary Lives,KILBURN CARE CENTRE,10256,02/06/2020,3475159,"3,005.20",0.00,N/A,N/A
Learning Disability Support,Transitions and Ordinary Lives - Learning Disability Support,Transitions and Ordinary Lives,KILBURN CARE CENTRE,10256,02/06/2020,3475433,"3,005.20",0.00,N/A,N/A
Learning Disability Support,Transitions and Ordinary Lives - Learning Disability Support,Transitions and Ordinary Lives,KILBURN CARE CENTRE,10256,02/06/2020,3475434,"3,005.20",0.00,N/A,N/A
Learning Disability Support,Transitions and Ordinary Lives - Learning Disability Support,Transitions and Ordinary Lives,KILBURN CARE CENTRE,10256,02/06/2020,3475087,"3,005.20",0.00,N/A,N/A
Learning Disability Support,Transitions and Ordinary Lives - Learning Disability Support,Transitions and Ordinary Lives,KILBURN CARE CENTRE,10256,02/06/2020,3475088,"3,005.20",0.00,N/A,N/A
Learning Disability Support,Transitions and Ordinary Lives - Learning Disability Support,Transitions and Ordinary Lives,KIRKSTALL COURT CARE HOME,11741,02/06/2020,3475102,"2,980.00",0.00,N/A,N/A
Mental Health Support,Community Support - Mental Health Support,Community Support,KIWI HOUSE,471383,02/06/2020,3476919,"1,115.12",0.00,N/A,N/A
Mental Health Support,Community Support - Mental Health Support,Community Support,KIWI HOUSE,471383,02/06/2020,3476798,"1,115.12",0.00,N/A,N/A
Mental Health Support,Community Support - Mental Health Support,Community Support,KIWI HOUSE,471383,02/06/2020,3476951,"1,035.47",0.00,N/A,N/A
Mental Health Support,Community Support - Mental Health Support,Community Support,KIWI HOUSE,471383,02/06/2020,3476727,"1,115.12",0.00,N/A,N/A
Mental Health Support,Community Support - Mental Health Support,Community Support,KIWI HOUSE,471383,02/06/2020,3476879,"1,115.12",0.00,N/A,N/A
Mental Health Support,Community Support - Mental Health Support,Community Support,KIWI HOUSE,471383,02/06/2020,3476991,"1,115.12",0.00,N/A,N/A
Mental Health Support,Community Support - Mental Health Support,Community Support,KIWI HOUSE,471383,02/06/2020,3476833,836.34,0.00,N/A,N/A
Mental Health Support,Community Support - Mental Health Support,Community Support,KIWI HOUSE,471383,02/06/2020,3476834,"1,115.12",0.00,N/A,N/A
